Workbook

Sheet Orçamento
O3: UNIDADE ESCOLAR | V3: CÓDIGO INEP
O4: COLÉGIO ESTADUAL ELVIRA LEÃO BARRETO | V4: 52042910
A6: Nmax | O6: OBRA | S6: DATA | V6: CIDADE
A7: =MAX($C$18:$C$575) -> 4 | O7: REFORMA | S7: 2020-05-12 | V7: SIMOLÂNDIA
O9: CRE | R9: ENDEREÇO | V9: REFERÊNCIA AGETOP
O10: POSSE | R10: R HUMBERTO ALENCAR CASTELO BRANCO S/N, CENTRO, CEP:73930-000 | V10: DEZ/18 | W10: DESONERADA
O12: ÁREA EXISTENTE (M²) | R12: ÁREA A CONSTRUIR (M²) | S12: ÁREA TOTAL CONSTRUÍDA (M²) | V12: REFERÊNCIA SINAPI
O13: 1086.18 | R13: 181.5 | S13: 1267.68 | V13: MAR/19 | W13: DESONERADA
L15: FILTRO | O15: PLANILHA ORÇAMENTÁRIA
A16: Nível E | B16: Save Nivel | C16: Nível C | D16: Altura | E16: n1 | F16: n2 | G16: n3 | H16: n4 | I16: n5 | J16: Czero | K16: Cnível | L16: ↓ | M16: Nível | N16: Nível Corrigido | O16: ITEM | P16: TABELA | Q16: CODIGO | R16: DESCRIÇÃO DOS SERVIÇOS | S16: UNID | T16: QUANT | U16: MAT | V16: MO | W16: T.SERVIÇO | X16: OBSERVAÇÕES¹
A17: =CHOOSE(1+LOG(1+2*(ORÇAMENTO.Nivel="Nível 1")+4*(ORÇAMENTO.Nivel="Nível 2")+8*(ORÇAMENTO.Nivel="Nível 3")+16*(ORÇAMENTO.Nivel="Nível 4")+32*(ORÇAMENTO.Nivel="Serviço"),2),0,1,2,3,4,"S") -> S | B17: =IF(OR(C17="s",C17=0),OFFSET(B17,-1,0),C17) -> Save Nivel | C17: =IF(OFFSET(C17,-1,0)="L",1,IF(OFFSET(C17,-1,0)=1,2,IF(OR(A17="s",A17=0),"S",IF(AND(OFFSET(C17,-1,0)=2,A17=4),3,IF(AND(OR(OFFSET(C17,-1,0)="s",OFFSET(C17,-1,0)=0),A17<>"s",A17>OFFSET(B17,-1,0)),OFFSET(B17,-1,0),A17))))) -> S | D17: =IF(OR(C17="S",C17=0),0,IF(ISERROR(K17),J17,SMALL(J17:K17,1))) -> 0 | E17: =IF($C17=1,OFFSET(E17,-1,0)+1,OFFSET(E17,-1,0)) -> n1 | F17: =IF($C17=1,0,IF($C17=2,OFFSET(F17,-1,0)+1,OFFSET(F17,-1,0))) -> n2 | G17: =IF(AND($C17<=2,$C17<>0),0,IF($C17=3,OFFSET(G17,-1,0)+1,OFFSET(G17,-1,0))) -> n3 | H17: =IF(AND($C17<=3,$C17<>0),0,IF($C17=4,OFFSET(H17,-1,0)+1,OFFSET(H17,-1,0))) -> n4 | I17: =IF(AND($C17<=4,$C17<>0),0,IF(AND($C17="S",$W17>0),OFFSET(I17,-1,0)+1,OFFSET(I17,-1,0))) -> n5 | J17: =IF(OR($C17="S",$C17=0),0,MATCH(0,OFFSET($D17,1,$C17,ROW($C$575)-ROW($C17)),0)) -> 0 | K17: =IF(OR($C17="S",$C17=0),0,MATCH(OFFSET($D17,0,$C17)+1,OFFSET($D17,1,$C17,ROW($C$575)-ROW($C17)),0)) -> 0 | M17: Serviço | N17: Serviço | O17: - | P17: SINAPI | R17: (sem código) | S17: - | U17: 0 | V17: 0 | W17: 0
A18: 0 | C18: L | D18: =COUNTA(OFFSET(D18,1,0):D$575) -> 556 | E18: =LEFT(O19,1)-1 -> 0 | L18: F | M18: LOTE | N18: LOTE | O18: REFORMA - COLÉGIO ESTADUAL ELVIRA LEÃO BARRETO | W18: 361127.71
A19: 1 | B19: =IF(OR(C19="s",C19=0),OFFSET(B19,-1,0),C19) -> 1 | C19: =IF(OFFSET(C19,-1,0)="L",1,IF(OFFSET(C19,-1,0)=1,2,IF(OR(A19="s",A19=0),"S",IF(AND(OFFSET(C19,-1,0)=2,A19=4),3,IF(AND(OR(OFFSET(C19,-1,0)="s",OFFSET(C19,-1,0)=0),A19<>"s",A19>OFFSET(B19,-1,0)),OFFSET(B19,-1,0),A19))))) -> 1 | D19: =IF(OR(C19="S",C19=0),0,IF(ISERROR(K19),J19,SMALL(J19:K19,1))) -> 185 | E19: =IF($C19=1,OFFSET(E19,-1,0)+1,OFFSET(E19,-1,0)) -> 1 | F19: =IF($C19=1,0,IF($C19=2,OFFSET(F19,-1,0)+1,OFFSET(F19,-1,0))) -> 0 | G19: =IF(AND($C19<=2,$C19<>0),0,IF($C19=3,OFFSET(G19,-1,0)+1,OFFSET(G19,-1,0))) -> 0 | H19: =IF(AND($C19<=3,$C19<>0),0,IF($C19=4,OFFSET(H19,-1,0)+1,OFFSET(H19,-1,0))) -> 0 | I19: 0 | J19: =IF(OR($C19="S",$C19=0),0,MATCH(0,OFFSET($D19,1,$C19,ROW($C$575)-ROW($C19)),0)) -> 556 | K19: =IF(OR($C19="S",$C19=0),0,MATCH(OFFSET($D19,0,$C19)+1,OFFSET($D19,1,$C19,ROW($C$575)-ROW($C19)),0)) -> 185 | L19: F | M19: Nível 1 | N19: Nível 1 | O19: 1. | P19: AGETOP | R19: REFORMA
A20: 2 | B20: =IF(OR(C20="s",C20=0),OFFSET(B20,-1,0),C20) -> 2 | C20: =IF(OFFSET(C20,-1,0)="L",1,IF(OFFSET(C20,-1,0)=1,2,IF(OR(A20="s",A20=0),"S",IF(AND(OFFSET(C20,-1,0)=2,A20=4),3,IF(AND(OR(OFFSET(C20,-1,0)="s",OFFSET(C20,-1,0)=0),A20<>"s",A20>OFFSET(B20,-1,0)),OFFSET(B20,-1,0),A20))))) -> 2 | D20: =IF(OR(C20="S",C20=0),0,IF(ISERROR(K20),J20,SMALL(J20:K20,1))) -> 13 | E20: =IF($C20=1,OFFSET(E20,-1,0)+1,OFFSET(E20,-1,0)) -> 1 | F20: =IF($C20=1,0,IF($C20=2,OFFSET(F20,-1,0)+1,OFFSET(F20,-1,0))) -> 1 | G20: =IF(AND($C20<=2,$C20<>0),0,IF($C20=3,OFFSET(G20,-1,0)+1,OFFSET(G20,-1,0))) -> 0 | H20: =IF(AND($C20<=3,$C20<>0),0,IF($C20=4,OFFSET(H20,-1,0)+1,OFFSET(H20,-1,0))) -> 0 | I20: 0 | J20: 184 | K20: 13 | L20: F | M20: Nível 2 | N20: Nível 2 | O20: 1.1. | P20: AGETOP | R20: SERVIÇOS PRELIMINARES
A21: 3 | B21: 3 | C21: 3 | D21: 2 | E21: 1 | F21: 1 | G21: 1 | H21: 0 | I21: 0 | J21: 12 | K21: 2 | L21: F | M21: Nível 3 | N21: Nível 3 | O21: 1.1.1. | P21: SINAPI | R21: FORRO PVC SEM ESTRUTURA | S21: -
A22: S | B22: 3 | C22: S | D22: 0 | E22: 1 | F22: 1 | G22: 1 | H22: 0 | I22: 0 | J22: 0 | K22: 0 | L22: F | M22: Serviço | N22: Serviço | O22: 1.1.1.0.1. | P22: SINAPI | Q22: 97640 | R22: REMOÇÃO DE FORROS DE DRYWALL, PVC E FIBROMINERAL, DE FORMA MANUAL, SEM REAPROVEITAMENTO. AF_12/2017 | S22: M2 | T22: 296
A23: 3 | B23: =IF(OR(C23="s",C23=0),OFFSET(B23,-1,0),C23) -> 3 | C23: =IF(OFFSET(C23,-1,0)="L",1,IF(OFFSET(C23,-1,0)=1,2,IF(OR(A23="s",A23=0),"S",IF(AND(OFFSET(C23,-1,0)=2,A23=4),3,IF(AND(OR(OFFSET(C23,-1,0)="s",OFFSET(C23,-1,0)=0),A23<>"s",A23>OFFSET(B23,-1,0)),OFFSET(B23,-1,0),A23))))) -> 3 | D23: =IF(OR(C23="S",C23=0),0,IF(ISERROR(K23),J23,SMALL(J23:K23,1))) -> 10 | E23: 1 | F23: 1 | G23: 2 | H23: 0 | I23: 0 | J23: 10 | K23: 124 | L23: F | M23: Nível 3 | N23: Nível 3 | O23: 1.1.2. | P23: SINAPI | R23: OUTROS | S23: -
A24: S | B24: 3 | C24: S | D24: 0 | E24: 1 | F24: 1 | G24: 2 | H24: 0 | I24: 0 | J24: 0 | K24: 0 | L24: F | M24: Serviço | N24: Serviço | O24: 1.1.2.0.1. | P24: AGETOP | Q24: 20101 | R24: DEMOLICAO COBERTURA TELHA CERAMICA C/ TRANSP. ATÉ CB. E CARGA | S24: m2 | T24: 400
A25: S | B25: 3 | C25: S | D25: 0 | E25: 1 | F25: 1 | G25: 2 | H25: 0 | I25: 0 | J25: 0 | K25: 0 | L25: F | M25: Serviço | N25: Serviço | O25: 1.1.2.0.2. | P25: AGETOP | Q25: 20104 | R25: DEMOLIÇÃO DE RIPAS C/ TRANSP. ATÉ CB. E CARGA | S25: m2 | T25: 200
A26: S | B26: 3 | C26: S | D26: 0 | E26: 1 | F26: 1 | G26: 2 | H26: 0 | I26: 0 | J26: 0 | K26: 0 | L26: F | M26: Serviço | N26: Serviço | O26: 1.1.2.0.3. | P26: AGETOP | Q26: 20109 | R26: DEM.PISO CIMENT.SOBRE LASTRO CONC.C/TR.ATE CB. E CARGA | S26: m2 | T26: 296
A27: S | B27: 3 | C27: S | D27: 0 | E27: 1 | F27: 1 | G27: 2 | H27: 0 | I27: 0 | J27: 0 | K27: 0 | L27: F | M27: Serviço | N27: Serviço | O27: 1.1.2.0.4. | P27: AGETOP | Q27: 20121 | R27: DEM. MANUAL EM CONCR.SIMPLES C/TR.ATE CB.E CARGA (O.C.) | S27: m3 | T27: 3
A28: S | B28: 3 | C28: S | D28: 0 | E28: 1 | F28: 1 | G28: 2 | H28: 0 | I28: 0 | J28: 0 | K28: 0 | L28: F | M28: Serviço | N28: Serviço | O28: 1.1.2.0.5. | P28: SINAPI | Q28: 97622 | R28: DEMOLIÇÃO DE ALVENARIA DE BLOCO FURADO, DE FORMA MANUAL, SEM REAPROVEITAMENTO. AF_12/2017 | S28: M3 | T28: 13 | X28: Referência: AGETOP - 20118
A29: S | B29: 3 | C29: S | D29: 0 | E29: 1 | F29: 1 | G29: 2 | H29: 0 | I29: 0 | J29: 0 | K29: 0 | L29: F | M29: Serviço | N29: Serviço | O29: 1.1.2.0.6. | P29: AGETOP | Q29: 20162 | R29: DEMOLIÇÃO DAS INSTALAÇÕES ELÉTRICAS E AFINS C/ TRANSP. ATÉ CB. E CARGA | S29: H | T29: 16
A30: S | B30: 3 | C30: S | D30: 0 | E30: 1 | F30: 1 | G30: 2 | H30: 0 | I30: 0 | J30: 0 | K30: 0 | L30: F | M30: Serviço | N30: Serviço | O30: 1.1.2.0.7. | P30: AGETOP | Q30: 20163 | R30: DEMOLIÇÃO DAS INSTALAÇÕES HIDROSANITÁRIAS E AFINS C/ TRANSP. ATÉ CB. E CARGA | S30: H | T30: 8
A31: S | B31: 3 | C31: S | D31: 0 | E31: 1 | F31: 1 | G31: 2 | H31: 0 | I31: 0 | J31: 0 | K31: 0 | L31: F | M31: Serviço | N31: Serviço | O31: 1.1.2.0.8. | P31: AGETOP | Q31: 72080 | R31: POSTE/TRAFO - CAMINHÃO MUNCK 12 TON. (MÍNIMO 4H/DIA) | S31: H | T31: 4
A32: S | B32: 3 | C32: S | D32: 0 | E32: 1 | F32: 1 | G32: 2 | H32: 0 | I32: 0 | J32: 0 | K32: 0 | L32: F | M32: Serviço | N32: Serviço | O32: 1.1.2.0.9. | P32: SINAPI | Q32: 74209/1 | R32: PLACA DE OBRA EM CHAPA DE ACO GALVANIZADO | S32: M2 | T32: 4.5 | X32: Referência: AGETOP - 21301
A33: 2 | B33: 2 | C33: 2 | D33: 3 | E33: 1 | F33: 2 | G33: 0 | H33: 0 | I33: 0 | J33: 171 | K33: 3 | L33: F | M33: Nível 2 | N33: Nível 2 | O33: 1.2. | P33: AGETOP | R33: TRANSPORTES | S33: -
A34: S | B34: 2 | C34: S | D34: 0 | E34: 1 | F34: 2 | G34: 0 | H34: 0 | I34: 0 | J34: 0 | K34: 0 | L34: F | M34: Serviço | N34: Serviço | O34: 1.2.0.0.1. | P34: SINAPI | Q34: 72900 | R34: TRANSPORTE DE ENTULHO COM CAMINHAO BASCULANTE 6 M3, RODOVIA PAVIMENTADA, DMT 0,5 A 1,0 KM | S34: M3 | T34: 84
A35: S | B35: 2 | C35: S | D35: 0 | E35: 1 | F35: 2 | G35: 0 | H35: 0 | I35: 0 | J35: 0 | K35: 0 | L35: F | M35: Serviço | N35: Serviço | O35: 1.2.0.0.2. | P35: SINAPI | Q35: 72897 | R35: CARGA MANUAL DE ENTULHO EM CAMINHAO BASCULANTE 6 M3 | S35: M3 | T35: 84
A36: 2 | B36: 2 | C36: 2 | D36: 7 | E36: 1 | F36: 3 | G36: 0 | H36: 0 | I36: 0 | J36: 168 | K36: 7 | L36: F | M36: Nível 2 | N36: Nível 2 | O36: 1.3. | P36: AGETOP | R36: SERVIÇO EM TERRA | S36: -
A37: 3 | B37: 3 | C37: 3 | D37: 3 | E37: 1 | F37: 3 | G37: 1 | H37: 0 | I37: 0 | J37: 6 | K37: 3 | L37: F | M37: Nível 3 | N37: Nível 3 | O37: 1.3.1. | P37: SINAPI | R37: ELETRICO | S37: -
A38: =CHOOSE(1+LOG(1+2*(ORÇAMENTO.Nivel="Nível 1")+4*(ORÇAMENTO.Nivel="Nível 2")+8*(ORÇAMENTO.Nivel="Nível 3")+16*(ORÇAMENTO.Nivel="Nível 4")+32*(ORÇAMENTO.Nivel="Serviço"),2),0,1,2,3,4,"S") -> S | B38: 3 | C38: S | D38: 0 | E38: 1 | F38: 3 | G38: 1 | H38: 0 | I38: =IF(AND($C38<=4,$C38<>0),0,IF(AND($C38="S",$W38>0),OFFSET(I38,-1,0)+1,OFFSET(I38,-1,0))) -> 0 | J38: 0 | K38: 0 | L38: F | M38: Serviço | N38: Serviço | O38: 1.3.1.0.1. | P38: SINAPI | Q38: 93358 | R38: ESCAVAÇÃO MANUAL DE VALA COM PROFUNDIDADE MENOR OU IGUAL A 1,30 M. AF_03/2016 | S38: M3 | T38: 2.7 | X38: Referência: AGETOP - 40101
A39: S | B39: 3 | C39: S | D39: 0 | E39: 1 | F39: 3 | G39: 1 | H39: 0 | I39: 0 | J39: 0 | K39: 0 | L39: F | M39: Serviço | N39: Serviço | O39: 1.3.1.0.2. | P39: SINAPI | Q39: 96995 | R39: REATERRO MANUAL APILOADO COM SOQUETE. AF_10/2017 | S39: M3 | T39: 2.7 | X39: Referência: AGETOP - 40902
A40: 3 | B40: 3 | C40: 3 | D40: 3 | E40: =IF($C40=1,OFFSET(E40,-1,0)+1,OFFSET(E40,-1,0)) -> 1 | F40: =IF($C40=1,0,IF($C40=2,OFFSET(F40,-1,0)+1,OFFSET(F40,-1,0))) -> 3 | G40: =IF(AND($C40<=2,$C40<>0),0,IF($C40=3,OFFSET(G40,-1,0)+1,OFFSET(G40,-1,0))) -> 2 | H40: =IF(AND($C40<=3,$C40<>0),0,IF($C40=4,OFFSET(H40,-1,0)+1,OFFSET(H40,-1,0))) -> 0 | I40: 0 | J40: 3 | K40: 107 | L40: F | M40: Nível 3 | N40: Nível 3 | O40: 1.3.2. | P40: SINAPI | R40: CENTRAL DE GAS | S40: -
A41: S | B41: 3 | C41: S | D41: 0 | E41: 1 | F41: 3 | G41: 2 | H41: 0 | I41: 0 | J41: 0 | K41: 0 | L41: F | M41: Serviço | N41: Serviço | O41: 1.3.2.0.1. | P41: SINAPI | Q41: 93358 | R41: ESCAVAÇÃO MANUAL DE VALA COM PROFUNDIDADE MENOR OU IGUAL A 1,30 M. AF_03/2016 | S41: M3 | T41: 1.4 | X41: Referência: AGETOP - 40101
A42: S | B42: 3 | C42: S | D42: 0 | E42: 1 | F42: 3 | G42: 2 | H42: 0 | I42: 0 | J42: 0 | K42: 0 | L42: F | M42: Serviço | N42: Serviço | O42: 1.3.2.0.2. | P42: SINAPI | Q42: 96995 | R42: REATERRO MANUAL APILOADO COM SOQUETE. AF_10/2017 | S42: M3 | T42: 1.12 | X42: Referência: AGETOP - 40902
A43: =CHOOSE(1+LOG(1+2*(ORÇAMENTO.Nivel="Nível 1")+4*(ORÇAMENTO.Nivel="Nível 2")+8*(ORÇAMENTO.Nivel="Nível 3")+16*(ORÇAMENTO.Nivel="Nível 4")+32*(ORÇAMENTO.Nivel="Serviço"),2),0,1,2,3,4,"S") -> 2 | B43: =IF(OR(C43="s",C43=0),OFFSET(B43,-1,0),C43) -> 2 | C43: =IF(OFFSET(C43,-1,0)="L",1,IF(OFFSET(C43,-1,0)=1,2,IF(OR(A43="s",A43=0),"S",IF(AND(OFFSET(C43,-1,0)=2,A43=4),3,IF(AND(OR(OFFSET(C43,-1,0)="s",OFFSET(C43,-1,0)=0),A43<>"s",A43>OFFSET(B43,-1,0)),OFFSET(B43,-1,0),A43))))) -> 2 | D43: =IF(OR(C43="S",C43=0),0,IF(ISERROR(K43),J43,SMALL(J43:K43,1))) -> 53 | E43: =IF($C43=1,OFFSET(E43,-1,0)+1,OFFSET(E43,-1,0)) -> 1 | F43: =IF($C43=1,0,IF($C43=2,OFFSET(F43,-1,0)+1,OFFSET(F43,-1,0))) -> 4 | G43: =IF(AND($C43<=2,$C43<>0),0,IF($C43=3,OFFSET(G43,-1,0)+1,OFFSET(G43,-1,0))) -> 0 | H43: =IF(AND($C43<=3,$C43<>0),0,IF($C43=4,OFFSET(H43,-1,0)+1,OFFSET(H43,-1,0))) -> 0 | I43: =IF(AND($C43<=4,$C43<>0),0,IF(AND($C43="S",$W43>0),OFFSET(I43,-1,0)+1,OFFSET(I43,-1,0))) -> 0 | J43: 161 | K43: 53 | L43: F | M43: Nível 2 | N43: Nível 2 | O43: 1.4. | R43: INSTALAÇÕES ELÉTRICAS | S43: -
A44: S | B44: 2 | C44: S | D44: 0 | E44: 1 | F44: 4 | G44: 0 | H44: 0 | I44: 0 | J44: 0 | K44: 0 | L44: F | M44: Serviço | N44: Serviço | O44: 1.4.0.0.1. | P44: SINAPI | Q44: 97661 | R44: REMOÇÃO DE CABOS ELÉTRICOS, DE FORMA MANUAL, SEM REAPROVEITAMENTO. AF_12/2017 | S44: M | T44: 4000
A45: S | B45: 2 | C45: S | D45: 0 | E45: 1 | F45: 4 | G45: 0 | H45: 0 | I45: 0 | J45: 0 | K45: 0 | L45: F | M45: Serviço | N45: Serviço | O45: 1.4.0.0.2. | P45: SINAPI | Q45: 97660 | R45: REMOÇÃO DE INTERRUPTORES/TOMADAS ELÉTRICAS, DE FORMA MANUAL, SEM REAPROVEITAMENTO. AF_12/2017 | S45: UN | T45: 45
A46: S | B46: 2 | C46: S | D46: 0 | E46: 1 | F46: 4 | G46: 0 | H46: 0 | I46: 0 | J46: 0 | K46: 0 | L46: F | M46: Serviço | N46: Serviço | O46: 1.4.0.0.3. | P46: SINAPI | Q46: 97665 | R46: REMOÇÃO DE LUMINÁRIAS, DE FORMA MANUAL, SEM REAPROVEITAMENTO. AF_12/2017 | S46: UN | T46: 30
A47: S | B47: 2 | C47: S | D47: 0 | E47: 1 | F47: 4 | G47: 0 | H47: 0 | I47: 0 | J47: 0 | K47: 0 | L47: F | M47: Serviço | N47: Serviço | O47: 1.4.0.0.4. | P47: AGETOP | Q47: 70351 | R47: BRACADEIRA METALICA TIPO "U" DIAM. 3/4" | S47: Un | T47: 30
A48: S | B48: 2 | C48: S | D48: 0 | E48: 1 | F48: 4 | G48: 0 | H48: 0 | I48: 0 | J48: 0 | K48: 0 | L48: F | M48: Serviço | N48: Serviço | O48: 1.4.0.0.5. | P48: AGETOP | Q48: 70352 | R48: BRACADEIRA METALICA TIPO "U" DIAM. 1" | S48: Un | T48: 20
A49: S | B49: 2 | C49: S | D49: 0 | E49: 1 | F49: 4 | G49: 0 | H49: 0 | I49: 0 | J49: 0 | K49: 0 | L49: F | M49: Serviço | N49: Serviço | O49: 1.4.0.0.6. | P49: AGETOP | Q49: 70353 | R49: BRACADEIRA METALICA TIPO "U" DIAM. 1.1/4" | S49: Un | T49: 10
A50: S | B50: 2 | C50: S | D50: 0 | E50: 1 | F50: 4 | G50: 0 | H50: 0 | I50: 0 | J50: 0 | K50: 0 | L50: F | M50: Serviço | N50: Serviço | O50: 1.4.0.0.7. | P50: AGETOP | Q50: 70354 | R50: BRACADEIRA METALICA TIPO "U" DIAM. 1.1/2" | S50: Un | T50: 10
A51: S | B51: 2 | C51: S | D51: 0 | E51: 1 | F51: 4 | G51: 0 | H51: 0 | I51: 0 | J51: 0 | K51: 0 | L51: F | M51: Serviço | N51: Serviço | O51: 1.4.0.0.8. | P51: AGETOP | Q51: 70355 | R51: BRACADEIRA METALICA TIPO "U" DIAM. 2" | S51: Un | T51: 10
A52: S | B52: 2 | C52: S | D52: 0 | E52: 1 | F52: 4 | G52: 0 | H52: 0 | I52: 0 | J52: 0 | K52: 0 | L52: F | M52: Serviço | N52: Serviço | O52: 1.4.0.0.9. | P52: AGETOP | Q52: 70421 | R52: BUCHA E ARRUELA METALICA DIAM. 3/4" | S52: PR | T52: 30
A53: S | B53: 2 | C53: S | D53: 0 | E53: 1 | F53: 4 | G53: 0 | H53: 0 | I53: 0 | J53: 0 | K53: 0 | L53: F | M53: Serviço | N53: Serviço | O53: 1.4.0.0.10. | P53: AGETOP | Q53: 70422 | R53: BUCHA E ARRUELA METALICA DIAM. 1" | S53: PR | T53: 20
A54: S | B54: 2 | C54: S | D54: 0 | E54: 1 | F54: 4 | G54: 0 | H54: 0 | I54: 0 | J54: 0 | K54: 0 | L54: F | M54: Serviço | N54: Serviço | O54: 1.4.0.0.11. | P54: AGETOP | Q54: 70423 | R54: BUCHA E ARRUELA METALICA DIAM. 1.1/4" | S54: PR | T54: 10
A55: S | B55: 2 | C55: S | D55: 0 | E55: 1 | F55: 4 | G55: 0 | H55: 0 | I55: 0 | J55: 0 | K55: 0 | L55: F | M55: Serviço | N55: Serviço | O55: 1.4.0.0.12. | P55: AGETOP | Q55: 70424 | R55: BUCHA E ARRUELA METALICA DIAM. 1.1/2" | S55: PR | T55: 10
A56: S | B56: 2 | C56: S | D56: 0 | E56: 1 | F56: 4 | G56: 0 | H56: 0 | I56: 0 | J56: 0 | K56: 0 | L56: F | M56: Serviço | N56: Serviço | O56: 1.4.0.0.13. | P56: AGETOP | Q56: 70425 | R56: BUCHA E ARRUELA METALICA DIAM. 2" | S56: PR | T56: 10
A57: S | B57: 2 | C57: S | D57: 0 | E57: 1 | F57: 4 | G57: 0 | H57: 0 | I57: 0 | J57: 0 | K57: 0 | L57: F | M57: Serviço | N57: Serviço | O57: 1.4.0.0.14. | P57: SINAPI | Q57: 92980 | R57: CABO DE COBRE FLEXÍVEL ISOLADO, 10 MM², ANTI-CHAMA 0,6/1,0 KV, PARA DISTRIBUIÇÃO - FORNECIMENTO E INSTALAÇÃO. AF_12/2015 | S57: M | T57: 50
A58: S | B58: 2 | C58: S | D58: 0 | E58: 1 | F58: 4 | G58: 0 | H58: 0 | I58: 0 | J58: 0 | K58: 0 | L58: F | M58: Serviço | N58: Serviço | O58: 1.4.0.0.15. | P58: SINAPI | Q58: 92982 | R58: CABO DE COBRE FLEXÍVEL ISOLADO, 16 MM², ANTI-CHAMA 0,6/1,0 KV, PARA DISTRIBUIÇÃO - FORNECIMENTO E INSTALAÇÃO. AF_12/2015 | S58: M | T58: 15
A59: S | B59: 2 | C59: S | D59: 0 | E59: 1 | F59: 4 | G59: 0 | H59: 0 | I59: 0 | J59: 0 | K59: 0 | L59: F | M59: Serviço | N59: Serviço | O59: 1.4.0.0.16. | P59: SINAPI | Q59: 92984 | R59: CABO DE COBRE FLEXÍVEL ISOLADO, 25 MM², ANTI-CHAMA 0,6/1,0 KV, PARA DISTRIBUIÇÃO - FORNECIMENTO E INSTALAÇÃO. AF_12/2015 | S59: M | T59: 60 | X59: Referência: AGETOP - 70511
A60: S | B60: 2 | C60: S | D60: 0 | E60: 1 | F60: 4 | G60: 0 | H60: 0 | I60: 0 | J60: 0 | K60: 0 | L60: F | M60: Serviço | N60: Serviço | O60: 1.4.0.0.17. | P60: SINAPI | Q60: 96971 | R60: CORDOALHA DE COBRE NU 16 MM², NÃO ENTERRADA, COM ISOLADOR - FORNECIMENTO E INSTALAÇÃO. AF_12/2017 | S60: M | T60: 45 | X60: Referência: AGETOP - 70541
A61: =CHOOSE(1+LOG(1+2*(ORÇAMENTO.Nivel="Nível 1")+4*(ORÇAMENTO.Nivel="Nível 2")+8*(ORÇAMENTO.Nivel="Nível 3")+16*(ORÇAMENTO.Nivel="Nível 4")+32*(ORÇAMENTO.Nivel="Serviço"),2),0,1,2,3,4,"S") -> S | B61: 2 | C61: S | D61: 0 | E61: 1 | F61: 4 | G61: 0 | H61: 0 | I61: =IF(AND($C61<=4,$C61<>0),0,IF(AND($C61="S",$W61>0),OFFSET(I61,-1,0)+1,OFFSET(I61,-1,0))) -> 0 | J61: 0 | K61: 0 | L61: F | M61: Serviço | N61: Serviço | O61: 1.4.0.0.18. | P61: SINAPI | Q61: 91927 | R61: CABO DE COBRE FLEXÍVEL ISOLADO, 2,5 MM², ANTI-CHAMA 0,6/1,0 KV, PARA CIRCUITOS TERMINAIS - FORNECIMENTO E INSTALAÇÃO. AF_12/2015 | S61: M | T61: 4000 | X61: Referência: AGETOP - 70581
A62: S | B62: 2 | C62: S | D62: 0 | E62: 1 | F62: 4 | G62: 0 | H62: 0 | I62: 0 | J62: 0 | K62: 0 | L62: F | M62: Serviço | N62: Serviço | O62: 1.4.0.0.19. | P62: SINAPI | Q62: 91929 | R62: CABO DE COBRE FLEXÍVEL ISOLADO, 4 MM², ANTI-CHAMA 0,6/1,0 KV, PARA CIRCUITOS TERMINAIS - FORNECIMENTO E INSTALAÇÃO. AF_12/2015 | S62: M | T62: 2000 | X62: Referência: AGETOP - 70582
A63: S | B63: 2 | C63: S | D63: 0 | E63: 1 | F63: 4 | G63: 0 | H63: 0 | I63: 0 | J63: 0 | K63: 0 | L63: F | M63: Serviço | N63: Serviço | O63: 1.4.0.0.20. | P63: SINAPI | Q63: 91931 | R63: CABO DE COBRE FLEXÍVEL ISOLADO, 6 MM², ANTI-CHAMA 0,6/1,0 KV, PARA CIRCUITOS TERMINAIS - FORNECIMENTO E INSTALAÇÃO. AF_12/2015 | S63: M | T63: 50 | X63: Referência: AGETOP - 70583
A64: S | B64: 2 | C64: S | D64: 0 | E64: =IF($C64=1,OFFSET(E64,-1,0)+1,OFFSET(E64,-1,0)) -> 1 | F64: =IF($C64=1,0,IF($C64=2,OFFSET(F64,-1,0)+1,OFFSET(F64,-1,0))) -> 4 | G64: =IF(AND($C64<=2,$C64<>0),0,IF($C64=3,OFFSET(G64,-1,0)+1,OFFSET(G64,-1,0))) -> 0 | H64: =IF(AND($C64<=3,$C64<>0),0,IF($C64=4,OFFSET(H64,-1,0)+1,OFFSET(H64,-1,0))) -> 0 | I64: 0 | J64: 0 | K64: 0 | L64: F | M64: Serviço | N64: Serviço | O64: 1.4.0.0.21. | P64: SINAPI | Q64: 92868 | R64: CAIXA RETANGULAR 4" X 2" MÉDIA (1,30 M DO PISO), METÁLICA, INSTALADA EM PAREDE - FORNECIMENTO E INSTALAÇÃO. AF_12/2015 | S64: UN | T64: 10 | X64: Referência: AGETOP - 70691
A65: S | B65: 2 | C65: S | D65: 0 | E65: 1 | F65: 4 | G65: 0 | H65: 0 | I65: 0 | J65: 0 | K65: 0 | L65: F | M65: Serviço | N65: Serviço | O65: 1.4.0.0.22. | P65: SINAPI | Q65: 97893 | R65: CAIXA ENTERRADA ELÉTRICA RETANGULAR, EM ALVENARIA COM BLOCOS DE CONCRETO, FUNDO COM BRITA, DIMENSÕES INTERNAS: 0,8X0,8X0,6 M. AF_05/2018 | S65: UN | T65: 2
A66: S | B66: 2 | C66: S | D66: 0 | E66: 1 | F66: 4 | G66: 0 | H66: 0 | I66: 0 | J66: 0 | K66: 0 | L66: F | M66: Serviço | N66: Serviço | O66: 1.4.0.0.23. | P66: AGETOP | Q66: 70930 | R66: CONDULETE METÁLICO - ADAPTADOR DE SAÍDA 3/4" | S66: un | T66: 10
A67: S | B67: 2 | C67: S | D67: 0 | E67: 1 | F67: 4 | G67: 0 | H67: 0 | I67: 0 | J67: 0 | K67: 0 | L67: F | M67: Serviço | N67: Serviço | O67: 1.4.0.0.24. | P67: SINAPI | Q67: 91902 | R67: CURVA 90 GRAUS PARA ELETRODUTO, PVC, ROSCÁVEL, DN 25 MM (3/4"), PARA CIRCUITOS TERMINAIS, INSTALADA EM LAJE - FORNECIMENTO E INSTALAÇÃO. AF_12/2015 | S67: UN | T67: 30 | X67: Referência: AGETOP - 71141
A68: S | B68: 2 | C68: S | D68: 0 | E68: 1 | F68: 4 | G68: 0 | H68: 0 | I68: 0 | J68: 0 | K68: 0 | L68: F | M68: Serviço | N68: Serviço | O68: 1.4.0.0.25. | P68: SINAPI | Q68: 91905 | R68: CURVA 90 GRAUS PARA ELETRODUTO, PVC, ROSCÁVEL, DN 32 MM (1"), PARA CIRCUITOS TERMINAIS, INSTALADA EM LAJE - FORNECIMENTO E INSTALAÇÃO. AF_12/2015 | S68: UN | T68: 20 | X68: Referência: AGETOP - 71142
A69: S | B69: 2 | C69: S | D69: 0 | E69: 1 | F69: 4 | G69: 0 | H69: 0 | I69: 0 | J69: 0 | K69: 0 | L69: F | M69: Serviço | N69: Serviço | O69: 1.4.0.0.26. | P69: SINAPI | Q69: 93653 | R69: DISJUNTOR MONOPOLAR TIPO DIN, CORRENTE NOMINAL DE 10A - FORNECIMENTO E INSTALAÇÃO. AF_04/2016 | S69: UN | T69: 10
A70: S | B70: =IF(OR(C70="s",C70=0),OFFSET(B70,-1,0),C70) -> 2 | C70: =IF(OFFSET(C70,-1,0)="L",1,IF(OFFSET(C70,-1,0)=1,2,IF(OR(A70="s",A70=0),"S",IF(AND(OFFSET(C70,-1,0)=2,A70=4),3,IF(AND(OR(OFFSET(C70,-1,0)="s",OFFSET(C70,-1,0)=0),A70<>"s",A70>OFFSET(B70,-1,0)),OFFSET(B70,-1,0),A70))))) -> S | D70: =IF(OR(C70="S",C70=0),0,IF(ISERROR(K70),J70,SMALL(J70:K70,1))) -> 0 | E70: 1 | F70: 4 | G70: 0 | H70: 0 | I70: 0 | J70: 0 | K70: 0 | L70: F | M70: Serviço | N70: Serviço | O70: 1.4.0.0.27. | P70: SINAPI | Q70: 93654 | R70: DISJUNTOR MONOPOLAR TIPO DIN, CORRENTE NOMINAL DE 16A - FORNECIMENTO E INSTALAÇÃO. AF_04/2016 | S70: UN | T70: 16
A71: S | B71: 2 | C71: S | D71: 0 | E71: 1 | F71: 4 | G71: 0 | H71: 0 | I71: 0 | J71: 0 | K71: 0 | L71: F | M71: Serviço | N71: Serviço | O71: 1.4.0.0.28. | P71: SINAPI | Q71: 93656 | R71: DISJUNTOR MONOPOLAR TIPO DIN, CORRENTE NOMINAL DE 25A - FORNECIMENTO E INSTALAÇÃO. AF_04/2016 | S71: UN | T71: 10
A72: S | B72: 2 | C72: S | D72: 0 | E72: 1 | F72: 4 | G72: 0 | H72: 0 | I72: 0 | J72: 0 | K72: 0 | L72: F | M72: Serviço | N72: Serviço | O72: 1.4.0.0.29. | P72: SINAPI | Q72: 93671 | R72: DISJUNTOR TRIPOLAR TIPO DIN, CORRENTE NOMINAL DE 32A - FORNECIMENTO E INSTALAÇÃO. AF_04/2016 | S72: UN | T72: 4 | X72: Referência: AGETOP - 71173
A73: S | B73: 2 | C73: S | D73: 0 | E73: 1 | F73: 4 | G73: 0 | H73: 0 | I73: 0 | J73: 0 | K73: 0 | L73: F | M73: Serviço | N73: Serviço | O73: 1.4.0.0.30. | P73: SINAPI | Q73: 93673 | R73: DISJUNTOR TRIPOLAR TIPO DIN, CORRENTE NOMINAL DE 50A - FORNECIMENTO E INSTALAÇÃO. AF_04/2016 | S73: UN | T73: 4 | X73: Referência: AGETOP - 71174
A74: S | B74: 2 | C74: S | D74: 0 | E74: 1 | F74: 4 | G74: 0 | H74: 0 | I74: 0 | J74: 0 | K74: 0 | L74: F | M74: Serviço | N74: Serviço | O74: 1.4.0.0.31. | P74: SINAPI | Q74: 74130/5 | R74: DISJUNTOR TERMOMAGNETICO TRIPOLAR PADRAO NEMA (AMERICANO) 60 A 100A 240V, FORNECIMENTO E INSTALACAO | S74: UN | T74: 2
A75: S | B75: 2 | C75: S | D75: 0 | E75: 1 | F75: 4 | G75: 0 | H75: 0 | I75: 0 | J75: 0 | K75: 0 | L75: F | M75: Serviço | N75: Serviço | O75: 1.4.0.0.32. | P75: AGETOP | Q75: 71184 | R75: DISPOSITIVO DE PROTEÇÃO CONTRA SURTOS (D.P.S.) 275V DE 8 A 40KA | S75: Un | T75: 3
A76: S | B76: 2 | C76: S | D76: 0 | E76: 1 | F76: 4 | G76: 0 | H76: 0 | I76: 0 | J76: 0 | K76: 0 | L76: F | M76: Serviço | N76: Serviço | O76: 1.4.0.0.33. | P76: SINAPI | Q76: 91871 | R76: ELETRODUTO RÍGIDO ROSCÁVEL, PVC, DN 25 MM (3/4"), PARA CIRCUITOS TERMINAIS, INSTALADO EM PAREDE - FORNECIMENTO E INSTALAÇÃO. AF_12/2015 | S76: M | T76: 90 | X76: Referência: AGETOP - 71201
A77: S | B77: 2 | C77: S | D77: 0 | E77: 1 | F77: 4 | G77: 0 | H77: 0 | I77: 0 | J77: 0 | K77: 0 | L77: F | M77: Serviço | N77: Serviço | O77: 1.4.0.0.34. | P77: SINAPI | Q77: 91872 | R77: ELETRODUTO RÍGIDO ROSCÁVEL, PVC, DN 32 MM (1"), PARA CIRCUITOS TERMINAIS, INSTALADO EM PAREDE - FORNECIMENTO E INSTALAÇÃO. AF_12/2015 | S77: M | T77: 60 | X77: Referência: AGETOP - 71202
A78: S | B78: 2 | C78: S | D78: 0 | E78: 1 | F78: 4 | G78: 0 | H78: 0 | I78: 0 | J78: 0 | K78: 0 | L78: F | M78: Serviço | N78: Serviço | O78: 1.4.0.0.35. | P78: SINAPI | Q78: 93008 | R78: ELETRODUTO RÍGIDO ROSCÁVEL, PVC, DN 50 MM (1 1/2") - FORNECIMENTO E INSTALAÇÃO. AF_12/2015 | S78: M | T78: 30
A79: S | B79: 2 | C79: S | D79: 0 | E79: 1 | F79: 4 | G79: 0 | H79: 0 | I79: 0 | J79: 0 | K79: 0 | L79: F | M79: Serviço | N79: Serviço | O79: 1.4.0.0.36. | P79: SINAPI | Q79: 93009 | R79: ELETRODUTO RÍGIDO ROSCÁVEL, PVC, DN 60 MM (2") - FORNECIMENTO E INSTALAÇÃO. AF_12/2015 | S79: M | T79: 60
A80: S | B80: 2 | C80: S | D80: 0 | E80: 1 | F80: 4 | G80: 0 | H80: 0 | I80: 0 | J80: 0 | K80: 0 | L80: F | M80: Serviço | N80: Serviço | O80: 1.4.0.0.37. | P80: AGETOP | Q80: 71321 | R80: FITA DE AUTO FUSAO, ROLO E 10,00 MM | S80: Un | T80: 5
A81: S | B81: 2 | C81: S | D81: 0 | E81: 1 | F81: 4 | G81: 0 | H81: 0 | I81: 0 | J81: 0 | K81: 0 | L81: F | M81: Serviço | N81: Serviço | O81: 1.4.0.0.38. | P81: AGETOP | Q81: 71331 | R81: FITA ISOLANTE, ROLO DE 20,00 M | S81: Un | T81: 15
A82: S | B82: 2 | C82: S | D82: 0 | E82: 1 | F82: 4 | G82: 0 | H82: 0 | I82: 0 | J82: 0 | K82: 0 | L82: F | M82: Serviço | N82: Serviço | O82: 1.4.0.0.39. | P82: AGETOP | Q82: 71381 | R82: HASTE REV.COBRE(COPPERWELD) 5/8" X 3,00 M C/CONECTOR | S82: Un | T82: 3
A83: S | B83: 2 | C83: S | D83: 0 | E83: 1 | F83: 4 | G83: 0 | H83: 0 | I83: 0 | J83: =IF(OR($C83="S",$C83=0),0,MATCH(0,OFFSET($D83,1,$C83,ROW($C$575)-ROW($C83)),0)) -> 0 | K83: =IF(OR($C83="S",$C83=0),0,MATCH(OFFSET($D83,0,$C83)+1,OFFSET($D83,1,$C83,ROW($C$575)-ROW($C83)),0)) -> 0 | L83: F | M83: Serviço | N83: Serviço | O83: 1.4.0.0.40. | P83: SINAPI | Q83: 91953 | R83: INTERRUPTOR SIMPLES (1 MÓDULO), 10A/250V, INCLUINDO SUPORTE E PLACA - FORNECIMENTO E INSTALAÇÃO. AF_12/2015 | S83: UN | T83: 10 | X83: Referência: AGETOP - 71440
A84: S | B84: 2 | C84: S | D84: 0 | E84: 1 | F84: 4 | G84: 0 | H84: 0 | I84: 0 | J84: 0 | K84: 0 | L84: F | M84: Serviço | N84: Serviço | O84: 1.4.0.0.41. | P84: COMPOSIÇÃO | Q84: COMP 387_SEE | R84: LÂMPADA LED TUBULAR 18W | S84: UN | T84: 60
A85: S | B85: 2 | C85: S | D85: 0 | E85: 1 | F85: 4 | G85: 0 | H85: 0 | I85: 0 | J85: 0 | K85: 0 | M85: Serviço | N85: Serviço | O85: - | P85: SINAPI | Q85: 97608 | R85: LUMINÁRIA ARANDELA TIPO TARTARUGA, COM GRADE, PARA 1 LÂMPADA DE 15 W - FORNECIMENTO E INSTALAÇÃO. AF_11/2017 | S85: UN
A86: S | B86: 2 | C86: S | D86: 0 | E86: 1 | F86: 4 | G86: 0 | H86: 0 | I86: 0 | J86: 0 | K86: 0 | L86: F | M86: Serviço | N86: Serviço | O86: 1.4.0.0.42. | P86: SINAPI | Q86: 73953/4 | R86: LUMINÁRIAS TIPO CALHA, DE SOBREPOR, COM REATORES DE PARTIDA RÁPIDA E LÂMPADAS FLUORESCENTES 2X2X18W, COMPLETAS, FORNECIMENTO E INSTALAÇÃO | S86: UN | T86: 30
A87: S | B87: 2 | C87: S | D87: 0 | E87: 1 | F87: 4 | G87: 0 | H87: 0 | I87: 0 | J87: 0 | K87: 0 | L87: F | M87: Serviço | N87: Serviço | O87: 1.4.0.0.43. | P87: SINAPI | Q87: 91884 | R87: LUVA PARA ELETRODUTO, PVC, ROSCÁVEL, DN 25 MM (3/4"), PARA CIRCUITOS TERMINAIS, INSTALADA EM PAREDE - FORNECIMENTO E INSTALAÇÃO. AF_12/2015 | S87: UN | T87: 30 | X87: Referência: AGETOP - 71741
A88: S | B88: 2 | C88: S | D88: 0 | E88: 1 | F88: 4 | G88: 0 | H88: 0 | I88: 0 | J88: 0 | K88: 0 | L88: F | M88: Serviço | N88: Serviço | O88: 1.4.0.0.44. | P88: SINAPI | Q88: 91885 | R88: LUVA PARA ELETRODUTO, PVC, ROSCÁVEL, DN 32 MM (1"), PARA CIRCUITOS TERMINAIS, INSTALADA EM PAREDE - FORNECIMENTO E INSTALAÇÃO. AF_12/2015 | S88: UN | T88: 20 | X88: Referência: AGETOP - 71742
A89: S | B89: 2 | C89: S | D89: 0 | E89: 1 | F89: 4 | G89: 0 | H89: 0 | I89: 0 | J89: 0 | K89: 0 | L89: F | M89: Serviço | N89: Serviço | O89: 1.4.0.0.45. | P89: SINAPI | Q89: 93013 | R89: LUVA PARA ELETRODUTO, PVC, ROSCÁVEL, DN 50 MM (1 1/2") - FORNECIMENTO E INSTALAÇÃO. AF_12/2015 | S89: UN | T89: 10 | X89: Referência: AGETOP - 71744
A90: S | B90: 2 | C90: S | D90: 0 | E90: 1 | F90: 4 | G90: 0 | H90: 0 | I90: 0 | J90: 0 | K90: 0 | L90: F | M90: Serviço | N90: Serviço | O90: 1.4.0.0.46. | P90: SINAPI | Q90: 93014 | R90: LUVA PARA ELETRODUTO, PVC, ROSCÁVEL, DN 60 MM (2") - FORNECIMENTO E INSTALAÇÃO. AF_12/2015 | S90: UN | T90: 10 | X90: Referência: AGETOP - 71745
A91: S | B91: 2 | C91: S | D91: 0 | E91: 1 | F91: 4 | G91: 0 | H91: 0 | I91: 0 | J91: 0 | K91: 0 | L91: F | M91: Serviço | N91: Serviço | O91: 1.4.0.0.47. | P91: AGETOP | Q91: 71824 | R91: PADRÃO TRIFASICO 35 MM H=7 METROS | S91: Un | T91: 1
A92: S | B92: 2 | C92: S | D92: 0 | E92: 1 | F92: 4 | G92: 0 | H92: 0 | I92: 0 | J92: 0 | K92: 0 | L92: F | M92: Serviço | N92: Serviço | O92: 1.4.0.0.48. | P92: SINAPI | Q92: 74131/5 | R92: QUADRO DE DISTRIBUICAO DE ENERGIA DE EMBUTIR, EM CHAPA METALICA, PARA 24 DISJUNTORES TERMOMAGNETICOS MONOPOLARES, COM BARRAMENTO TRIFASICO E NEUTRO, FORNECIMENTO E INSTALACAO | S92: UN | T92: 2
A93: S | B93: 2 | C93: S | D93: 0 | E93: 1 | F93: 4 | G93: 0 | H93: 0 | I93: 0 | J93: 0 | K93: 0 | L93: F | M93: Serviço | N93: Serviço | O93: 1.4.0.0.49. | P93: AGETOP | Q93: 72425 | R93: TAMPA CEGA PLASTICA RETANGULAR 4"X2" | S93: Un | T93: 10
A94: S | B94: 2 | C94: S | D94: 0 | E94: 1 | F94: 4 | G94: 0 | H94: 0 | I94: 0 | J94: 0 | K94: 0 | L94: F | M94: Serviço | N94: Serviço | O94: 1.4.0.0.50. | P94: SINAPI | Q94: 92000 | R94: TOMADA BAIXA DE EMBUTIR (1 MÓDULO), 2P+T 10 A, INCLUINDO SUPORTE E PLACA - FORNECIMENTO E INSTALAÇÃO. AF_12/2015 | S94: UN | T94: 20 | X94: Referência: AGETOP - 72578
A95: S | B95: 2 | C95: S | D95: 0 | E95: 1 | F95: 4 | G95: 0 | H95: 0 | I95: 0 | J95: 0 | K95: 0 | L95: F | M95: Serviço | N95: Serviço | O95: 1.4.0.0.51. | P95: SINAPI | Q95: 91993 | R95: TOMADA ALTA DE EMBUTIR (1 MÓDULO), 2P+T 20 A, INCLUINDO SUPORTE E PLACA - FORNECIMENTO E INSTALAÇÃO. AF_12/2015 | S95: UN | T95: 15 | X95: Referência: AGETOP - 72585
A96: =CHOOSE(1+LOG(1+2*(ORÇAMENTO.Nivel="Nível 1")+4*(ORÇAMENTO.Nivel="Nível 2")+8*(ORÇAMENTO.Nivel="Nível 3")+16*(ORÇAMENTO.Nivel="Nível 4")+32*(ORÇAMENTO.Nivel="Serviço"),2),0,1,2,3,4,"S") -> 2 | B96: =IF(OR(C96="s",C96=0),OFFSET(B96,-1,0),C96) -> 2 | C96: =IF(OFFSET(C96,-1,0)="L",1,IF(OFFSET(C96,-1,0)=1,2,IF(OR(A96="s",A96=0),"S",IF(AND(OFFSET(C96,-1,0)=2,A96=4),3,IF(AND(OR(OFFSET(C96,-1,0)="s",OFFSET(C96,-1,0)=0),A96<>"s",A96>OFFSET(B96,-1,0)),OFFSET(B96,-1,0),A96))))) -> 2 | D96: =IF(OR(C96="S",C96=0),0,IF(ISERROR(K96),J96,SMALL(J96:K96,1))) -> 68 | E96: =IF($C96=1,OFFSET(E96,-1,0)+1,OFFSET(E96,-1,0)) -> 1 | F96: =IF($C96=1,0,IF($C96=2,OFFSET(F96,-1,0)+1,OFFSET(F96,-1,0))) -> 5 | G96: =IF(AND($C96<=2,$C96<>0),0,IF($C96=3,OFFSET(G96,-1,0)+1,OFFSET(G96,-1,0))) -> 0 | H96: =IF(AND($C96<=3,$C96<>0),0,IF($C96=4,OFFSET(H96,-1,0)+1,OFFSET(H96,-1,0))) -> 0 | I96: =IF(AND($C96<=4,$C96<>0),0,IF(AND($C96="S",$W96>0),OFFSET(I96,-1,0)+1,OFFSET(I96,-1,0))) -> 0 | J96: 108 | K96: 68 | L96: F | M96: Nível 2 | N96: Nível 2 | O96: 1.5. | P96: AGETOP | R96: INSTALAÇÕES HIDROSSANITÁRIAS | S96: -
A97: 3 | B97: 3 | C97: 3 | D97: 7 | E97: 1 | F97: 5 | G97: 1 | H97: 0 | I97: 0 | J97: 67 | K97: 7 | L97: F | M97: Nível 3 | N97: Nível 3 | O97: 1.5.1. | P97: SINAPI | R97: PEÇAS E ACESSÓRIOS | S97: -
A98: 4 | B98: 4 | C98: 4 | D98: 3 | E98: 1 | F98: 5 | G98: 1 | H98: 1 | I98: 0 | J98: 6 | K98: 3 | L98: F | M98: Nível 4 | N98: Nível 4 | O98: 1.5.1.1. | P98: SINAPI | R98: CAIXAS E CURVAS | S98: -
A99: S | B99: 4 | C99: S | D99: 0 | E99: 1 | F99: 5 | G99: 1 | H99: 1 | I99: 0 | J99: 0 | K99: 0 | L99: F | M99: Serviço | N99: Serviço | O99: 1.5.1.1.1. | P99: SINAPI | Q99: 6171 | R99: TAMPA DE CONCRETO ARMADO 60X60X5CM PARA CAIXA | S99: UN | T99: 4
A100: S | B100: 4 | C100: S | D100: 0 | E100: 1 | F100: 5 | G100: 1 | H100: 1 | I100: 0 | J100: 0 | K100: 0 | L100: F | M100: Serviço | N100: Serviço | O100: 1.5.1.1.2. | P100: AGETOP | Q100: 70715 | R100: CAIXA DE PASSAGEM 60X60X80CM FUNDO DE BRITA SEM TAMPA | S100: Un | T100: 4
A101: =CHOOSE(1+LOG(1+2*(ORÇAMENTO.Nivel="Nível 1")+4*(ORÇAMENTO.Nivel="Nível 2")+8*(ORÇAMENTO.Nivel="Nível 3")+16*(ORÇAMENTO.Nivel="Nível 4")+32*(ORÇAMENTO.Nivel="Serviço"),2),0,1,2,3,4,"S") -> 4 | B101: 4 | C101: 4 | D101: 3 | E101: 1 | F101: 5 | G101: 1 | H101: 2 | I101: =IF(AND($C101<=4,$C101<>0),0,IF(AND($C101="S",$W101>0),OFFSET(I101,-1,0)+1,OFFSET(I101,-1,0))) -> 0 | J101: 3 | K101: 16 | L101: F | M101: Nível 4 | N101: Nível 4 | O101: 1.5.1.2. | P101: SINAPI | R101: REGISTROS | S101: -
A102: S | B102: 4 | C102: S | D102: 0 | E102: =IF($C102=1,OFFSET(E102,-1,0)+1,OFFSET(E102,-1,0)) -> 1 | F102: =IF($C102=1,0,IF($C102=2,OFFSET(F102,-1,0)+1,OFFSET(F102,-1,0))) -> 5 | G102: =IF(AND($C102<=2,$C102<>0),0,IF($C102=3,OFFSET(G102,-1,0)+1,OFFSET(G102,-1,0))) -> 1 | H102: =IF(AND($C102<=3,$C102<>0),0,IF($C102=4,OFFSET(H102,-1,0)+1,OFFSET(H102,-1,0))) -> 2 | I102: 0 | J102: 0 | K102: 0 | L102: F | M102: Serviço | N102: Serviço | O102: 1.5.1.2.1. | P102: SINAPI | Q102: 94499 | R102: REGISTRO DE GAVETA BRUTO, LATÃO, ROSCÁVEL, 2 1/2, INSTALADO EM RESERVAÇÃO DE ÁGUA DE EDIFICAÇÃO QUE POSSUA RESERVATÓRIO DE FIBRA/FIBROCIMENTO  FORNECIMENTO E INSTALAÇÃO. AF_06/2016 | S102: UN | T102: 1 | X102: Referência: AGETOP - 80910
A103: S | B103: 4 | C103: S | D103: 0 | E103: 1 | F103: 5 | G103: 1 | H103: 2 | I103: 0 | J103: 0 | K103: 0 | L103: F | M103: Serviço | N103: Serviço | O103: 1.5.1.2.2. | P103: SINAPI | Q103: 94498 | R103: REGISTRO DE GAVETA BRUTO, LATÃO, ROSCÁVEL, 2, INSTALADO EM RESERVAÇÃO DE ÁGUA DE EDIFICAÇÃO QUE POSSUA RESERVATÓRIO DE FIBRA/FIBROCIMENTO  FORNECIMENTO E INSTALAÇÃO. AF_06/2016 | S103: UN | T103: 1 | X103: Referência: AGETOP - 80906
A104: 3 | B104: =IF(OR(C104="s",C104=0),OFFSET(B104,-1,0),C104) -> 3 | C104: =IF(OFFSET(C104,-1,0)="L",1,IF(OFFSET(C104,-1,0)=1,2,IF(OR(A104="s",A104=0),"S",IF(AND(OFFSET(C104,-1,0)=2,A104=4),3,IF(AND(OR(OFFSET(C104,-1,0)="s",OFFSET(C104,-1,0)=0),A104<>"s",A104>OFFSET(B104,-1,0)),OFFSET(B104,-1,0),A104))))) -> 3 | D104: =IF(OR(C104="S",C104=0),0,IF(ISERROR(K104),J104,SMALL(J104:K104,1))) -> 43 | E104: 1 | F104: 5 | G104: 2 | H104: 0 | I104: 0 | J104: 60 | K104: 43 | L104: F | M104: Nível 3 | N104: Nível 3 | O104: 1.5.2. | P104: SINAPI | R104: ÁGUA FRIA | S104: -
A105: 4 | B105: 4 | C105: 4 | D105: 6 | E105: 1 | F105: 5 | G105: 2 | H105: 1 | I105: 0 | J105: 42 | K105: 6 | L105: F | M105: Nível 4 | N105: Nível 4 | O105: 1.5.2.1. | P105: SINAPI | R105: TUBOS DE PVC SOLDÁVEL | S105: -
A106: S | B106: 4 | C106: S | D106: 0 | E106: 1 | F106: 5 | G106: 2 | H106: 1 | I106: 0 | J106: 0 | K106: 0 | L106: F | M106: Serviço | N106: Serviço | O106: 1.5.2.1.1. | P106: SINAPI | Q106: 89402 | R106: TUBO, PVC, SOLDÁVEL, DN 25MM, INSTALADO EM RAMAL DE DISTRIBUIÇÃO DE ÁGUA - FORNECIMENTO E INSTALAÇÃO. AF_12/2014 | S106: M | T106: 6 | X106: Referência: AGETOP - 81003
A107: S | B107: 4 | C107: S | D107: 0 | E107: 1 | F107: 5 | G107: 2 | H107: 1 | I107: 0 | J107: 0 | K107: 0 | L107: F | M107: Serviço | N107: Serviço | O107: 1.5.2.1.2. | P107: SINAPI | Q107: 89447 | R107: TUBO, PVC, SOLDÁVEL, DN 32MM, INSTALADO EM PRUMADA DE ÁGUA - FORNECIMENTO E INSTALAÇÃO. AF_12/2014 | S107: M | T107: 12
A108: S | B108: 4 | C108: S | D108: 0 | E108: 1 | F108: 5 | G108: 2 | H108: 1 | I108: 0 | J108: 0 | K108: 0 | L108: F | M108: Serviço | N108: Serviço | O108: 1.5.2.1.3. | P108: SINAPI | Q108: 89449 | R108: TUBO, PVC, SOLDÁVEL, DN 50MM, INSTALADO EM PRUMADA DE ÁGUA - FORNECIMENTO E INSTALAÇÃO. AF_12/2014 | S108: M | T108: 6
A109: S | B109: 4 | C109: S | D109: 0 | E109: 1 | F109: 5 | G109: 2 | H109: 1 | I109: 0 | J109: 0 | K109: 0 | L109: F | M109: Serviço | N109: Serviço | O109: 1.5.2.1.4. | P109: SINAPI | Q109: 89450 | R109: TUBO, PVC, SOLDÁVEL, DN 60MM, INSTALADO EM PRUMADA DE ÁGUA - FORNECIMENTO E INSTALAÇÃO. AF_12/2014 | S109: M | T109: 54
A110: S | B110: 4 | C110: S | D110: 0 | E110: 1 | F110: 5 | G110: 2 | H110: 1 | I110: 0 | J110: 0 | K110: 0 | L110: F | M110: Serviço | N110: Serviço | O110: 1.5.2.1.5. | P110: SINAPI | Q110: 89451 | R110: TUBO, PVC, SOLDÁVEL, DN 75MM, INSTALADO EM PRUMADA DE ÁGUA - FORNECIMENTO E INSTALAÇÃO. AF_12/2014 | S110: M | T110: 12
A111: 4 | B111: 4 | C111: 4 | D111: 6 | E111: 1 | F111: 5 | G111: 2 | H111: 2 | I111: 0 | J111: 36 | K111: 6 | L111: F | M111: Nível 4 | N111: Nível 4 | O111: 1.5.2.2. | P111: SINAPI | R111: ADAPTADORES DE PVC SOLDÁVEL | S111: -
A112: S | B112: 4 | C112: S | D112: 0 | E112: 1 | F112: 5 | G112: 2 | H112: 2 | I112: 0 | J112: 0 | K112: 0 | L112: F | M112: Serviço | N112: Serviço | O112: 1.5.2.2.1. | P112: SINAPI | Q112: 94709 | R112: ADAPTADOR COM FLANGES LIVRES, PVC, SOLDÁVEL, DN 32 MM X 1 , INSTALADO EM RESERVAÇÃO DE ÁGUA DE EDIFICAÇÃO QUE POSSUA RESERVATÓRIO DE FIBRA/FIBROCIMENTO FORNECIMENTO E INSTALAÇÃO. AF_06/2016 | S112: UN | T112: 1 | X112: Referência: AGETOP - 81042
A113: S | B113: 4 | C113: S | D113: 0 | E113: 1 | F113: 5 | G113: 2 | H113: 2 | I113: 0 | J113: 0 | K113: 0 | L113: F | M113: Serviço | N113: Serviço | O113: 1.5.2.2.2. | P113: SINAPI | Q113: 94713 | R113: ADAPTADOR COM FLANGES LIVRES, PVC, SOLDÁVEL, DN 75 MM X 2 1/2 , INSTALADO EM RESERVAÇÃO DE ÁGUA DE EDIFICAÇÃO QUE POSSUA RESERVATÓRIO DE FIBRA/FIBROCIMENTO FORNECIMENTO E INSTALAÇÃO. AF_06/2016 | S113: UN | T113: 1
A114: S | B114: 4 | C114: S | D114: 0 | E114: 1 | F114: 5 | G114: 2 | H114: 2 | I114: 0 | J114: 0 | K114: 0 | L114: F | M114: Serviço | N114: Serviço | O114: 1.5.2.2.3. | P114: SINAPI | Q114: 94712 | R114: ADAPTADOR COM FLANGES LIVRES, PVC, SOLDÁVEL, DN 60 MM X 2 , INSTALADO EM RESERVAÇÃO DE ÁGUA DE EDIFICAÇÃO QUE POSSUA RESERVATÓRIO DE FIBRA/FIBROCIMENTO FORNECIMENTO E INSTALAÇÃO. AF_06/2016 | S114: UN | T114: 1 | X114: Referência: AGETOP - 81044
A115: S | B115: 4 | C115: S | D115: 0 | E115: 1 | F115: 5 | G115: 2 | H115: 2 | I115: 0 | J115: 0 | K115: 0 | L115: F | M115: Serviço | N115: Serviço | O115: 1.5.2.2.4. | P115: SINAPI | Q115: 89610 | R115: ADAPTADOR CURTO COM BOLSA E ROSCA PARA REGISTRO, PVC, SOLDÁVEL, DN 60MM X 2, INSTALADO EM PRUMADA DE ÁGUA - FORNECIMENTO E INSTALAÇÃO. AF_12/2014 | S115: UN | T115: 2
A116: S | B116: 4 | C116: S | D116: 0 | E116: 1 | F116: 5 | G116: 2 | H116: 2 | I116: 0 | J116: 0 | K116: 0 | L116: F | M116: Serviço | N116: Serviço | O116: 1.5.2.2.5. | P116: SINAPI | Q116: 89613 | R116: ADAPTADOR CURTO COM BOLSA E ROSCA PARA REGISTRO, PVC, SOLDÁVEL, DN 75MM X 2.1/2, INSTALADO EM PRUMADA DE ÁGUA - FORNECIMENTO E INSTALAÇÃO. AF_12/2014 | S116: UN | T116: 2 | X116: Referência: AGETOP - 81071
A117: 4 | B117: 4 | C117: 4 | D117: 6 | E117: 1 | F117: 5 | G117: 2 | H117: 3 | I117: 0 | J117: 30 | K117: 6 | L117: F | M117: Nível 4 | N117: Nível 4 | O117: 1.5.2.3. | P117: SINAPI | R117: LUVAS DE PVC | S117: -
A118: S | B118: 4 | C118: S | D118: 0 | E118: 1 | F118: 5 | G118: 2 | H118: 3 | I118: 0 | J118: 0 | K118: 0 | L118: F | M118: Serviço | N118: Serviço | O118: 1.5.2.3.1. | P118: SINAPI | Q118: 89528 | R118: LUVA, PVC, SOLDÁVEL, DN 25MM, INSTALADO EM PRUMADA DE ÁGUA - FORNECIMENTO E INSTALAÇÃO. AF_12/2014 | S118: UN | T118: 2
A119: S | B119: 4 | C119: S | D119: 0 | E119: 1 | F119: 5 | G119: 2 | H119: 3 | I119: 0 | J119: 0 | K119: 0 | L119: F | M119: Serviço | N119: Serviço | O119: 1.5.2.3.2. | P119: SINAPI | Q119: 89431 | R119: LUVA, PVC, SOLDÁVEL, DN 32MM, INSTALADO EM RAMAL DE DISTRIBUIÇÃO DE ÁGUA - FORNECIMENTO E INSTALAÇÃO. AF_12/2014 | S119: UN | T119: 4 | X119: Referência: AGETOP - 81103
A120: S | B120: 4 | C120: S | D120: 0 | E120: 1 | F120: 5 | G120: 2 | H120: 3 | I120: 0 | J120: 0 | K120: 0 | L120: F | M120: Serviço | N120: Serviço | O120: 1.5.2.3.3. | P120: SINAPI | Q120: 89575 | R120: LUVA, PVC, SOLDÁVEL, DN 50MM, INSTALADO EM PRUMADA DE ÁGUA - FORNECIMENTO E INSTALAÇÃO. AF_12/2014 | S120: UN | T120: 3 | X120: Referência: AGETOP - 81105
A121: S | B121: 4 | C121: S | D121: 0 | E121: 1 | F121: 5 | G121: 2 | H121: 3 | I121: 0 | J121: 0 | K121: 0 | L121: F | M121: Serviço | N121: Serviço | O121: 1.5.2.3.4. | P121: SINAPI | Q121: 89597 | R121: LUVA, PVC, SOLDÁVEL, DN 60MM, INSTALADO EM PRUMADA DE ÁGUA - FORNECIMENTO E INSTALAÇÃO. AF_12/2014 | S121: UN | T121: 10
A122: S | B122: 4 | C122: S | D122: 0 | E122: 1 | F122: 5 | G122: 2 | H122: 3 | I122: 0 | J122: 0 | K122: 0 | L122: F | M122: Serviço | N122: Serviço | O122: 1.5.2.3.5. | P122: SINAPI | Q122: 89611 | R122: LUVA, PVC, SOLDÁVEL, DN 75MM, INSTALADO EM PRUMADA DE ÁGUA - FORNECIMENTO E INSTALAÇÃO. AF_12/2014 | S122: UN | T122: 4
A123: 4 | B123: 4 | C123: 4 | D123: 7 | E123: 1 | F123: 5 | G123: 2 | H123: 4 | I123: 0 | J123: 24 | K123: 7 | L123: F | M123: Nível 4 | N123: Nível 4 | O123: 1.5.2.4. | P123: SINAPI | R123: BUCHAS | S123: -
A124: S | B124: 4 | C124: S | D124: 0 | E124: 1 | F124: 5 | G124: 2 | H124: 4 | I124: 0 | J124: 0 | K124: 0 | L124: F | M124: Serviço | N124: Serviço | O124: 1.5.2.4.1. | P124: SINAPI | Q124: 96662 | R124: BUCHA DE REDUÇÃO, PPR, 32 X 25, CLASSE PN 25, INSTALADO EM RAMAL DE DISTRIBUIÇÃO DE ÁGUA  FORNECIMENTO E INSTALAÇÃO . AF_06/2015 | S124: UN | T124: 2
A125: S | B125: 4 | C125: S | D125: 0 | E125: 1 | F125: 5 | G125: 2 | H125: 4 | I125: 0 | J125: 0 | K125: 0 | L125: F | M125: Serviço | N125: Serviço | O125: 1.5.2.4.2. | P125: SINAPI | Q125: 89605 | R125: LUVA DE REDUÇÃO, PVC, SOLDÁVEL, DN 60MM X 50MM, INSTALADO EM PRUMADA DE ÁGUA - FORNECIMENTO E INSTALAÇÃO. AF_12/2014 | S125: UN | T125: 2
A126: S | B126: 4 | C126: S | D126: 0 | E126: 1 | F126: 5 | G126: 2 | H126: 4 | I126: 0 | J126: 0 | K126: 0 | L126: F | M126: Serviço | N126: Serviço | O126: 1.5.2.4.3. | P126: SINAPI | Q126: 89579 | R126: LUVA DE REDUÇÃO, PVC, SOLDÁVEL, DN 50MM X 25MM, INSTALADO EM PRUMADA DE ÁGUA FORNECIMENTO E INSTALAÇÃO. AF_12/2014 | S126: UN | T126: 2
A127: S | B127: 4 | C127: S | D127: 0 | E127: 1 | F127: 5 | G127: 2 | H127: 4 | I127: 0 | J127: 0 | K127: 0 | L127: F | M127: Serviço | N127: Serviço | O127: 1.5.2.4.4. | P127: AGETOP | Q127: 81180 | R127: BUCHA DE REDUCAO SOLDAVEL LONGA 50 X 32 mm | S127: Un | T127: 2
A128: S | B128: 4 | C128: S | D128: 0 | E128: 1 | F128: 5 | G128: 2 | H128: 4 | I128: 0 | J128: 0 | K128: 0 | L128: F | M128: Serviço | N128: Serviço | O128: 1.5.2.4.5. | P128: AGETOP | Q128: 81185 | R128: BUCHA DE REDUÇÃO SOLDÁVEL LONGA 75 X 50 MM | S128: un | T128: 2
A129: S | B129: 4 | C129: S | D129: 0 | E129: 1 | F129: 5 | G129: 2 | H129: 4 | I129: 0 | J129: 0 | K129: 0 | L129: F | M129: Serviço | N129: Serviço | O129: 1.5.2.4.6. | P129: AGETOP | Q129: 81166 | R129: BUCHA DE REDUCAO SOLDAVEL CURTA 75 X 60 mm | S129: Un | T129: 2
A130: 4 | B130: 4 | C130: 4 | D130: 5 | E130: 1 | F130: 5 | G130: 2 | H130: 5 | I130: 0 | J130: 17 | K130: 5 | L130: F | M130: Nível 4 | N130: Nível 4 | O130: 1.5.2.5. | P130: SINAPI | R130: JOELHO | S130: -
A131: S | B131: 4 | C131: S | D131: 0 | E131: 1 | F131: 5 | G131: 2 | H131: 5 | I131: 0 | J131: 0 | K131: 0 | L131: F | M131: Serviço | N131: Serviço | O131: 1.5.2.5.1. | P131: SINAPI | Q131: 89413 | R131: JOELHO 90 GRAUS, PVC, SOLDÁVEL, DN 32MM, INSTALADO EM RAMAL DE DISTRIBUIÇÃO DE ÁGUA - FORNECIMENTO E INSTALAÇÃO. AF_12/2014 | S131: UN | T131: 3 | X131: Referência: AGETOP - 81322
A132: S | B132: 4 | C132: S | D132: 0 | E132: 1 | F132: 5 | G132: 2 | H132: 5 | I132: 0 | J132: 0 | K132: 0 | L132: F | M132: Serviço | N132: Serviço | O132: 1.5.2.5.2. | P132: SINAPI | Q132: 89501 | R132: JOELHO 90 GRAUS, PVC, SOLDÁVEL, DN 50MM, INSTALADO EM PRUMADA DE ÁGUA - FORNECIMENTO E INSTALAÇÃO. AF_12/2014 | S132: UN | T132: 1
A133: S | B133: 4 | C133: S | D133: 0 | E133: 1 | F133: 5 | G133: 2 | H133: 5 | I133: 0 | J133: 0 | K133: 0 | L133: F | M133: Serviço | N133: Serviço | O133: 1.5.2.5.3. | P133: SINAPI | Q133: 89505 | R133: JOELHO 90 GRAUS, PVC, SOLDÁVEL, DN 60MM, INSTALADO EM PRUMADA DE ÁGUA - FORNECIMENTO E INSTALAÇÃO. AF_12/2014 | S133: UN | T133: 3 | X133: Referência: AGETOP - 81325
A134: S | B134: 4 | C134: S | D134: 0 | E134: 1 | F134: 5 | G134: 2 | H134: 5 | I134: 0 | J134: 0 | K134: 0 | L134: F | M134: Serviço | N134: Serviço | O134: 1.5.2.5.4. | P134: SINAPI | Q134: 89513 | R134: JOELHO 90 GRAUS, PVC, SOLDÁVEL, DN 75MM, INSTALADO EM PRUMADA DE ÁGUA - FORNECIMENTO E INSTALAÇÃO. AF_12/2014 | S134: UN | T134: 2 | X134: Referência: AGETOP - 81326
A135: =CHOOSE(1+LOG(1+2*(ORÇAMENTO.Nivel="Nível 1")+4*(ORÇAMENTO.Nivel="Nível 2")+8*(ORÇAMENTO.Nivel="Nível 3")+16*(ORÇAMENTO.Nivel="Nível 4")+32*(ORÇAMENTO.Nivel="Serviço"),2),0,1,2,3,4,"S") -> 4 | B135: 4 | C135: 4 | D135: 9 | E135: =IF($C135=1,OFFSET(E135,-1,0)+1,OFFSET(E135,-1,0)) -> 1 | F135: =IF($C135=1,0,IF($C135=2,OFFSET(F135,-1,0)+1,OFFSET(F135,-1,0))) -> 5 | G135: =IF(AND($C135<=2,$C135<>0),0,IF($C135=3,OFFSET(G135,-1,0)+1,OFFSET(G135,-1,0))) -> 2 | H135: =IF(AND($C135<=3,$C135<>0),0,IF($C135=4,OFFSET(H135,-1,0)+1,OFFSET(H135,-1,0))) -> 6 | I135: =IF(AND($C135<=4,$C135<>0),0,IF(AND($C135="S",$W135>0),OFFSET(I135,-1,0)+1,OFFSET(I135,-1,0))) -> 0 | J135: 12 | K135: 9 | L135: F | M135: Nível 4 | N135: Nível 4 | O135: 1.5.2.6. | P135: SINAPI | R135: TÊ | S135: -
A136: S | B136: =IF(OR(C136="s",C136=0),OFFSET(B136,-1,0),C136) -> 4 | C136: =IF(OFFSET(C136,-1,0)="L",1,IF(OFFSET(C136,-1,0)=1,2,IF(OR(A136="s",A136=0),"S",IF(AND(OFFSET(C136,-1,0)=2,A136=4),3,IF(AND(OR(OFFSET(C136,-1,0)="s",OFFSET(C136,-1,0)=0),A136<>"s",A136>OFFSET(B136,-1,0)),OFFSET(B136,-1,0),A136))))) -> S | D136: =IF(OR(C136="S",C136=0),0,IF(ISERROR(K136),J136,SMALL(J136:K136,1))) -> 0 | E136: 1 | F136: 5 | G136: 2 | H136: 6 | I136: 0 | J136: 0 | K136: 0 | L136: F | M136: Serviço | N136: Serviço | O136: 1.5.2.6.1. | P136: SINAPI | Q136: 89617 | R136: TE, PVC, SOLDÁVEL, DN 25MM, INSTALADO EM PRUMADA DE ÁGUA - FORNECIMENTO E INSTALAÇÃO. AF_12/2014 | S136: UN | T136: 1
A137: S | B137: 4 | C137: S | D137: 0 | E137: 1 | F137: 5 | G137: 2 | H137: 6 | I137: 0 | J137: 0 | K137: 0 | L137: F | M137: Serviço | N137: Serviço | O137: 1.5.2.6.2. | P137: SINAPI | Q137: 89443 | R137: TE, PVC, SOLDÁVEL, DN 32MM, INSTALADO EM RAMAL DE DISTRIBUIÇÃO DE ÁGUA - FORNECIMENTO E INSTALAÇÃO. AF_12/2014 | S137: UN | T137: 1 | X137: Referência: AGETOP - 81403
A138: S | B138: 4 | C138: S | D138: 0 | E138: 1 | F138: 5 | G138: 2 | H138: 6 | I138: 0 | J138: 0 | K138: 0 | L138: F | M138: Serviço | N138: Serviço | O138: 1.5.2.6.3. | P138: SINAPI | Q138: 89625 | R138: TE, PVC, SOLDÁVEL, DN 50MM, INSTALADO EM PRUMADA DE ÁGUA - FORNECIMENTO E INSTALAÇÃO. AF_12/2014 | S138: UN | T138: 1 | X138: Referência: AGETOP - 81405
A139: S | B139: 4 | C139: S | D139: 0 | E139: 1 | F139: 5 | G139: 2 | H139: 6 | I139: 0 | J139: 0 | K139: 0 | L139: F | M139: Serviço | N139: Serviço | O139: 1.5.2.6.4. | P139: SINAPI | Q139: 89628 | R139: TE, PVC, SOLDÁVEL, DN 60MM, INSTALADO EM PRUMADA DE ÁGUA - FORNECIMENTO E INSTALAÇÃO. AF_12/2014 | S139: UN | T139: 1 | X139: Referência: AGETOP - 81406
A140: S | B140: 4 | C140: S | D140: 0 | E140: 1 | F140: 5 | G140: 2 | H140: 6 | I140: 0 | J140: 0 | K140: 0 | L140: F | M140: Serviço | N140: Serviço | O140: 1.5.2.6.5. | P140: SINAPI | Q140: 89629 | R140: TE, PVC, SOLDÁVEL, DN 75MM, INSTALADO EM PRUMADA DE ÁGUA - FORNECIMENTO E INSTALAÇÃO. AF_12/2014 | S140: UN | T140: 1 | X140: Referência: AGETOP - 81407
A141: S | B141: 4 | C141: S | D141: 0 | E141: 1 | F141: 5 | G141: 2 | H141: 6 | I141: 0 | J141: 0 | K141: 0 | L141: F | M141: Serviço | N141: Serviço | O141: 1.5.2.6.6. | P141: SINAPI | Q141: 89627 | R141: TÊ DE REDUÇÃO, PVC, SOLDÁVEL, DN 50MM X 25MM, INSTALADO EM PRUMADA DE ÁGUA - FORNECIMENTO E INSTALAÇÃO. AF_12/2014 | S141: UN | T141: 1
A142: S | B142: 4 | C142: S | D142: 0 | E142: 1 | F142: 5 | G142: 2 | H142: 6 | I142: 0 | J142: 0 | K142: 0 | L142: F | M142: Serviço | N142: Serviço | O142: 1.5.2.6.7. | P142: AGETOP | Q142: 81425 | R142: TE REDUCAO 90 GRAUS SOLDAVEL 50 X 32 mm | S142: Un | T142: 1
A143: S | B143: 4 | C143: S | D143: 0 | E143: 1 | F143: 5 | G143: 2 | H143: 6 | I143: 0 | J143: 0 | K143: 0 | L143: F | M143: Serviço | N143: Serviço | O143: 1.5.2.6.8. | P143: SINAPI | Q143: 94698 | R143: TÊ DE REDUÇÃO, PVC, SOLDÁVEL, DN 75 MM X 50 MM, INSTALADO EM RESERVAÇÃO DE ÁGUA DE EDIFICAÇÃO QUE POSSUA RESERVATÓRIO DE FIBRA/FIBROCIMENTO FORNECIMENTO E INSTALAÇÃO. AF_06/2016 | S143: UN | T143: 2 | X143: Referência: AGETOP - 81427
A144: 4 | B144: 4 | C144: 4 | D144: 3 | E144: 1 | F144: 5 | G144: 2 | H144: 7 | I144: 0 | J144: 3 | L144: F | M144: Nível 4 | N144: Nível 4 | O144: 1.5.2.7. | P144: SINAPI | R144: ADESIVOS | S144: -
A145: S | B145: 4 | C145: S | D145: 0 | E145: 1 | F145: 5 | G145: 2 | H145: 7 | I145: 0 | J145: 0 | K145: 0 | L145: F | M145: Serviço | N145: Serviço | O145: 1.5.2.7.1. | P145: AGETOP | Q145: 81501 | R145: ADESIVO PLASTICO - FRASCO 850 G | S145: Un | T145: 3
A146: S | B146: 4 | C146: S | D146: 0 | E146: 1 | F146: 5 | G146: 2 | H146: 7 | I146: 0 | J146: 0 | K146: 0 | L146: F | M146: Serviço | N146: Serviço | O146: 1.5.2.7.2. | P146: AGETOP | Q146: 81504 | R146: SOLUCAO LIMPADORA 1000 CM3 | S146: Un | T146: 3
A147: 3 | B147: 3 | C147: 3 | D147: 5 | E147: 1 | F147: 5 | G147: 3 | H147: 0 | I147: 0 | J147: =IF(OR($C147="S",$C147=0),0,MATCH(0,OFFSET($D147,1,$C147,ROW($C$575)-ROW($C147)),0)) -> 17 | K147: =IF(OR($C147="S",$C147=0),0,MATCH(OFFSET($D147,0,$C147)+1,OFFSET($D147,1,$C147,ROW($C$575)-ROW($C147)),0)) -> 5 | L147: F | M147: Nível 3 | N147: Nível 3 | O147: 1.5.3. | P147: SINAPI | R147: ESGOTO SANITÁRIO | S147: -
A148: =CHOOSE(1+LOG(1+2*(ORÇAMENTO.Nivel="Nível 1")+4*(ORÇAMENTO.Nivel="Nível 2")+8*(ORÇAMENTO.Nivel="Nível 3")+16*(ORÇAMENTO.Nivel="Nível 4")+32*(ORÇAMENTO.Nivel="Serviço"),2),0,1,2,3,4,"S") -> 4 | B148: 4 | C148: 4 | D148: 2 | E148: 1 | F148: 5 | G148: 3 | H148: 1 | I148: =IF(AND($C148<=4,$C148<>0),0,IF(AND($C148="S",$W148>0),OFFSET(I148,-1,0)+1,OFFSET(I148,-1,0))) -> 0 | J148: 4 | K148: 2 | L148: F | M148: Nível 4 | N148: Nível 4 | O148: 1.5.3.1. | P148: SINAPI | R148: LUVAS | S148: -
A149: S | B149: 4 | C149: S | D149: 0 | E149: 1 | F149: 5 | G149: 3 | H149: 1 | I149: 0 | J149: 0 | K149: 0 | L149: F | M149: Serviço | N149: Serviço | O149: 1.5.3.1.1. | P149: SINAPI | Q149: 89778 | R149: LUVA SIMPLES, PVC, SERIE NORMAL, ESGOTO PREDIAL, DN 100 MM, JUNTA ELÁSTICA, FORNECIDO E INSTALADO EM RAMAL DE DESCARGA OU RAMAL DE ESGOTO SANITÁRIO. AF_12/2014 | S149: UN | T149: 11 | X149: Referência: AGETOP - 82004
A150: 4 | B150: =IF(OR(C150="s",C150=0),OFFSET(B150,-1,0),C150) -> 4 | C150: =IF(OFFSET(C150,-1,0)="L",1,IF(OFFSET(C150,-1,0)=1,2,IF(OR(A150="s",A150=0),"S",IF(AND(OFFSET(C150,-1,0)=2,A150=4),3,IF(AND(OR(OFFSET(C150,-1,0)="s",OFFSET(C150,-1,0)=0),A150<>"s",A150>OFFSET(B150,-1,0)),OFFSET(B150,-1,0),A150))))) -> 4 | D150: =IF(OR(C150="S",C150=0),0,IF(ISERROR(K150),J150,SMALL(J150:K150,1))) -> 2 | E150: =IF($C150=1,OFFSET(E150,-1,0)+1,OFFSET(E150,-1,0)) -> 1 | F150: =IF($C150=1,0,IF($C150=2,OFFSET(F150,-1,0)+1,OFFSET(F150,-1,0))) -> 5 | G150: =IF(AND($C150<=2,$C150<>0),0,IF($C150=3,OFFSET(G150,-1,0)+1,OFFSET(G150,-1,0))) -> 3 | H150: =IF(AND($C150<=3,$C150<>0),0,IF($C150=4,OFFSET(H150,-1,0)+1,OFFSET(H150,-1,0))) -> 2 | I150: 0 | J150: 2 | L150: F | M150: Nível 4 | N150: Nível 4 | O150: 1.5.3.2. | P150: SINAPI | R150: TUBOS | S150: -
A151: S | B151: 4 | C151: S | D151: 0 | E151: 1 | F151: 5 | G151: 3 | H151: 2 | I151: 0 | J151: 0 | K151: 0 | L151: F | M151: Serviço | N151: Serviço | O151: 1.5.3.2.1. | P151: SINAPI | Q151: 89800 | R151: TUBO PVC, SERIE NORMAL, ESGOTO PREDIAL, DN 100 MM, FORNECIDO E INSTALADO EM PRUMADA DE ESGOTO SANITÁRIO OU VENTILAÇÃO. AF_12/2014 | S151: M | T151: 66
A152: 3 | B152: 3 | C152: 3 | D152: 4 | E152: 1 | F152: 5 | G152: 4 | H152: 0 | I152: 0 | J152: 12 | K152: 4 | L152: F | M152: Nível 3 | N152: Nível 3 | O152: 1.5.4. | P152: SINAPI | R152: OUTROS | S152: -
A153: S | B153: 3 | C153: S | D153: 0 | E153: 1 | F153: 5 | G153: 4 | H153: 0 | I153: 0 | J153: 0 | K153: 0 | L153: F | M153: Serviço | N153: Serviço | O153: 1.5.4.0.1. | P153: AGETOP | Q153: 80845 | R153: CAIXA DE ALVENARIA 20x20x25 CM (REVESTIMENTO IMPERMEABILIZADO), FUNDO DE BRITA SEM TAMPA - PARA REGISTRO/TORNEIRA JARDIM | S153: Un | T153: 2
A154: S | B154: 3 | C154: S | D154: 0 | E154: 1 | F154: 5 | G154: 4 | H154: 0 | I154: 0 | J154: 0 | K154: 0 | L154: F | M154: Serviço | N154: Serviço | O154: 1.5.4.0.2. | P154: AGETOP | Q154: 80840 | R154: TAMPA T-5 ARTICULADA 20X20 | S154: Un | T154: 2
A155: S | B155: 3 | C155: S | D155: 0 | E155: 1 | F155: 5 | G155: 4 | H155: 0 | I155: 0 | J155: 0 | K155: 0 | L155: F | M155: Serviço | N155: Serviço | O155: 1.5.4.0.3. | P155: AGETOP | Q155: 81882 | R155: RES.METALICO TAÇA AÇO PATINÁVEL-V=15M3-COL.SEC.H=6M+FUNDAÇÃO+LOGOTIPO | S155: Un | T155: 1
A156: 3 | B156: 3 | C156: 3 | D156: 8 | E156: 1 | F156: 5 | G156: 5 | H156: 0 | I156: 0 | J156: 8 | L156: F | M156: Nível 3 | N156: Nível 3 | O156: 1.5.5. | P156: SINAPI | R156: INCENDIO | S156: -
A157: S | B157: 3 | C157: S | D157: 0 | E157: 1 | F157: 5 | G157: 5 | H157: 0 | I157: 0 | J157: 0 | K157: 0 | L157: F | M157: Serviço | N157: Serviço | O157: 1.5.5.0.1. | P157: AGETOP | Q157: 85006 | R157: EXTINTOR MULTI USO EM PO A B C (6 KG) - CAPACIDADE EXTINTORA 3A 20BC | S157: un | T157: 3
A158: S | B158: 3 | C158: S | D158: 0 | E158: 1 | F158: 5 | G158: 5 | H158: 0 | I158: 0 | J158: 0 | K158: 0 | L158: F | M158: Serviço | N158: Serviço | O158: 1.5.5.0.2. | P158: AGETOP | Q158: 85005 | R158: EXTINTOR AGUA PRESSURIZADA (10 LITROS) - CAPACIDADE EXTINTORA 2A | S158: Un | T158: 2
A159: S | B159: 3 | C159: S | D159: 0 | E159: 1 | F159: 5 | G159: 5 | H159: 0 | I159: 0 | J159: 0 | K159: 0 | L159: F | M159: Serviço | N159: Serviço | O159: 1.5.5.0.3. | P159: AGETOP | Q159: 85003 | R159: EXTINTOR PO QUIMICO SECO (6 KG) - CAPACIDADE EXTINTORA 20 BC | S159: Un | T159: 1
A160: S | B160: 3 | C160: S | D160: 0 | E160: 1 | F160: 5 | G160: 5 | H160: 0 | I160: 0 | J160: 0 | K160: 0 | L160: F | M160: Serviço | N160: Serviço | O160: 1.5.5.0.4. | P160: COMPOSIÇÃO | Q160: COMP 024_SEE | R160: SINALIZADOR FOTOLUMINESCENTE PARA EXTINTOR | S160: UN | T160: 6
A161: S | B161: 3 | C161: S | D161: 0 | E161: 1 | F161: 5 | G161: 5 | H161: 0 | I161: 0 | J161: 0 | K161: 0 | L161: F | M161: Serviço | N161: Serviço | O161: 1.5.5.0.5. | P161: COMPOSIÇÃO | Q161: COMP 025_SEE | R161: SINALIZADOR FOTOLUMINESCENTE DE EMERGÊNCIA | S161: UN | T161: 15
A162: S | B162: 3 | C162: S | D162: 0 | E162: 1 | F162: 5 | G162: 5 | H162: 0 | I162: 0 | J162: 0 | K162: 0 | L162: F | M162: Serviço | N162: Serviço | O162: 1.5.5.0.6. | P162: COMPOSIÇÃO | Q162: COMP 277_SEE | R162: MARCAÇÃO NO PISO - 1X1 M PARA EXTINTOR | S162: M2 | T162: 6
A163: S | B163: 3 | C163: S | D163: 0 | E163: 1 | F163: 5 | G163: 5 | H163: 0 | I163: 0 | J163: 0 | K163: 0 | L163: F | M163: Serviço | N163: Serviço | O163: 1.5.5.0.7. | P163: AGETOP | Q163: 71598 | R163: LUMINÁRIA DE EMERGÊNCIA 30 LEDS | S163: un | T163: 8
A164: =CHOOSE(1+LOG(1+2*(ORÇAMENTO.Nivel="Nível 1")+4*(ORÇAMENTO.Nivel="Nível 2")+8*(ORÇAMENTO.Nivel="Nível 3")+16*(ORÇAMENTO.Nivel="Nível 4")+32*(ORÇAMENTO.Nivel="Serviço"),2),0,1,2,3,4,"S") -> 2 | B164: =IF(OR(C164="s",C164=0),OFFSET(B164,-1,0),C164) -> 2 | C164: =IF(OFFSET(C164,-1,0)="L",1,IF(OFFSET(C164,-1,0)=1,2,IF(OR(A164="s",A164=0),"S",IF(AND(OFFSET(C164,-1,0)=2,A164=4),3,IF(AND(OR(OFFSET(C164,-1,0)="s",OFFSET(C164,-1,0)=0),A164<>"s",A164>OFFSET(B164,-1,0)),OFFSET(B164,-1,0),A164))))) -> 2 | D164: =IF(OR(C164="S",C164=0),0,IF(ISERROR(K164),J164,SMALL(J164:K164,1))) -> 2 | E164: =IF($C164=1,OFFSET(E164,-1,0)+1,OFFSET(E164,-1,0)) -> 1 | F164: =IF($C164=1,0,IF($C164=2,OFFSET(F164,-1,0)+1,OFFSET(F164,-1,0))) -> 6 | G164: =IF(AND($C164<=2,$C164<>0),0,IF($C164=3,OFFSET(G164,-1,0)+1,OFFSET(G164,-1,0))) -> 0 | H164: =IF(AND($C164<=3,$C164<>0),0,IF($C164=4,OFFSET(H164,-1,0)+1,OFFSET(H164,-1,0))) -> 0 | I164: =IF(AND($C164<=4,$C164<>0),0,IF(AND($C164="S",$W164>0),OFFSET(I164,-1,0)+1,OFFSET(I164,-1,0))) -> 0 | J164: 40 | K164: 2 | L164: F | M164: Nível 2 | N164: Nível 2 | O164: 1.6. | R164: ESTRUTURA DE MADEIRA | S164: -
A165: S | B165: 2 | C165: S | D165: 0 | E165: 1 | F165: 6 | G165: 0 | H165: 0 | I165: 0 | J165: 0 | K165: 0 | L165: F | M165: Serviço | N165: Serviço | O165: 1.6.0.0.1. | P165: SINAPI | Q165: 92541 | R165: TRAMA DE MADEIRA COMPOSTA POR RIPAS, CAIBROS E TERÇAS PARA TELHADOS DE ATÉ 2 ÁGUAS PARA TELHA CERÂMICA CAPA-CANAL, INCLUSO TRANSPORTE VERTICAL. AF_12/2015 | S165: M2 | T165: 200 | X165: Referência: AGETOP - 140202
A166: 2 | B166: 2 | C166: 2 | D166: 7 | E166: 1 | F166: 7 | G166: 0 | H166: 0 | I166: 0 | J166: 38 | K166: 7 | L166: F | M166: Nível 2 | N166: Nível 2 | O166: 1.7. | R166: COBERTURAS | S166: -
A167: 3 | B167: 3 | C167: 3 | D167: 6 | E167: 1 | F167: 7 | G167: 1 | H167: 0 | I167: 0 | J167: 6 | K167: 9 | L167: F | M167: Nível 3 | N167: Nível 3 | O167: 1.7.1. | R167: CERÂMICA | S167: -
A168: S | B168: 3 | C168: S | D168: 0 | E168: 1 | F168: 7 | G168: 1 | H168: 0 | I168: 0 | J168: 0 | K168: 0 | L168: F | M168: Serviço | N168: Serviço | O168: 1.7.1.0.1. | P168: SINAPI | Q168: 94445 | R168: TELHAMENTO COM TELHA CERÂMICA CAPA-CANAL, TIPO PLAN, COM ATÉ 2 ÁGUAS, INCLUSO TRANSPORTE VERTICAL. AF_06/2016 | S168: M2 | T168: 400 | X168: Referência: AGETOP - 160401
A169: S | B169: 3 | C169: S | D169: 0 | E169: 1 | F169: 7 | G169: 1 | H169: 0 | I169: 0 | J169: 0 | K169: 0 | L169: F | M169: Serviço | N169: Serviço | O169: 1.7.1.0.2. | P169: SINAPI | Q169: 94221 | R169: CUMEEIRA PARA TELHA CERÂMICA EMBOÇADA COM ARGAMASSA TRAÇO 1:2:9 (CIMENTO, CAL E AREIA) PARA TELHADOS COM ATÉ 2 ÁGUAS, INCLUSO TRANSPORTE VERTICAL. AF_06/2016 | S169: M | T169: 86
A170: S | B170: 3 | C170: S | D170: 0 | E170: 1 | F170: 7 | G170: 1 | H170: 0 | I170: 0 | J170: 0 | K170: 0 | L170: F | M170: Serviço | N170: Serviço | O170: 1.7.1.0.3. | P170: SINAPI | Q170: 94224 | R170: EMBOÇAMENTO COM ARGAMASSA TRAÇO 1:2:9 (CIMENTO, CAL E AREIA). AF_06/2016 | S170: M | T170: 189 | X170: Referência: AGETOP - 160403
A171: S | B171: 3 | C171: S | D171: 0 | E171: 1 | F171: 7 | G171: 1 | H171: 0 | I171: 0 | J171: 0 | K171: 0 | L171: F | M171: Serviço | N171: Serviço | O171: 1.7.1.0.4. | P171: SINAPI | Q171: 94224 | R171: EMBOÇAMENTO COM ARGAMASSA TRAÇO 1:2:9 (CIMENTO, CAL E AREIA). AF_06/2016 | S171: M | T171: 59 | X171: Referência: AGETOP - 160404
A172: S | B172: 3 | C172: S | D172: 0 | E172: 1 | F172: 7 | G172: 1 | H172: 0 | I172: 0 | J172: 0 | K172: 0 | L172: F | M172: Serviço | N172: Serviço | O172: 1.7.1.0.5. | P172: AGETOP | Q172: 160421 | R172: MAO DE OBRA PARA COBERTURA C/TELHA COLONIAL PLAN | S172: m2 | T172: 800
A173: =CHOOSE(1+LOG(1+2*(ORÇAMENTO.Nivel="Nível 1")+4*(ORÇAMENTO.Nivel="Nível 2")+8*(ORÇAMENTO.Nivel="Nível 3")+16*(ORÇAMENTO.Nivel="Nível 4")+32*(ORÇAMENTO.Nivel="Serviço"),2),0,1,2,3,4,"S") -> 2 | B173: 2 | C173: 2 | D173: 5 | E173: =IF($C173=1,OFFSET(E173,-1,0)+1,OFFSET(E173,-1,0)) -> 1 | F173: =IF($C173=1,0,IF($C173=2,OFFSET(F173,-1,0)+1,OFFSET(F173,-1,0))) -> 8 | G173: =IF(AND($C173<=2,$C173<>0),0,IF($C173=3,OFFSET(G173,-1,0)+1,OFFSET(G173,-1,0))) -> 0 | H173: =IF(AND($C173<=3,$C173<>0),0,IF($C173=4,OFFSET(H173,-1,0)+1,OFFSET(H173,-1,0))) -> 0 | I173: =IF(AND($C173<=4,$C173<>0),0,IF(AND($C173="S",$W173>0),OFFSET(I173,-1,0)+1,OFFSET(I173,-1,0))) -> 0 | J173: 31 | K173: 5 | L173: F | M173: Nível 2 | N173: Nível 2 | O173: 1.8. | R173: FORROS | S173: -
A174: 3 | B174: 3 | C174: 3 | D174: 2 | E174: 1 | F174: 8 | G174: 1 | H174: 0 | I174: 0 | J174: 4 | K174: 2 | L174: F | M174: Nível 3 | N174: Nível 3 | O174: 1.8.1. | P174: SINAPI | R174: PVC SEM ESTRUTURA | S174: -
A175: S | B175: 3 | C175: S | D175: 0 | E175: 1 | F175: 8 | G175: 1 | H175: 0 | I175: 0 | J175: 0 | K175: 0 | L175: F | M175: Serviço | N175: Serviço | O175: 1.8.1.0.1. | P175: AGETOP | Q175: 210461 | R175: FORRO DE PVC SEM ESTRUTURA DE METALON (COM REPINTURA DA ESTRUTURA COM TINTA ALQUÍDICA D.F.) | S175: m2 | T175: 296
A176: 3 | B176: =IF(OR(C176="s",C176=0),OFFSET(B176,-1,0),C176) -> 3 | C176: =IF(OFFSET(C176,-1,0)="L",1,IF(OFFSET(C176,-1,0)=1,2,IF(OR(A176="s",A176=0),"S",IF(AND(OFFSET(C176,-1,0)=2,A176=4),3,IF(AND(OR(OFFSET(C176,-1,0)="s",OFFSET(C176,-1,0)=0),A176<>"s",A176>OFFSET(B176,-1,0)),OFFSET(B176,-1,0),A176))))) -> 3 | D176: =IF(OR(C176="S",C176=0),0,IF(ISERROR(K176),J176,SMALL(J176:K176,1))) -> 2 | E176: 1 | F176: 8 | G176: 2 | H176: 0 | I176: 0 | J176: 2 | K176: 20 | L176: F | M176: Nível 3 | N176: Nível 3 | O176: 1.8.2. | P176: SINAPI | R176: PVC COM ESTRUTURA | S176: -
A177: S | B177: 3 | C177: S | D177: 0 | E177: 1 | F177: 8 | G177: 2 | H177: 0 | I177: 0 | J177: 0 | K177: 0 | L177: F | M177: Serviço | N177: Serviço | O177: 1.8.2.0.1. | P177: SINAPI | Q177: 96116 | R177: FORRO EM RÉGUAS DE PVC, FRISADO, PARA AMBIENTES COMERCIAIS, INCLUSIVE ESTRUTURA DE FIXAÇÃO. AF_05/2017_P | S177: M2 | T177: 296 | X177: Referência: AGETOP - 210460
A178: 2 | B178: 2 | C178: 2 | D178: 5 | E178: 1 | F178: 9 | G178: 0 | H178: 0 | I178: 0 | J178: 26 | K178: 5 | L178: F | M178: Nível 2 | N178: Nível 2 | O178: 1.9. | R178: REVESTIMENTO DE PISO | S178: -
A179: 3 | B179: 3 | C179: 3 | D179: 2 | E179: 1 | F179: 9 | G179: 1 | H179: 0 | I179: 0 | J179: 4 | K179: 2 | L179: F | M179: Nível 3 | N179: Nível 3 | O179: 1.9.1. | R179: GRANITINA | S179: -
A180: S | B180: 3 | C180: S | D180: 0 | E180: 1 | F180: 9 | G180: 1 | H180: 0 | I180: 0 | J180: 0 | K180: 0 | L180: F | M180: Serviço | N180: Serviço | O180: 1.9.1.0.1. | P180: AGETOP | Q180: 221104 | R180: RASPAGEM E APLICAÇÃO RESINA ACRÍLICA DUAS DEMÃOS | S180: m2 | T180: 750
A181: 3 | B181: 3 | C181: 3 | D181: 2 | E181: 1 | F181: 9 | G181: 2 | H181: 0 | I181: 0 | J181: 2 | K181: 15 | L181: F | M181: Nível 3 | N181: Nível 3 | O181: 1.9.2. | R181: PASSEIO (CALÇADA) | S181: -
A182: S | B182: 3 | C182: S | D182: 0 | E182: 1 | F182: 9 | G182: 2 | H182: 0 | I182: 0 | J182: 0 | K182: 0 | L182: F | M182: Serviço | N182: Serviço | O182: 1.9.2.0.1. | P182: AGETOP | Q182: 220100 | R182: PASSEIO PROTECAO EM CONC.DESEMPEN.5 CM 1:2,5:3,5 ( INCLUSO ESPELHO DE 60CM/ESCAVAÇÃO/REATERRO/APILOAMENTO/ATERRO INTERNO) | S182: m2 | T182: 60
A183: 2 | B183: 2 | C183: 2 | D183: 6 | E183: 1 | F183: 10 | G183: 0 | H183: 0 | I183: 0 | J183: 21 | K183: 6 | L183: F | M183: Nível 2 | N183: Nível 2 | O183: 1.10. | R183: ADMINISTRAÇÃO | S183: -
A184: 3 | B184: 3 | C184: 3 | D184: 3 | E184: 1 | F184: 10 | G184: 1 | H184: 0 | I184: 0 | J184: 5 | K184: 3 | L184: F | M184: Nível 3 | N184: Nível 3 | O184: 1.10.1. | R184: MENSALISTAS | S184: -
A185: S | B185: 3 | C185: S | D185: 0 | E185: 1 | F185: 10 | G185: 1 | H185: 0 | I185: 0 | J185: 0 | K185: 0 | L185: F | M185: Serviço | N185: Serviço | O185: 1.10.1.0.1. | P185: SINAPI | Q185: 90778 | R185: ENGENHEIRO CIVIL DE OBRA PLENO COM ENCARGOS COMPLEMENTARES | S185: H | T185: 88 | X185: Referência: AGETOP - 250101
A186: S | B186: 3 | C186: S | D186: 0 | E186: 1 | F186: 10 | G186: 1 | H186: 0 | I186: 0 | J186: 0 | K186: 0 | L186: F | M186: Serviço | N186: Serviço | O186: 1.10.1.0.2. | P186: SINAPI | Q186: 90776 | R186: ENCARREGADO GERAL COM ENCARGOS COMPLEMENTARES | S186: H | T186: 440 | X186: Referência: AGETOP - 250103
A187: 3 | B187: 3 | C187: 3 | D187: 2 | E187: 1 | F187: 10 | G187: 2 | H187: 0 | I187: 0 | J187: 2 | K187: 9 | L187: F | M187: Nível 3 | N187: Nível 3 | O187: 1.10.2. | R187: LAUDO DE ESTANQUEIDADE | S187: -
A188: S | B188: 3 | C188: S | D188: 0 | E188: 1 | F188: 10 | G188: 2 | H188: 0 | I188: 0 | J188: 0 | K188: 0 | L188: F | M188: Serviço | N188: Serviço | O188: 1.10.2.0.1. | P188: SINAPI | Q188: 90778 | R188: ENGENHEIRO CIVIL DE OBRA PLENO COM ENCARGOS COMPLEMENTARES | S188: H | T188: 16 | X188: Referência: AGETOP - 250101
A189: 2 | B189: 2 | C189: 2 | D189: 13 | E189: 1 | F189: 11 | G189: 0 | H189: 0 | I189: 0 | J189: 15 | K189: 13 | L189: F | M189: Nível 2 | N189: Nível 2 | O189: 1.11. | R189: PINTURA | S189: -
A190: 3 | B190: 3 | C190: 3 | D190: 4 | E190: 1 | F190: 11 | G190: 1 | H190: 0 | I190: 0 | J190: 12 | K190: 4 | L190: F | M190: Nível 3 | N190: Nível 3 | O190: 1.11.1. | R190: ESMALTE SINTÉTICO | S190: -
A191: S | B191: 3 | C191: S | D191: 0 | E191: 1 | F191: 11 | G191: 1 | H191: 0 | I191: 0 | J191: 0 | K191: 0 | L191: F | M191: Serviço | N191: Serviço | O191: 1.11.1.0.1. | P191: AGETOP | Q191: 260105 | R191: REMOCAO DE PINTURA ANTIGA A OLEO OU ESMALTE | S191: m2 | T191: 235
A192: S | B192: 3 | C192: S | D192: 0 | E192: 1 | F192: 11 | G192: 1 | H192: 0 | I192: 0 | J192: 0 | K192: 0 | L192: F | M192: Serviço | N192: Serviço | O192: 1.11.1.0.2. | P192: SINAPI | Q192: 88497 | R192: APLICAÇÃO E LIXAMENTO DE MASSA LÁTEX EM PAREDES, DUAS DEMÃOS. AF_06/2014 | S192: M2 | T192: 235 | X192: Referência: AGETOP - 261300
A193: =CHOOSE(1+LOG(1+2*(ORÇAMENTO.Nivel="Nível 1")+4*(ORÇAMENTO.Nivel="Nível 2")+8*(ORÇAMENTO.Nivel="Nível 3")+16*(ORÇAMENTO.Nivel="Nível 4")+32*(ORÇAMENTO.Nivel="Serviço"),2),0,1,2,3,4,"S") -> S | B193: 3 | C193: S | D193: 0 | E193: 1 | F193: 11 | G193: 1 | H193: 0 | I193: =IF(AND($C193<=4,$C193<>0),0,IF(AND($C193="S",$W193>0),OFFSET(I193,-1,0)+1,OFFSET(I193,-1,0))) -> 0 | J193: 0 | K193: 0 | L193: F | M193: Serviço | N193: Serviço | O193: 1.11.1.0.3. | P193: AGETOP | Q193: 261550 | R193: PINT.ESMALTE SINT.PAREDES - 2 DEM.C/SELADOR | S193: m2 | T193: 1015
A194: 3 | B194: 3 | C194: 3 | D194: 2 | E194: 1 | F194: 11 | G194: 2 | H194: 0 | I194: 0 | J194: 8 | K194: 2 | L194: F | M194: Nível 3 | N194: Nível 3 | O194: 1.11.2. | P194: AGETOP | R194: LÁTEX ACRÍLICA | S194: -
A195: S | B195: 3 | C195: S | D195: 0 | E195: =IF($C195=1,OFFSET(E195,-1,0)+1,OFFSET(E195,-1,0)) -> 1 | F195: =IF($C195=1,0,IF($C195=2,OFFSET(F195,-1,0)+1,OFFSET(F195,-1,0))) -> 11 | G195: =IF(AND($C195<=2,$C195<>0),0,IF($C195=3,OFFSET(G195,-1,0)+1,OFFSET(G195,-1,0))) -> 2 | H195: =IF(AND($C195<=3,$C195<>0),0,IF($C195=4,OFFSET(H195,-1,0)+1,OFFSET(H195,-1,0))) -> 0 | I195: 0 | J195: 0 | K195: 0 | L195: F | M195: Serviço | N195: Serviço | O195: 1.11.2.0.1. | P195: SINAPI | Q195: 88489 | R195: APLICAÇÃO MANUAL DE PINTURA COM TINTA LÁTEX ACRÍLICA EM PAREDES, DUAS DEMÃOS. AF_06/2014 | S195: M2 | T195: 1015 | X195: Referência: AGETOP - 261001
A196: 3 | B196: 3 | C196: 3 | D196: 2 | E196: 1 | F196: 11 | G196: 3 | H196: 0 | I196: 0 | J196: 6 | K196: 2 | L196: F | M196: Nível 3 | N196: Nível 3 | O196: 1.11.3. | P196: AGETOP | R196: EXTERNA | S196: -
A197: S | B197: =IF(OR(C197="s",C197=0),OFFSET(B197,-1,0),C197) -> 3 | C197: =IF(OFFSET(C197,-1,0)="L",1,IF(OFFSET(C197,-1,0)=1,2,IF(OR(A197="s",A197=0),"S",IF(AND(OFFSET(C197,-1,0)=2,A197=4),3,IF(AND(OR(OFFSET(C197,-1,0)="s",OFFSET(C197,-1,0)=0),A197<>"s",A197>OFFSET(B197,-1,0)),OFFSET(B197,-1,0),A197))))) -> S | D197: =IF(OR(C197="S",C197=0),0,IF(ISERROR(K197),J197,SMALL(J197:K197,1))) -> 0 | E197: 1 | F197: 11 | G197: 3 | H197: 0 | I197: 0 | J197: 0 | K197: 0 | L197: F | M197: Serviço | N197: Serviço | O197: 1.11.3.0.1. | P197: AGETOP | Q197: 260202 | R197: CAIACAO DUAS DEMAOS MUROS E PAREDES - (OB.C.) | S197: m2 | T197: 440
A198: 3 | B198: 3 | C198: 3 | D198: 2 | E198: 1 | F198: 11 | G198: 4 | H198: 0 | I198: 0 | J198: 4 | K198: 2 | L198: F | M198: Nível 3 | N198: Nível 3 | O198: 1.11.4. | P198: AGETOP | R198: ESQUADRIAS EXISTENTES | S198: -
A199: S | B199: 3 | C199: S | D199: 0 | E199: 1 | F199: 11 | G199: 4 | H199: 0 | I199: 0 | J199: 0 | K199: 0 | L199: F | M199: Serviço | N199: Serviço | O199: 1.11.4.0.1. | P199: SINAPI | Q199: 73924/3 | R199: PINTURA ESMALTE FOSCO, DUAS DEMAOS, SOBRE SUPERFICIE METALICA | S199: M2 | T199: 275 | X199: Referência: AGETOP - 261503
A200: 3 | B200: 3 | C200: 3 | D200: 2 | E200: 1 | F200: 11 | G200: 5 | H200: 0 | I200: 0 | J200: 2 | L200: F | M200: Nível 3 | N200: Nível 3 | O200: 1.11.5. | P200: AGETOP | R200: OUTROS | S200: -
A201: S | B201: 3 | C201: S | D201: 0 | E201: 1 | F201: 11 | G201: 5 | H201: 0 | I201: 0 | J201: 0 | K201: 0 | L201: F | M201: Serviço | N201: Serviço | O201: 1.11.5.0.1. | P201: AGETOP | Q201: 261620 | R201: LETREIRO MÉDIO A GRANDE PORTE EM PAREDE FEITO A PINCEL | S201: m2 | T201: 7.2
A202: 2 | B202: 2 | C202: 2 | D202: 2 | E202: 1 | F202: 12 | G202: 0 | H202: 0 | I202: 0 | J202: 2 | K202: 178 | L202: F | M202: Nível 2 | N202: Nível 2 | O202: 1.12. | R202: DIVERSOS | S202: -
A203: S | B203: 2 | C203: S | D203: 0 | E203: 1 | F203: 12 | G203: 0 | H203: 0 | I203: 0 | J203: 0 | K203: 0 | L203: F | M203: Serviço | N203: Serviço | O203: 1.12.0.0.1. | P203: COMPOSIÇÃO | Q203: COMP 402_SEE | R203: QD.GIZ EMBOCO/LAM.MELAMINICO COMPL.-ESC.2000 4,2X1,20M | S203: M2 | T203: 35
A204: 1 | B204: 1 | C204: 1 | D204: 6 | E204: 2 | F204: 0 | G204: 0 | H204: 0 | I204: 0 | J204: 371 | K204: 6 | L204: F | M204: Nível 1 | N204: Nível 1 | O204: 2. | P204: SINAPI | R204: ACESSIBILIDADE | S204: -
A205: 2 | B205: 2 | C205: 2 | D205: 2 | E205: 2 | F205: 1 | G205: 0 | H205: 0 | I205: 0 | J205: 5 | K205: 2 | L205: F | M205: Nível 2 | N205: Nível 2 | O205: 2.1. | P205: SINAPI | R205: SERVIÇOS PRELIMINARES | S205: -
A206: S | B206: 2 | C206: S | D206: 0 | E206: 2 | F206: 1 | G206: 0 | H206: 0 | I206: 0 | J206: 0 | K206: 0 | L206: F | M206: Serviço | N206: Serviço | O206: 2.1.0.0.1. | P206: AGETOP | Q206: 20121 | R206: DEM. MANUAL EM CONCR.SIMPLES C/TR.ATE CB.E CARGA (O.C.) | S206: m3 | T206: 3.05
... 442 more rows

Sheet Resumo
B3: UNIDADE ESCOLAR | G3: CÓDIGO INEP
B4: =Orçamento!$O$4 -> COLÉGIO ESTADUAL ELVIRA LEÃO BARRETO | G4: =Orçamento!V4 -> 52042910
B6: OBRA | G6: CIDADE
B7: =Orçamento!$O$7 -> REFORMA | G7: =Orçamento!$V$7 -> SIMOLÂNDIA
B9: ENDEREÇO | G9: CRE
B10: =Orçamento!$R$10 -> R HUMBERTO ALENCAR CASTELO BRANCO S/N, CENTRO, CEP:73930-000 | G10: =Orçamento!$O$10 -> POSSE
B12: REFERÊNCIA | D12: DATA | G12: ÁREA TOTAL CONSTRUÍDA (M²)
B13: =CONCATENATE("AGETOP E SINAPI - ",Orçamento!$W$10) -> AGETOP E SINAPI - DESONERADA | D13: =Orçamento!$S$7 -> 2020-05-12 | G13: =Orçamento!$S$13 -> 1267.68
A14: FILTRO
B15: RESUMO GERAL DO ORÇAMENTO
A16: ↓ | B16: ITEM | C16: DESCRIÇÃO DOS SERVIÇOS | E16: UNID | F16: QUANT | G16: PREÇO SEM BDI | H16: PREÇO COM BDI | I16: PARTICIP. (%)
A17: =IF(E17>0,"F","") -> F | B17: 1. | C17: =Orçamento!$P628 -> REFORMA | E17: UN | F17: 1 | G17: =IFERROR(Orçamento!S628,"-") -> 0 | H17: =IFERROR(Orçamento!V628,"") -> 0 | I17: =Orçamento!X628 -> 
A18: =IF(E18>0,"F","") -> F | B18: 2. | C18: =Orçamento!$P629 -> ACESSIBILIDADE | E18: UN | F18: 1 | G18: =IFERROR(Orçamento!S629,"-") -> 0 | H18: =IFERROR(Orçamento!V629,"") -> 0 | I18: =Orçamento!X629 -> 
A19: F | B19: 3. | C19: =Orçamento!$P630 -> IMPLANTAÇÃO | E19: UN | F19: 1 | G19: =IFERROR(Orçamento!S630,"-") -> 0 | H19: =IFERROR(Orçamento!V630,"") -> 0 | I19: =Orçamento!X630 -> 
A20: F | B20: 4. | C20: =Orçamento!$P631 -> COZINHA SEDUC OPÇÃO 2 | E20: UN | F20: 1 | G20: =IFERROR(Orçamento!S631,"-") -> 0 | H20: =IFERROR(Orçamento!V631,"") -> 0 | I20: =Orçamento!X631 -> 
A21: F | B21: 5. | C21: =Orçamento!$P632 -> BLOCO 01 SALA PADRÃO SEDUC 2017 - LAJE | E21: UN | F21: 1 | G21: =IFERROR(Orçamento!S632,"-") -> 0 | H21: =IFERROR(Orçamento!V632,"") -> 0 | I21: =Orçamento!X632 -> 
A22: F | B22: 6. | C22: =Orçamento!$P633 -> PASSARELA MODELO 02 - PADRÃO SÉC. XXI 2015 | E22: UN | F22: 1 | G22: =IFERROR(Orçamento!S633,"-") -> 0 | H22: =IFERROR(Orçamento!V633,"") -> 0 | I22: =Orçamento!X633 -> 
B23: 7. | C23: =Orçamento!$P634 ->  | G23: =IFERROR(Orçamento!S634,"-") -> 0 | H23: =IFERROR(Orçamento!V634,"") -> 0 | I23: =Orçamento!X634 -> 
B24: 8. | C24: =Orçamento!$P635 ->  | G24: =IFERROR(Orçamento!S635,"-") -> 0 | H24: =IFERROR(Orçamento!V635,"") -> 0 | I24: =Orçamento!X635 -> 
B25: 9. | C25: =Orçamento!$P636 ->  | G25: =IFERROR(Orçamento!S636,"-") -> 0 | H25: =IFERROR(Orçamento!V636,"") -> 0 | I25: =Orçamento!X636 -> 
B26: 10. | C26: =Orçamento!$P637 ->  | G26: =IFERROR(Orçamento!S637,"-") -> 0 | H26: =IFERROR(Orçamento!V637,"") -> 0 | I26: =Orçamento!X637 -> 
B27: 11. | C27: =Orçamento!$P638 ->  | G27: =IFERROR(Orçamento!S638,"-") -> 0 | H27: =IFERROR(Orçamento!V638,"") -> 0 | I27: =Orçamento!X638 -> 
B28: 12. | C28: =Orçamento!$P639 ->  | G28: =IFERROR(Orçamento!S639,"-") -> 0 | H28: =IFERROR(Orçamento!V639,"") -> 0 | I28: =Orçamento!X639 -> 
B29: 13. | C29: =Orçamento!$P640 ->  | G29: =IFERROR(Orçamento!S640,"-") -> 0 | H29: =IFERROR(Orçamento!V640,"") -> 0 | I29: =Orçamento!X640 -> 
B30: 14. | C30: =Orçamento!$P641 ->  | G30: =IFERROR(Orçamento!S641,"-") -> 0 | H30: =IFERROR(Orçamento!V641,"") -> 0 | I30: =Orçamento!X641 -> 
B31: 15. | C31: =Orçamento!$P642 ->  | G31: =IFERROR(Orçamento!S642,"-") -> 0 | H31: =IFERROR(Orçamento!V642,"") -> 0 | I31: =Orçamento!X642 -> 
B32: 16. | C32: =Orçamento!$P643 ->  | G32: =IFERROR(Orçamento!S643,"-") -> 0 | H32: =IFERROR(Orçamento!V643,"") -> 0 | I32: =Orçamento!X643 -> 
B33: 17. | C33: =Orçamento!$P644 ->  | G33: =IFERROR(Orçamento!S644,"-") -> 0 | H33: =IFERROR(Orçamento!V644,"") -> 0 | I33: =Orçamento!X644 -> 
B34: 18. | C34: =Orçamento!$P645 ->  | G34: =IFERROR(Orçamento!S645,"-") -> 0 | H34: =IFERROR(Orçamento!V645,"") -> 0 | I34: =Orçamento!X645 -> 
B35: 19. | C35: =Orçamento!$P646 ->  | G35: =IFERROR(Orçamento!S646,"-") -> 0 | H35: =IFERROR(Orçamento!V646,"") -> 0 | I35: =Orçamento!X646 -> 
B36: 20. | C36: =Orçamento!$P647 ->  | G36: =IFERROR(Orçamento!S647,"-") -> 0 | H36: =IFERROR(Orçamento!V647,"") -> 0 | I36: =Orçamento!X647 -> 
A37: F | B37: TOTAL GERAL DO ORÇAMENTO (R$) | G37: =SUM(G17:G36) -> 0 | H37: 0 | I37: =SUM(I17:I36) -> 
A38: F
A39: F

Sheet Somatório
B3: UNIDADE ESCOLAR | E3: CÓDIGO INEP
B4: =Orçamento!$O$4 -> COLÉGIO ESTADUAL ELVIRA LEÃO BARRETO | E4: =Orçamento!V4 -> 52042910
B6: OBRA | E6: CIDADE
B7: =Orçamento!$O$7 -> REFORMA | E7: =Orçamento!$V$7 -> SIMOLÂNDIA
B9: ENDEREÇO | E9: CRE
B10: =Orçamento!$R$10 -> R HUMBERTO ALENCAR CASTELO BRANCO S/N, CENTRO, CEP:73930-000 | E10: =Orçamento!$O$10 -> POSSE
B12: REFERÊNCIA | D12: DATA | E12: ÁREA TOTAL CONSTRUÍDA (M²)
B13: =CONCATENATE("AGETOP E SINAPI - ",Orçamento!$W$10) -> AGETOP E SINAPI - DESONERADA | D13: =Orçamento!$S$7 -> 2020-05-12 | E13: =Orçamento!$S$13 -> 1267.68
A14: FILTRO
B15: SOMATÓRIO DE SERVIÇOS
A16: ↓ | B16: ITEM | C16: DESCRIÇÃO DOS SERVIÇOS | D16: PREÇO SEM BDI (R$) | E16: PREÇO COM BDI (R$) | F16: PARTIC. ( % )
A17: =IF(D17>0,"F","") ->  | B17: a. | C17: =Orçamento!P594 -> SERVIÇOS PRELIMINARES | D17: =Orçamento!S594 -> 0 | E17: =Orçamento!V594 -> 0 | F17: =Orçamento!X594 -> 0
A18: =IF(D18>0,"F","") ->  | B18: b. | C18: =Orçamento!P595 -> TRANSPORTES | D18: =Orçamento!S595 -> 0 | E18: =Orçamento!V595 -> 0 | F18: =Orçamento!X595 -> 0
B19: c. | C19: =Orçamento!P596 -> SERVIÇO EM TERRA | D19: =Orçamento!S596 -> 0 | E19: =Orçamento!V596 -> 0 | F19: =Orçamento!X596 -> 0
B20: d. | C20: =Orçamento!P597 -> FUNDAÇÕES E SONDAGENS | D20: =Orçamento!S597 -> 0 | E20: =Orçamento!V597 -> 0 | F20: =Orçamento!X597 -> 0
B21: e. | C21: =Orçamento!P598 -> ESTRUTURA | D21: =Orçamento!S598 -> 0 | E21: =Orçamento!V598 -> 0 | F21: =Orçamento!X598 -> 0
B22: f. | C22: =Orçamento!P599 -> INSTALAÇÕES ELÉTRICAS | D22: =Orçamento!S599 -> 0 | E22: =Orçamento!V599 -> 0 | F22: =Orçamento!X599 -> 0
B23: g. | C23: =Orçamento!P600 -> INSTALAÇÕES HIDROSSANITÁRIAS | D23: =Orçamento!S600 -> 0 | E23: =Orçamento!V600 -> 0 | F23: =Orçamento!X600 -> 0
B24: h. | C24: =Orçamento!P601 -> INSTALAÇÕES ESPECIAIS | D24: =Orçamento!S601 -> 0 | E24: =Orçamento!V601 -> 0 | F24: =Orçamento!X601 -> 0
B25: i. | C25: =Orçamento!P602 -> ALVENARIAS E DIVISÓRIAS | D25: =Orçamento!S602 -> 0 | E25: =Orçamento!V602 -> 0 | F25: =Orçamento!X602 -> 0
B26: j. | C26: =Orçamento!P603 -> ALVENARIA AUTO-PORTANTE | D26: =Orçamento!S603 -> 0 | E26: =Orçamento!V603 -> 0 | F26: =Orçamento!X603 -> 0
B27: k. | C27: =Orçamento!P604 -> IMPERMEABILIZAÇÃO | D27: =Orçamento!S604 -> 0 | E27: =Orçamento!V604 -> 0 | F27: =Orçamento!X604 -> 0
B28: l. | C28: =Orçamento!P605 -> ISOLAMENTO TÉRMICO E ACÚSTICO | D28: =Orçamento!S605 -> 0 | E28: =Orçamento!V605 -> 0 | F28: =Orçamento!X605 -> 0
B29: m. | C29: =Orçamento!P606 -> ESTRUTURA DE MADEIRA | D29: =Orçamento!S606 -> 0 | E29: =Orçamento!V606 -> 0 | F29: =Orçamento!X606 -> 0
B30: n. | C30: =Orçamento!P607 -> ESTRUTURAS METÁLICAS | D30: =Orçamento!S607 -> 0 | E30: =Orçamento!V607 -> 0 | F30: =Orçamento!X607 -> 0
B31: o. | C31: =Orçamento!P608 -> COBERTURAS | D31: =Orçamento!S608 -> 0 | E31: =Orçamento!V608 -> 0 | F31: =Orçamento!X608 -> 0
B32: p. | C32: =Orçamento!P609 -> ESQUADRIAS DE MADEIRA | D32: =Orçamento!S609 -> 0 | E32: =Orçamento!V609 -> 0 | F32: =Orçamento!X609 -> 0
B33: q. | C33: =Orçamento!P610 -> ESQUADRIAS METÁLICAS | D33: =Orçamento!S610 -> 0 | E33: =Orçamento!V610 -> 0 | F33: =Orçamento!X610 -> 0
B34: r. | C34: =Orçamento!P611 -> VIDROS | D34: =Orçamento!S611 -> 0 | E34: =Orçamento!V611 -> 0 | F34: =Orçamento!X611 -> 0
B35: s. | C35: =Orçamento!P612 -> REVESTIMENTO DE PAREDE | D35: =Orçamento!S612 -> 0 | E35: =Orçamento!V612 -> 0 | F35: =Orçamento!X612 -> 0
B36: t. | C36: =Orçamento!P613 -> FORROS | D36: =Orçamento!S613 -> 0 | E36: =Orçamento!V613 -> 0 | F36: =Orçamento!X613 -> 0
B37: u. | C37: =Orçamento!P614 -> REVESTIMENTO DE PISO | D37: =Orçamento!S614 -> 0 | E37: =Orçamento!V614 -> 0 | F37: =Orçamento!X614 -> 0
B38: v. | C38: =Orçamento!P615 -> FERRAGENS | D38: =Orçamento!S615 -> 0 | E38: =Orçamento!V615 -> 0 | F38: =Orçamento!X615 -> 0
B39: w. | C39: =Orçamento!P616 -> MARCENARIA | D39: =Orçamento!S616 -> 0 | E39: =Orçamento!V616 -> 0 | F39: =Orçamento!X616 -> 0
B40: x. | C40: =Orçamento!P617 -> ADMINISTRAÇÃO | D40: =Orçamento!S617 -> 0 | E40: =Orçamento!V617 -> 0 | F40: =Orçamento!X617 -> 0
B41: y. | C41: =Orçamento!P618 -> PINTURA | D41: =Orçamento!S618 -> 0 | E41: =Orçamento!V618 -> 0 | F41: =Orçamento!X618 -> 0
B42: z. | C42: =Orçamento!P619 -> DIVERSOS | D42: =Orçamento!S619 -> 0 | E42: =Orçamento!V619 -> 0 | F42: =Orçamento!X619 -> 0
A43: F | B43: TOTAL GERAL DO ORÇAMENTO | D43: =SUM(D17:D42) -> 0 | E43: =SUM(E17:E42) -> 0 | F43: =SUM(F17:F42) -> 0
B45: (*) Para itens da AGETOP, os vidros não estão inclusos nas esquadrias e já foram considerados os custos de contramarco para as esquadrias de alumínio;

Sheet Cronog_60_Dias
B3: UNIDADE ESCOLAR | I3: PRAZO
B4: =Orçamento!$O$4 -> COLÉGIO ESTADUAL ELVIRA LEÃO BARRETO | I4: 60 DIAS CORRIDOS
B6: OBRA | I6: DATA
B7: =Orçamento!$O$7 -> REFORMA | I7: =Orçamento!$S$7 -> 2020-05-12
B9: LOCAL | I9: ÁREA TOTAL CONSTRUÍDA (M²)
A10: FILTRO | B10: =Orçamento!$V$7 -> SIMOLÂNDIA | I10: =Orçamento!$S$13 -> 1267.68
B12: CRONOGRAMA - FÍSICO FINANCEIRO
A13: ↓ | B13: CUSTO TOTAL: | C13: =D93 -> 0 | D13: VALOR | E13: Dias: | F13: 30 | J13: 60 | N13: TOTAL
B14: DESCRIÇÃO DOS SERVIÇOS | E14: % | F14: 1ª PARCELA | J14: 2ª PARCELA
A15: =IF(D15>0,"F","") ->  | B15: SERVIÇOS PRELIMINARES | D15: =Orçamento!V594 -> 0 | E15: =Orçamento!X594 -> 0 | F15: =ROUND(F17*$D$15,2) -> 0 | J15: =ROUND(J17*$D$15,2) -> 0 | N15: =SUM(F15:M15) -> 0
A16: =IF(A15="F",A15,"") -> 
A17: =IF(A16="F",A16,"") ->  | F17: 1 | J17: =1-F17 -> 0 | N17: =IFERROR(E15/100,"") -> 0
A18: =IF(D18>0,"F","") ->  | B18: TRANSPORTES | D18: =Orçamento!V595 -> 0 | E18: =Orçamento!X595 -> 0 | F18: =ROUND(F20*$D$18,2) -> 0 | J18: =ROUND(J20*$D$18,2) -> 0 | N18: =SUM(F18:M18) -> 0
A19: =IF(A18="F",A18,"") -> 
A20: =IF(A19="F",A19,"") ->  | F20: 0.48 | J20: =1-F20 -> 0.52 | N20: =IFERROR(E18/100,"") -> 0
A21: =IF(D21>0,"F","") ->  | B21: SERVIÇO EM TERRA | D21: =Orçamento!V596 -> 0 | E21: =Orçamento!X596 -> 0 | F21: =ROUND(F23*$D$21,2) -> 0 | J21: =ROUND(J23*$D$21,2) -> 0 | N21: =SUM(F21:M21) -> 0
A22: =IF(A21="F",A21,"") -> 
A23: =IF(A22="F",A22,"") ->  | F23: 1 | J23: =1-F23 -> 0 | N23: =IFERROR(E21/100,"") -> 0
A24: =IF(D24>0,"F","") ->  | B24: FUNDAÇÕES E SONDAGENS | D24: =Orçamento!V597 -> 0 | E24: =Orçamento!X597 -> 0 | F24: =ROUND(F26*$D$24,2) -> 0 | J24: =ROUND(J26*$D$24,2) -> 0 | N24: =SUM(F24:M24) -> 0
A25: =IF(A24="F",A24,"") -> 
A26: =IF(A25="F",A25,"") ->  | F26: 1 | J26: =1-F26 -> 0 | N26: =IFERROR(E24/100,"") -> 0
A27: =IF(D27>0,"F","") ->  | B27: ESTRUTURA | D27: =Orçamento!V598 -> 0 | E27: =Orçamento!X598 -> 0 | F27: =ROUND(F29*$D$27,2) -> 0 | J27: =ROUND(J29*$D$27,2) -> 0 | N27: =SUM(F27:M27) -> 0
A28: =IF(A27="F",A27,"") -> 
A29: =IF(A28="F",A28,"") ->  | F29: 0.49 | J29: =1-F29 -> 0.51 | N29: =IFERROR(E27/100,"") -> 0
A30: =IF(D30>0,"F","") ->  | B30: INST.ELET/TELEFÔNICA/CABEAMENTO ESTRUTURADO | D30: =Orçamento!V599 -> 0 | E30: =Orçamento!X599 -> 0 | F30: =ROUND(F32*$D$30,2) -> 0 | J30: =ROUND(J32*$D$30,2) -> 0 | N30: =SUM(F30:M30) -> 0
A31: =IF(A30="F",A30,"") -> 
A32: =IF(A31="F",A31,"") ->  | F32: 0.4 | J32: =1-F32 -> 0.6 | N32: =IFERROR(E30/100,"") -> 0
A33: =IF(D33>0,"F","") ->  | B33: INSTALAÇÕES HIDROSSANITÁRIAS | D33: =Orçamento!V600 -> 0 | E33: =Orçamento!X600 -> 0 | F33: =ROUND(F35*$D$33,2) -> 0 | J33: =ROUND(J35*$D$33,2) -> 0 | N33: =SUM(F33:M33) -> 0
A34: =IF(A33="F",A33,"") -> 
A35: =IF(A34="F",A34,"") ->  | F35: 0.48 | J35: =1-F35 -> 0.52 | N35: =IFERROR(E33/100,"") -> 0
A36: =IF(D36>0,"F","") ->  | B36: INSTALAÇÕES ESPECIAIS | D36: =Orçamento!V601 -> 0 | E36: =Orçamento!X601 -> 0 | F36: =ROUND(F38*$D$36,2) -> 0 | J36: =ROUND(J38*$D$36,2) -> 0 | N36: =SUM(F36:M36) -> 0
A37: =IF(A36="F",A36,"") -> 
A38: =IF(A37="F",A37,"") ->  | F38: 1 | J38: =1-F38 -> 0 | N38: =IFERROR(E36/100,"") -> 0
A39: =IF(D39>0,"F","") ->  | B39: ALVENARIA E DIVISÓRIAS | D39: =Orçamento!V602 -> 0 | E39: =Orçamento!X602 -> 0 | F39: =ROUND(F41*$D$39,2) -> 0 | J39: =ROUND(J41*$D$39,2) -> 0 | N39: =SUM(F39:M39) -> 0
A40: =IF(A39="F",A39,"") -> 
A41: =IF(A40="F",A40,"") ->  | F41: 1 | J41: =1-F41 -> 0 | N41: =IFERROR(E39/100,"") -> 0
A42: =IF(D42>0,"F","") ->  | B42: ALVENARIA AUTO-PORTANTE | D42: =Orçamento!V603 -> 0 | E42: =Orçamento!X603 -> 0 | F42: =ROUND(F44*$D$42,2) -> 0 | J42: =ROUND(J44*$D$42,2) -> 0 | N42: =SUM(F42:M42) -> 0
A43: =IF(A42="F",A42,"") -> 
A44: =IF(A43="F",A43,"") ->  | F44: 1 | J44: =1-F44 -> 0 | N44: =IFERROR(E42/100,"") -> 0
A45: =IF(D45>0,"F","") ->  | B45: IMPERMEABILIZAÇÃO | D45: =Orçamento!V604 -> 0 | E45: =Orçamento!X604 -> 0 | F45: =ROUND(F47*$D$45,2) -> 0 | J45: =ROUND(J47*$D$45,2) -> 0 | N45: =SUM(F45:M45) -> 0
A46: =IF(A45="F",A45,"") -> 
A47: =IF(A46="F",A46,"") ->  | F47: 1 | J47: =1-F47 -> 0 | N47: =IFERROR(E45/100,"") -> 0
A48: =IF(D48>0,"F","") ->  | B48: ISOLAMENTO TÉRMICO E ACÚSTICO | D48: =Orçamento!V605 -> 0 | E48: =Orçamento!X605 -> 0 | F48: =ROUND(F50*$D$48,2) -> 0 | J48: =ROUND(J50*$D$48,2) -> 0 | N48: =SUM(F48:M48) -> 0
A49: =IF(A48="F",A48,"") -> 
A50: =IF(A49="F",A49,"") ->  | F50: 0.5 | J50: =1-F50 -> 0.5 | N50: =IFERROR(E48/100,"") -> 0
A51: =IF(D51>0,"F","") ->  | B51: ESTRUTURA DE MADEIRA | D51: =Orçamento!V606 -> 0 | E51: =Orçamento!X606 -> 0 | F51: =ROUND(F53*$D$51,2) -> 0 | J51: =ROUND(J53*$D$51,2) -> 0 | N51: =SUM(F51:M51) -> 0
A52: =IF(A51="F",A51,"") -> 
A53: =IF(A52="F",A52,"") ->  | F53: 0.4 | J53: =1-F53 -> 0.6 | N53: =IFERROR(E51/100,"") -> 0
A54: =IF(D54>0,"F","") ->  | B54: ESTRUTURA METÁLICA | D54: =Orçamento!V607 -> 0 | E54: =Orçamento!X607 -> 0 | F54: =ROUND(F56*$D$54,2) -> 0 | J54: =ROUND(J56*$D$54,2) -> 0 | N54: =SUM(F54:M54) -> 0
A55: =IF(A54="F",A54,"") -> 
A56: =IF(A55="F",A55,"") ->  | F56: 0.35 | J56: =1-F56 -> 0.65 | N56: =IFERROR(E54/100,"") -> 0
A57: =IF(D57>0,"F","") ->  | B57: COBERTURAS | D57: =Orçamento!V608 -> 0 | E57: =Orçamento!X608 -> 0 | F57: =ROUND(F59*$D$57,2) -> 0 | J57: =ROUND(J59*$D$57,2) -> 0 | N57: =SUM(F57:M57) -> 0
A58: =IF(A57="F",A57,"") -> 
A59: =IF(A58="F",A58,"") ->  | F59: 0 | J59: =1-F59 -> 1 | N59: =IFERROR(E57/100,"") -> 0
A60: =IF(D60>0,"F","") ->  | B60: ESQUADRIAS DE MADEIRA | D60: =Orçamento!V609 -> 0 | E60: =Orçamento!X609 -> 0 | F60: =ROUND(F62*$D$60,2) -> 0 | J60: =ROUND(J62*$D$60,2) -> 0 | N60: =SUM(F60:M60) -> 0
A61: =IF(A60="F",A60,"") -> 
A62: =IF(A61="F",A61,"") ->  | F62: 0.54 | J62: =1-F62 -> 0.46 | N62: =IFERROR(E60/100,"") -> 0
A63: =IF(D63>0,"F","") ->  | B63: ESQUADRIAS METÁLICAS | D63: =Orçamento!V610 -> 0 | E63: =Orçamento!X610 -> 0 | F63: =ROUND(F65*$D$63,2) -> 0 | J63: =ROUND(J65*$D$63,2) -> 0 | N63: =SUM(F63:M63) -> 0
A64: =IF(A63="F",A63,"") -> 
A65: =IF(A64="F",A64,"") ->  | F65: 0.49 | J65: =1-F65 -> 0.51 | N65: =IFERROR(E63/100,"") -> 0
A66: =IF(D66>0,"F","") ->  | B66: VIDROS | D66: =Orçamento!V611 -> 0 | E66: =Orçamento!X611 -> 0 | F66: =ROUND(F68*$D$66,2) -> 0 | J66: =ROUND(J68*$D$66,2) -> 0 | N66: =SUM(F66:M66) -> 0
A67: =IF(A66="F",A66,"") -> 
A68: =IF(A67="F",A67,"") ->  | F68: 0 | J68: =1-F68 -> 1 | N68: =IFERROR(E66/100,"") -> 0
A69: =IF(D69>0,"F","") ->  | B69: REVESTIMENTO DE PAREDE | D69: =Orçamento!V612 -> 0 | E69: =Orçamento!X612 -> 0 | F69: =ROUND(F71*$D$69,2) -> 0 | J69: =ROUND(J71*$D$69,2) -> 0 | N69: =SUM(F69:M69) -> 0
A70: =IF(A69="F",A69,"") -> 
A71: =IF(A70="F",A70,"") ->  | F71: 0.32 | J71: =1-F71 -> 0.68 | N71: =IFERROR(E69/100,"") -> 0
A72: =IF(D72>0,"F","") ->  | B72: FORROS | D72: =Orçamento!V613 -> 0 | E72: =Orçamento!X613 -> 0 | F72: =ROUND(F74*$D$72,2) -> 0 | J72: =ROUND(J74*$D$72,2) -> 0 | N72: =SUM(F72:M72) -> 0
A73: =IF(A72="F",A72,"") -> 
A74: =IF(A73="F",A73,"") ->  | F74: 0.24 | J74: =1-F74 -> 0.76 | N74: =IFERROR(E72/100,"") -> 0
A75: =IF(D75>0,"F","") ->  | B75: REVESTIMENTO DE PISO | D75: =Orçamento!V614 -> 0 | E75: =Orçamento!X614 -> 0 | F75: =ROUND(F77*$D$75,2) -> 0 | J75: =ROUND(J77*$D$75,2) -> 0 | N75: =SUM(F75:M75) -> 0
A76: =IF(A75="F",A75,"") -> 
A77: =IF(A76="F",A76,"") ->  | F77: 0.49 | J77: =1-F77 -> 0.51 | N77: =IFERROR(E75/100,"") -> 0
A78: =IF(D78>0,"F","") ->  | B78: FERRAGENS | D78: =Orçamento!V615 -> 0 | E78: =Orçamento!X615 -> 0 | F78: =ROUND(F80*$D$78,2) -> 0 | J78: =ROUND(J80*$D$78,2) -> 0 | N78: =SUM(F78:M78) -> 0
A79: =IF(A78="F",A78,"") -> 
A80: =IF(A79="F",A79,"") ->  | F80: 0 | J80: =1-F80 -> 1 | N80: =IFERROR(E78/100,"") -> 0
A81: =IF(D81>0,"F","") ->  | B81: MARCENARIA | D81: =Orçamento!V616 -> 0 | E81: =Orçamento!X616 -> 0 | F81: =ROUND(F83*$D$81,2) -> 0 | J81: =ROUND(J83*$D$81,2) -> 0 | N81: =SUM(F81:M81) -> 0
A82: =IF(A81="F",A81,"") -> 
A83: =IF(A82="F",A82,"") ->  | F83: 0.4 | J83: =1-F83 -> 0.6 | N83: =IFERROR(E81/100,"") -> 0
A84: =IF(D84>0,"F","") ->  | B84: ADMINISTRAÇÃO - MENSALISTAS | D84: =Orçamento!V617 -> 0 | E84: =Orçamento!X617 -> 0 | F84: =ROUND(F86*$D$84,2) -> 0 | J84: =ROUND(J86*$D$84,2) -> 0 | N84: =SUM(F84:M84) -> 0
A85: =IF(A84="F",A84,"") -> 
A86: =IF(A85="F",A85,"") ->  | F86: 0.49 | J86: =1-F86 -> 0.51 | N86: =IFERROR(E84/100,"") -> 0
A87: =IF(D87>0,"F","") ->  | B87: PINTURA | D87: =Orçamento!V618 -> 0 | E87: =Orçamento!X618 -> 0 | F87: =ROUND(F89*$D$87,2) -> 0 | J87: =ROUND(J89*$D$87,2) -> 0 | N87: =SUM(F87:M87) -> 0
A88: =IF(A87="F",A87,"") -> 
A89: =IF(A88="F",A88,"") ->  | F89: 0 | J89: =1-F89 -> 1 | N89: =IFERROR(E87/100,"") -> 0
A90: =IF(D90>0,"F","") ->  | B90: DIVERSOS | D90: =Orçamento!V619 -> 0 | E90: =Orçamento!X619 -> 0 | F90: =ROUND(F92*$D$90,2) -> 0 | J90: =ROUND(J92*$D$90,2) -> 0 | N90: =SUM(F90:M90) -> 0
A91: =IF(A90="F",A90,"") -> 
A92: =IF(A91="F",A91,"") ->  | F92: 0.46 | J92: =1-F92 -> 0.54 | N92: =IFERROR(E90/100,"") -> 0
A93: F | B93: CUSTO DO ORÇAMENTO | D93: =SUM(D15:D92) -> 0 | E93: =SUM(E15:E92) -> 0 | F93: =F15+F18+F21+F24+F27+F30+F33+F36+F39+F42+F45+F48+F51+F54+F57+F60+F63+F66+F69+F72+F75+F78+F81+F84+F87+F90 -> 0 | J93: =J15+J18+J21+J24+J27+J30+J33+J36+J39+J42+J45+J48+J51+J54+J57+J60+J63+J66+J69+J72+J75+J78+J81+J84+J87+J90 -> 0 | N93: =N15+N18+N21+N24+N27+N30+N33+N36+N39+N42+N45+N48+N51+N54+N57+N60+N63+N66+N69+N72+N75+N78+N81+N84+N87+N90 -> 0
A94: F | B94: PERCENTUAIS: | F94: =IFERROR(F93/D93,"") ->  | J94: =IFERROR(J93/D93,"") ->  | N94: =SUM(F94:M94) -> 0
A95: F | B95: TOTAIS ACUMULADOS: | F95: =F93 -> 0 | J95: =F95+J93 -> 0
A96: F | B96: PERCENTUAIS ACUMULADOS: | F96: =F94 ->  | J96: =IFERROR(F96+J94,"") -> 
A97: F
A98: F | B98: OBSERVAÇÕES:
A99: F | B99: Os pagamentos somente poderão ser efetuados mediante medição e atesto pelos técnicos da Secretaria da Educação.

Sheet Composição BDI
A3: UNIDADE ESCOLAR
A4: =Orçamento!$O$4 -> COLÉGIO ESTADUAL ELVIRA LEÃO BARRETO
A6: OBRA
A7: =Orçamento!$O$7 -> REFORMA
A9: ENDEREÇO
A10: =Orçamento!$R$10 -> R HUMBERTO ALENCAR CASTELO BRANCO S/N, CENTRO, CEP:73930-000
A12: CIDADE
A13: =Orçamento!$V$7 -> SIMOLÂNDIA
A15: CRE
A16: =Orçamento!$O$10 -> POSSE
A18: DETALHAMENTO DA COMPOSIÇÃO DE BDI
A19: COMPOSIÇÃO BDI PARA OBRAS CIVIS | F19: BDI CONSTRUÇÃO E REFORMA
A20: DESCRIÇÃO | B20: COEF. | C20: TAXA % (a.m) | D20: % no preço de venda | F20: Situação | G20: 1º Quartil | H20: Médio | I20: 3º Quartil
A21: 1) COFINS | B21: 1 | C21: 0.03 | D21: =C21 -> 0.03 | F21: =IF(OR(C21<G21,C21>I21),"FORA DO INTERVALO","OK") -> OK | G21: 0.03 | H21: 0.03 | I21: 0.03
A22: 2) PIS | B22: 1 | C22: 0.0065 | D22: =C22 -> 0.0065 | F22: =IF(OR(C22<G22,C22>I22),"FORA DO INTERVALO","OK") -> OK | G22: 0.0065 | H22: 0.0065 | I22: 0.0065
A23: 3) ISSQN | B23: 1 | C23: 0.015 | D23: =C23*B23 -> 0.015 | F23: FORA DO INTERVALO | G23: 0.02 | H23: 0.035 | I23: 0.05
A24: 4) CPRB | B24: 1 | C24: 0.045 | D24: =C24 -> 0.045 | F24: OK | G24: 0.045 | H24: 0.045 | I24: 0.045
A25: 5) Administração Central | B25: 1 | C25: 0.04 | D25: 0.04 | F25: OK | G25: 0.03 | H25: 0.04 | I25: 0.055
A26: 6) Despesas Financeiras | B26: 1 | C26: 0.0056 | D26: 0.0056 | F26: FORA DO INTERVALO | G26: 0.0059 | H26: 0.0123 | I26: 0.0139
A27: 7) Seguros + Garantias | B27: 1 | C27: 0.0012 | D27: 0.0012 | F27: FORA DO INTERVALO | G27: 0.008 | H27: 0.008 | I27: 0.01
A28: 8) Risco | B28: 1 | C28: 0.0097 | D28: 0.0097 | F28: OK | G28: 0.0097 | H28: 0.0127 | I28: 0.0127
A29: 9) Lucro | B29: 1 | C29: 0.072 | D29: 0.072 | F29: OK | G29: 0.0616 | H29: 0.074 | I29: 0.0896
A30: BDI - FINAL | D30: =(((1+D25+D27+D28)*(1+D26)*(1+D29))/(1-(D21+D22+D23+D24))-1) -> 0.2538722334 | F30: =IF(OR(D30<G30,D30>I30),"FORA DO INTERVALO","OK") -> FORA DO INTERVALO | G30: 0.2034 | H30: 0.2212 | I30: 0.25
A32: Notas:
A33: (1) e (2) Alíquota definida por lei.
A34: (3) Alíquota e base de cálculo definidas pela legislação municipal.
A35: (4) Alíquota definida pelas leis 12.546/11, 12844/13 e 13.161/15 (CPRB – contribuição previdenciária sobre a receita bruta).
A36: (5) Valores definidos a partir dos limites no Acórdão nº 2.622/2013 - TCU – Plenário. Valores entre o 1º e 3º quartis.
A37: (6) Valor calculado pela expressão matemática do acórdão 2.369/2011 – TCU – Plenário e disponibilizado pela AGETOP em dezembro de 2018. (Foi utilizado para o cálculo a média da Taxa SELIC no período de 11/2017 a 10/2018)
A39: (7) Valores definidos pela AGETOP a partir dos limites no Acórdão nº 2.622/2013 - TCU – Plenário. Valores médios. Observação da AGETOP: (Seguros contra erros de execução, incêndio e explosão, danos da natureza (vendaval, destelhamento, alagamento, inundação, desmoronamento, geadas etc.), emprego de material defeituoso ou inadequado, roubo e/ou furto qualificado, quebra de equipamentos, desmoronamento de estrutura, nas modalidades de Obras Civis em Construção (OCC); Instalação e Montagem (IM); e Obras Civis em Construção e Instalação e Montagem (OCC/IM). Bem como coberturas adicionais para ampliação dessas coberturas básicas, como: cobertura de responsabilidade civil geral, cobertura de responsabilidade civil cruzada, cobertura de despesas extraordinárias, cobertura de tumultos, cobertura de desentulho do local, cobertura de riscos do fabricante, dentre outras, incluindo o seguro de vida em grupo regido pela convenção coletiva dos trabalhadores na indústria da construção civil). A partir de 24/02/2015 por intermédio da Portaria 449/2015 a Presidência da AGETOP, na pessoa do Senhor Jayme Eduardo Rincon, determinou a exclusão dos valores referentes aos Seguros de Risco de Engenharia e Responsabilidade Civil do Profissional na composição do cálculo do B.D.I..
A40: (8) Valores definidos a partir dos limites no Acórdão nº 2.622/2013 - TCU – Plenário. Valores entre 1º e 3° quartis.
A41: (9) Valores definidos a partir dos limites definidos no Acórdão nº 2.622/2013 - TCU – Plenário. Valores adotados e praticados no mercado ( “ ex ante ” ) ou aqueles entre os 1º e 3º quartis.
A43: (*) A fórmula para estipulação da taxa de BDI estimado adotado é a mesma que foi aplicada para a obtenção das tabelas contidas no Acórdão n. 2.622/2013 – TCUPlenário
A45: Obs.: Para obras com valores superiores a R$ 20.000.000,00 sugere-se recalcular o BDI, dimensionando as taxas de administração central e lucro para patamares inferiores ao estipulado acima.

Sheet Relatório CENTRAL
B3: UNIDADE ESCOLAR | D3: CIDADE
B4: =Orçamento!$O$4 -> COLÉGIO ESTADUAL ELVIRA LEÃO BARRETO | D4: =Orçamento!$V$7 -> SIMOLÂNDIA
B6: OBRA | D6: CRE
B7: =Orçamento!$O$7 -> REFORMA | D7: =Orçamento!$O$10 -> POSSE
B9: ENDEREÇO | D9: DATA
A10: FILTRO | B10: =Orçamento!$R$10 -> R HUMBERTO ALENCAR CASTELO BRANCO S/N, CENTRO, CEP:73930-000 | D10: =Orçamento!$S$7 -> 2020-05-12
B12: RELATÓRIO CENTRAL
A13: ↓ | B13: CÓDIGO | C13: ETAPA | D13: PREÇO (R$) C/ BDI | E13: PARTIC ( % )
A14: =IF(D14>0,"F","") ->  | B14: =Orçamento!O594 -> a. | C14: =Orçamento!P594 -> SERVIÇOS PRELIMINARES | D14: =Orçamento!V594 -> 0 | E14: =Orçamento!X594 -> 0
A15: =IF(D15>0,"F","") ->  | B15: =Orçamento!O595 -> b. | C15: =Orçamento!P595 -> TRANSPORTES | D15: =Orçamento!V595 -> 0 | E15: =Orçamento!X595 -> 0
B16: =Orçamento!O596 -> c. | C16: =Orçamento!P596 -> SERVIÇO EM TERRA | D16: =Orçamento!V596 -> 0 | E16: =Orçamento!X596 -> 0
B17: =Orçamento!O597 -> d. | C17: =Orçamento!P597 -> FUNDAÇÕES E SONDAGENS | D17: =Orçamento!V597 -> 0 | E17: =Orçamento!X597 -> 0
B18: =Orçamento!O598 -> e. | C18: =Orçamento!P598 -> ESTRUTURA | D18: =Orçamento!V598 -> 0 | E18: =Orçamento!X598 -> 0
B19: =Orçamento!O599 -> f. | C19: =Orçamento!P599 -> INSTALAÇÕES ELÉTRICAS | D19: =Orçamento!V599 -> 0 | E19: =Orçamento!X599 -> 0
B20: =Orçamento!O600 -> g. | C20: =Orçamento!P600 -> INSTALAÇÕES HIDROSSANITÁRIAS | D20: =Orçamento!V600 -> 0 | E20: =Orçamento!X600 -> 0
B21: =Orçamento!O601 -> h | C21: =Orçamento!P601 -> INSTALAÇÕES ESPECIAIS | D21: =Orçamento!V601 -> 0 | E21: =Orçamento!X601 -> 0
B22: =Orçamento!O602 -> i. | C22: =Orçamento!P602 -> ALVENARIAS E DIVISÓRIAS | D22: =Orçamento!V602 -> 0 | E22: =Orçamento!X602 -> 0
B23: =Orçamento!O603 -> j. | C23: =Orçamento!P603 -> ALVENARIA AUTO-PORTANTE | D23: =Orçamento!V603 -> 0 | E23: =Orçamento!X603 -> 0
B24: =Orçamento!O604 -> k. | C24: =Orçamento!P604 -> IMPERMEABILIZAÇÃO | D24: =Orçamento!V604 -> 0 | E24: =Orçamento!X604 -> 0
B25: =Orçamento!O605 -> l. | C25: =Orçamento!P605 -> ISOLAMENTO TÉRMICO E ACÚSTICO | D25: =Orçamento!V605 -> 0 | E25: =Orçamento!X605 -> 0
B26: =Orçamento!O606 -> m. | C26: =Orçamento!P606 -> ESTRUTURA DE MADEIRA | D26: =Orçamento!V606 -> 0 | E26: =Orçamento!X606 -> 0
B27: =Orçamento!O607 -> n. | C27: =Orçamento!P607 -> ESTRUTURAS METÁLICAS | D27: =Orçamento!V607 -> 0 | E27: =Orçamento!X607 -> 0
B28: =Orçamento!O608 -> o. | C28: =Orçamento!P608 -> COBERTURAS | D28: =Orçamento!V608 -> 0 | E28: =Orçamento!X608 -> 0
B29: =Orçamento!O609 -> p. | C29: =Orçamento!P609 -> ESQUADRIAS DE MADEIRA | D29: =Orçamento!V609 -> 0 | E29: =Orçamento!X609 -> 0
B30: =Orçamento!O610 -> q. | C30: =Orçamento!P610 -> ESQUADRIAS METÁLICAS | D30: =Orçamento!V610 -> 0 | E30: =Orçamento!X610 -> 0
B31: =Orçamento!O611 -> r. | C31: =Orçamento!P611 -> VIDROS | D31: =Orçamento!V611 -> 0 | E31: =Orçamento!X611 -> 0
B32: =Orçamento!O612 -> s. | C32: =Orçamento!P612 -> REVESTIMENTO DE PAREDE | D32: =Orçamento!V612 -> 0 | E32: =Orçamento!X612 -> 0
B33: =Orçamento!O613 -> t. | C33: =Orçamento!P613 -> FORROS | D33: =Orçamento!V613 -> 0 | E33: =Orçamento!X613 -> 0
B34: =Orçamento!O614 -> u. | C34: =Orçamento!P614 -> REVESTIMENTO DE PISO | D34: =Orçamento!V614 -> 0 | E34: =Orçamento!X614 -> 0
B35: =Orçamento!O615 -> v. | C35: =Orçamento!P615 -> FERRAGENS | D35: =Orçamento!V615 -> 0 | E35: =Orçamento!X615 -> 0
B36: =Orçamento!O616 -> w. | C36: =Orçamento!P616 -> MARCENARIA | D36: =Orçamento!V616 -> 0 | E36: =Orçamento!X616 -> 0
B37: =Orçamento!O617 -> x. | C37: =Orçamento!P617 -> ADMINISTRAÇÃO | D37: =Orçamento!V617 -> 0 | E37: =Orçamento!X617 -> 0
B38: =Orçamento!O618 -> y. | C38: =Orçamento!P618 -> PINTURA | D38: =Orçamento!V618 -> 0 | E38: =Orçamento!X618 -> 0
B39: =Orçamento!O619 -> z. | C39: =Orçamento!P619 -> DIVERSOS | D39: =Orçamento!V619 -> 0 | E39: =Orçamento!X619 -> 0
A40: F | B40: TOTAL GERAL DO ORÇAMENTO (R$) C/BDI | D40: =SUM(D14:D39) -> 0 | E40: =SUM(E14:E39) -> 0

Sheet Parc Maior Relev
B3: UNIDADE ESCOLAR | E3: CÓDIGO INEP
B4: =Orçamento!$O$4 -> COLÉGIO ESTADUAL ELVIRA LEÃO BARRETO | E4: =Orçamento!$V$4 -> 52042910
B6: OBRA | E6: CIDADE
B7: =Orçamento!$O$7 -> REFORMA | E7: =Orçamento!$V$7 -> SIMOLÂNDIA
B9: CRE | E9: ÁREA TOTAL CONSTRUÍDA (M²)
B10: =Orçamento!$O$10 -> POSSE | E10: =Orçamento!$S$13 -> 1267.68
A11: FILTRO
B12: PARCELA DE MAIOR RELEVÂNCIA
B13: CÓDIGO | C13: SERVIÇO | D13: DESCRIÇÃO | E13: UNID | F13: QUANT | G13: PARC. MAIOR RELEV (50%)
A14: =IF(F14>0,"F","") -> F | B14: =Somatório!B37 -> u. | C14: =IFERROR(VLOOKUP(B14,Orçamento!$O$594:$P$619,2,FALSE),"(inserir código ao lado)") -> REVESTIMENTO DE PISO | D14: GRANITINA | E14: M2 | F14: =68.6+59.98 -> 128.58 | G14: =F14*0.5 -> 64.29
A15: =IF(F15>0,"F","") -> F | B15: =Somatório!B31 -> o. | C15: =IFERROR(VLOOKUP(B15,Orçamento!$O$594:$P$619,2,FALSE),"(inserir código ao lado)") -> COBERTURAS | D15: TELHA CERAMICA | E15: M2 | F15: =400+71.37+88.69 -> 560.06 | G15: 280.03
A16: =IF(F16>0,"F","") -> F | B16: =Somatório!B36 -> t. | C16: =IFERROR(VLOOKUP(B16,Orçamento!$O$594:$P$619,2,FALSE),"(inserir código ao lado)") -> FORROS | D16: FORRO PVC | E16: M2 | F16: 296 | G16: =F16*0.5 -> 148
C17: =IFERROR(VLOOKUP(B17,Orçamento!$O$594:$P$619,2,FALSE),"(inserir código ao lado)") -> (inserir código ao lado) | E17: =IFERROR(VLOOKUP($D17,Orçamento!$R$20:$W$575,2,FALSE),"-") -> - | F17: =SUMIF(Orçamento!$R$20:$R$575,'Parc Maior Relev'!D17,Orçamento!$T$20:$T$575) -> 0 | G17: 0
C18: =IFERROR(VLOOKUP(B18,Orçamento!$O$594:$P$619,2,FALSE),"(inserir código ao lado)") -> (inserir código ao lado) | E18: =IFERROR(VLOOKUP($D18,Orçamento!$R$20:$W$575,2,FALSE),"-") -> - | F18: =SUMIF(Orçamento!$R$20:$R$575,'Parc Maior Relev'!D18,Orçamento!$T$20:$T$575) -> 0 | G18: 0
A19: F
A20: F | B20: (*) Para os fins do inciso I dp § 1º do Art. 30 da Lei Federal 8.666/93, são consideradas parcelas de maior relevância técnica as execuções apresentadas
A21: F

Sheet Composições
A4: UNIDADE ESCOLAR | H4: CÓDIGO INEP
A5: =Orçamento!$O$4 -> COLÉGIO ESTADUAL ELVIRA LEÃO BARRETO | H5: =Orçamento!$V$4 -> 52042910
A7: OBRA | H7: CIDADE
A8: =Orçamento!$O$7 -> REFORMA | H8: =Orçamento!$V$7 -> SIMOLÂNDIA
A10: CRE | D10: ENDEREÇO | H10: REFERÊNCIA AGETOP
A11: =Orçamento!$O$10 -> POSSE | D11: =Orçamento!$R$10 -> R HUMBERTO ALENCAR CASTELO BRANCO S/N, CENTRO, CEP:73930-000 | H11: =Orçamento!$V$10 -> DEZ/18 | I11: =Orçamento!$W$10 -> DESONERADA
A13: DATA | D13: ÁREA TOTAL CONSTRUÍDA (M²) | H13: REFERÊNCIA SINAPI
A14: =Orçamento!$S$7 -> 2020-05-12 | D14: =Orçamento!$S$13 -> 1267.68 | H14: =Orçamento!$V$13 -> MAR/19 | I14: =Orçamento!$W$13 -> DESONERADA
A16: COMPOSIÇÕES DE CUSTOS UNITÁRIOS - SEE-GO
A17: 387 | B17: FONTE | C17: CÓDIGO | D17: DESCRIÇÃO | E17: UNIDADE | F17: COEFIC. | G17: CUSTO UNITÁRIO | I17: CUSTO TOTAL (A) + (B) + (C) + (D) + (E)
G18: DESONERADO | H18: NÃO DESONER. | I18: DESONERADO | J18: NÃO DESONER.
B19: COMPOSIÇÃO | C19: COMP 387_SEE | D19: LÂMPADA LED TUBULAR 18W | E19: UN | I19: 22.28 | J19: 22.33
B20: AGETOP_I | C20: 8 | D20: AJUDANTE | E20: h | F20: 0.015 | G20: 8.2 | H20: 9.51 | I20: 0.12 | J20: 0.14
B21: AGETOP_I | C21: 12 | D21: ELETRICISTA | E21: h | F21: 0.015 | G21: 13.4 | H21: 15.53 | I21: 0.2 | J21: 0.23
G22: 0 | H22: 0 | I22: 0 | J22: 0
B23: MÃO DE OBRA (B) - TOTAL | I23: 0.32 | J23: 0.37
B24: COTAÇÃO | C24: COT 195_SEE | D24: LÂMPADA LED TUBULAR 18W | E24: UN | F24: 1 | G24: 21.96 | H24: 21.96 | I24: 21.96 | J24: 21.96
G25: 0 | H25: 0 | I25: 0 | J25: 0
G26: 0 | H26: 0 | I26: 0 | J26: 0
B27: MATERIAL (C) - TOTAL | I27: 21.96 | J27: 21.96
A29: 24 | B29: FONTE | C29: CÓDIGO | D29: DESCRIÇÃO | E29: UNIDADE | F29: COEFIC. | G29: CUSTO UNITÁRIO | I29: CUSTO TOTAL (A) + (B) + (C) + (D) + (E)
G30: DESONERADO | H30: NÃO DESONER. | I30: DESONERADO | J30: NÃO DESONER.
B31: COMPOSIÇÃO | C31: COMP 024_SEE | D31: SINALIZADOR FOTOLUMINESCENTE PARA EXTINTOR | E31: UN | G31: - | H31: - | I31: 25.27 | J31: 25.39
B32: AGETOP_I | C32: 5 | D32: SERVENTE | E32: h | F32: 0.09 | G32: 8.2 | H32: 9.51 | I32: 0.74 | J32: 0.86
G33: 0 | H33: 0 | I33: 0 | J33: 0
G34: 0 | H34: 0 | I34: 0 | J34: 0
B35: MÃO DE OBRA (B) - TOTAL | I35: 0.74 | J35: 0.86
B36: AGETOP_I | C36: 3070 | D36: BUCHA DE NYLON S-6 | E36: un | F36: 2 | G36: 0.04 | H36: 0.04 | I36: 0.08 | J36: 0.08
B37: AGETOP_I | C37: 3393 | D37: PARAFUSO P/BUCHA S-6 | E37: un | F37: 2 | G37: 0.08 | H37: 0.08 | I37: 0.16 | J37: 0.16
B38: SINAPI_I | C38: 37556 | D38: PLACA DE SINALIZACAO DE SEGURANCA CONTRA INCENDIO, FOTOLUMINESCENTE, QUADRADA, *20 X 20* CM, EM PVC *2* MM ANTI-CHAMAS (SIMBOLOS, CORES E PICTOGRAMAS CONFORME NBR 13434) | E38: UN | F38: 1 | G38: 24.29 | H38: 24.29 | I38: 24.29 | J38: 24.29
B39: MATERIAL (C) - TOTAL | I39: 24.53 | J39: 24.53
A41: 25 | B41: FONTE | C41: CÓDIGO | D41: DESCRIÇÃO | E41: UNIDADE | F41: COEFIC. | G41: CUSTO UNITÁRIO | I41: CUSTO TOTAL (A) + (B) + (C) + (D) + (E)
G42: DESONERADO | H42: NÃO DESONER. | I42: DESONERADO | J42: NÃO DESONER.
B43: COMPOSIÇÃO | C43: COMP 025_SEE | D43: SINALIZADOR FOTOLUMINESCENTE DE EMERGÊNCIA | E43: UN | G43: - | H43: - | I43: 25.27 | J43: 25.39
B44: AGETOP_I | C44: 5 | D44: SERVENTE | E44: h | F44: 0.09 | G44: 8.2 | H44: 9.51 | I44: 0.74 | J44: 0.86
B45: MÃO DE OBRA (B) - TOTAL | I45: 0.74 | J45: 0.86
B46: AGETOP_I | C46: 3070 | D46: BUCHA DE NYLON S-6 | E46: un | F46: 2 | G46: 0.04 | H46: 0.04 | I46: 0.08 | J46: 0.08
B47: AGETOP_I | C47: 3393 | D47: PARAFUSO P/BUCHA S-6 | E47: un | F47: 2 | G47: 0.08 | H47: 0.08 | I47: 0.16 | J47: 0.16
B48: SINAPI_I | C48: 37556 | D48: PLACA DE SINALIZACAO DE SEGURANCA CONTRA INCENDIO, FOTOLUMINESCENTE, QUADRADA, *20 X 20* CM, EM PVC *2* MM ANTI-CHAMAS (SIMBOLOS, CORES E PICTOGRAMAS CONFORME NBR 13434) | E48: UN | F48: 1 | G48: 24.29 | H48: 24.29 | I48: 24.29 | J48: 24.29
B49: MATERIAL (C) - TOTAL | I49: 24.53 | J49: 24.53
A51: 277 | B51: FONTE | C51: CÓDIGO | D51: DESCRIÇÃO | E51: UNIDADE | F51: COEFIC. | G51: CUSTO UNITÁRIO | I51: CUSTO TOTAL (A) + (B) + (C) + (D) + (E)
G52: DESONERADO | H52: NÃO DESONER. | I52: DESONERADO | J52: NÃO DESONER.
B53: COMPOSIÇÃO | C53: COMP 277_SEE | D53: MARCAÇÃO NO PISO - 1X1 M PARA EXTINTOR | E53: M2 | I53: 27.72 | J53: 27.8
B54: AGETOP_I | C54: 5 | D54: SERVENTE | E54: h | F54: 0.0333 | G54: 8.2 | H54: 9.51 | I54: 0.27 | J54: 0.32
G55: 0 | H55: 0 | I55: 0 | J55: 0
G56: 0 | H56: 0 | I56: 0 | J56: 0
B57: MÃO DE OBRA (B) - TOTAL | I57: 0.27 | J57: 0.32
B58: SINAPI_I | C58: 5318 | D58: SOLVENTE DILUENTE A BASE DE AGUARRAS | E58: L | F58: 0.13 | G58: 10.98 | H58: 10.98 | I58: 1.43 | J58: 1.43
B59: SINAPI | C59: 5824 | D59: CAMINHÃO TOCO, PBT 16.000 KG, CARGA ÚTIL MÁX. 10.685 KG, DIST. ENTRE EIXOS 4,8 M, POTÊNCIA 189 CV, INCLUSIVE CARROCERIA FIXA ABERTA DE MADEIRA P/ TRANSPORTE GERAL DE CARGA SECA, DIMEN. APROX. 2,5 X 7,00 X 0,50 M - CHP DIURNO. AF_06/2014 | E59: CHP | F59: 0.0033 | G59: 135.92 | H59: 139.13 | I59: 0.45 | J59: 0.46
B60: SINAPI_I | C60: 7343 | D60: TINTA A BASE DE RESINA ACRILICA, PARA SINALIZACAO HORIZONTAL VIARIA (NBR 11862) | E60: L | F60: 0.6 | G60: 11.69 | H60: 11.69 | I60: 7.01 | J60: 7.01
B61: SINAPI_I | C61: 7348 | D61: TINTA ACRILICA PREMIUM PARA PISO | E61: L | F61: 0.03 | G61: 12.39 | H61: 12.39 | I61: 0.37 | J61: 0.37
B62: SINAPI_I | C62: 25972 | D62: MICROESFERAS DE VIDRO PARA SINALIZACAO HORIZONTAL VIARIA, TIPO I-B (PREMIX) - NBR 16184 | E62: KG | F62: 2.14 | G62: 8.33 | H62: 8.33 | I62: 17.83 | J62: 17.83
B63: SINAPI | C63: 95133 | D63: MÁQUINA DEMARCADORA DE FAIXA DE TRÁFEGO À FRIO, AUTOPROPELIDA, POTÊNCIA 38 HP - CHP DIURNO. AF_07/2016 | E63: CHP | F63: 0.0033 | G63: 110.07 | H63: 113.65 | I63: 0.36 | J63: 0.38
B64: MATERIAL (C) - TOTAL | I64: 27.45 | J64: 27.48
A66: 402 | B66: FONTE | C66: CÓDIGO | D66: DESCRIÇÃO | E66: UNIDADE | F66: COEFIC. | G66: CUSTO UNITÁRIO | I66: CUSTO TOTAL (A) + (B) + (C) + (D) + (E)
G67: DESONERADO | H67: NÃO DESONER. | I67: DESONERADO | J67: NÃO DESONER.
B68: COMPOSIÇÃO | C68: COMP 402_SEE | D68: QD.GIZ EMBOCO/LAM.MELAMINICO COMPL.-ESC.2000 4,50X1,40M | E68: M2 | I68: 807.77 | J68: 863.84
B69: AGETOP_I | C69: 5 | D69: SERVENTE | E69: h | F69: 14.42343941 | G69: 8.2 | H69: 9.51 | I69: 118.27 | J69: 137.17
B70: AGETOP_I | C70: 18 | D70: PINTOR | E70: h | F70: 0.2785397883 | G70: 13.4 | H70: 15.53 | I70: 3.73 | J70: 4.33
B71: AGETOP_I | C71: 4 | D71: PEDREIRO | E71: h | F71: 4.872203198 | G71: 13.4 | H71: 15.53 | I71: 65.29 | J71: 75.67
B72: AGETOP_I | C72: 24 | D72: MARCENEIRO | E72: h | F72: 12.29902925 | G72: 13.4 | H72: 15.53 | I72: 164.81 | J72: 191
B73: MÃO DE OBRA (B) - TOTAL | I73: 352.1 | J73: 408.17
B74: AGETOP_I | C74: 2062 | D74: TINTA PARA QUADRO DE GIZ | E74: l | F74: 1.074838993 | G74: 25.83 | H74: 25.83 | I74: 27.76 | J74: 27.76
B75: AGETOP_I | C75: 2237 | D75: VERNIZ ACRILICO | E75: l | F75: 0.4085074299 | G75: 13.61 | H75: 13.61 | I75: 5.56 | J75: 5.56
B76: AGETOP_I | C76: 1215 | D76: CIMENTO PORTLAND C.P. 32 | E76: Kg | F76: 62.59050297 | G76: 0.39 | H76: 0.39 | I76: 24.41 | J76: 24.41
B77: AGETOP_I | C77: 1243 | D77: COLA FORMICA ( 1L = 0,83KG) | E77: l | F77: 2.951123119 | G77: 17.86 | H77: 17.86 | I77: 52.71 | J77: 52.71
B78: AGETOP_I | C78: 104 | D78: AREIA MEDIA | E78: m3 | F78: 0.1934340737 | G78: 82.85 | H78: 82.85 | I78: 16.03 | J78: 16.03
B79: AGETOP_I | C79: 1111 | D79: AGUARRÁS MINERAL OU EQUIVALENTE | E79: l | F79: 0.06128930916 | G79: 8.65 | H79: 8.65 | I79: 0.53 | J79: 0.53
B80: AGETOP_I | C80: 1674 | D80: LIXA PARA PAREDE ( NÚMERO 100 ) | E80: un | F80: 2.542351795 | G80: 0.75 | H80: 0.75 | I80: 1.91 | J80: 1.91
B81: AGETOP_I | C81: 2351 | D81: FORMICA VERDE ESC. 3,08X1,25 | E81: m2 | F81: 2.23649901 | G81: 62.34 | H81: 62.34 | I81: 139.42 | J81: 139.42
B82: AGETOP_I | C82: 1970 | D82: SOLVENTE | E82: l | F82: 0.2631020075 | G82: 8.5 | H82: 8.5 | I82: 2.24 | J82: 2.24
B83: AGETOP_I | C83: 2294 | D83: SELADOR ACRILICO | E83: l | F83: 0.4987590713 | G83: 6.57 | H83: 6.57 | I83: 3.28 | J83: 3.28
B84: AGETOP_I | C84: 1704 | D84: MADEIRA DE LEI PARA TELHADO (ANGELIM VERMELHO) | E84: m3 | F84: 0.06716094373 | G84: 2142.86 | H84: 2142.86 | I84: 143.92 | J84: 143.92
B85: AGETOP_I | C85: 1708 | D85: MASSA A OLEO | E85: Kg | F85: 2.078162797 | G85: 14.62 | H85: 14.62 | I85: 30.38 | J85: 30.38
B86: AGETOP_I | C86: 2221 | D86: PARAFUSO COM BUCHA S-8 | E86: un | F86: 37.60485062 | G86: 0.2 | H86: 0.2 | I86: 7.52 | J86: 7.52
B87: MATERIAL (C) - TOTAL | I87: 455.67 | J87: 455.67
A89: 382 | B89: FONTE | C89: CÓDIGO | D89: DESCRIÇÃO | E89: UNIDADE | F89: COEFIC. | G89: CUSTO UNITÁRIO | I89: CUSTO TOTAL (A) + (B) + (C) + (D) + (E)
G90: DESONERADO | H90: NÃO DESONER. | I90: DESONERADO | J90: NÃO DESONER.
B91: COMPOSIÇÃO | C91: COMP 382_SEE | D91: TE DE REDUCAO DE FERRO GALVANIZADO, COM ROSCA BSP, DE 3/4" X 1/2" | E91: UN | I91: 21.83 | J91: 23.92
B92: AGETOP_I | C92: 8 | D92: AJUDANTE | E92: h | F92: 0.6 | G92: 8.2 | H92: 9.51 | I92: 4.92 | J92: 5.71
B93: AGETOP_I | C93: 11 | D93: ENCANADOR | E93: h | F93: 0.6105 | G93: 13.4 | H93: 15.53 | I93: 8.18 | J93: 9.48
G94: 0 | H94: 0 | I94: 0 | J94: 0
B95: MÃO DE OBRA (B) - TOTAL | I95: 13.1 | J95: 15.19
B96: SINAPI_I | C96: 3146 | D96: FITA VEDA ROSCA EM ROLOS DE 18 MM X 10 M (L X C) | E96: UN | F96: 0.120754717 | G96: 3.5 | H96: 3.5 | I96: 0.42 | J96: 0.42
B97: SINAPI_I | C97: 6302 | D97: TE DE REDUCAO DE FERRO GALVANIZADO, COM ROSCA BSP, DE 3/4" X 1/2" | E97: UN | F97: 1 | G97: 8.31 | H97: 8.31 | I97: 8.31 | J97: 8.31
G98: 0 | H98: 0 | I98: 0 | J98: 0
B99: MATERIAL (C) - TOTAL | I99: 8.73 | J99: 8.73
A101: 383 | B101: FONTE | C101: CÓDIGO | D101: DESCRIÇÃO | E101: UNIDADE | F101: COEFIC. | G101: CUSTO UNITÁRIO | I101: CUSTO TOTAL (A) + (B) + (C) + (D) + (E)
G102: DESONERADO | H102: NÃO DESONER. | I102: DESONERADO | J102: NÃO DESONER.
B103: COMPOSIÇÃO | C103: COMP 383_SEE | D103: BUCHA DE REDUCAO DE FERRO GALVANIZADO, COM ROSCA BSP, DE 1/2" X 1/4" | E103: UN | I103: 6.85 | J103: 7.4
B104: AGETOP_I | C104: 8 | D104: AJUDANTE | E104: h | F104: 0.16 | G104: 8.2 | H104: 9.51 | I104: 1.31 | J104: 1.52
B105: AGETOP_I | C105: 11 | D105: ENCANADOR | E105: h | F105: 0.16 | G105: 13.4 | H105: 15.53 | I105: 2.14 | J105: 2.48
G106: 0 | H106: 0 | I106: 0 | J106: 0
B107: MÃO DE OBRA (B) - TOTAL | I107: 3.45 | J107: 4
B108: AGETOP_I | C108: H689 | D108: FITA VEDAROSCA 12 MM | E108: m | F108: 1.2 | G108: 0.28 | H108: 0.28 | I108: 0.34 | J108: 0.34
B109: SINAPI_I | C109: 770 | D109: BUCHA DE REDUCAO DE FERRO GALVANIZADO, COM ROSCA BSP, DE 1/2" X 1/4" | E109: UN | F109: 1 | G109: 3.06 | H109: 3.06 | I109: 3.06 | J109: 3.06
G110: 0 | H110: 0 | I110: 0 | J110: 0
B111: MATERIAL (C) - TOTAL | I111: 3.4 | J111: 3.4
A113: 212 | B113: FONTE | C113: CÓDIGO | D113: DESCRIÇÃO | E113: UNIDADE | F113: COEFIC. | G113: CUSTO UNITÁRIO | I113: CUSTO TOTAL (A) + (B) + (C) + (D) + (E)
G114: DESONERADO | H114: NÃO DESONER. | I114: DESONERADO | J114: NÃO DESONER.
B115: COMPOSIÇÃO | C115: COMP 212_SEE | D115: NIPLE DE REDUÇÃO 1/2" X 1/4" BSP | E115: UN | I115: 9.5 | J115: 10.05
B116: AGETOP_I | C116: 8 | D116: AJUDANTE | E116: h | F116: 0.16 | G116: 8.2 | H116: 9.51 | I116: 1.31 | J116: 1.52
B117: AGETOP_I | C117: 11 | D117: ENCANADOR | E117: h | F117: 0.16 | G117: 13.4 | H117: 15.53 | I117: 2.14 | J117: 2.48
G118: 0 | H118: 0 | I118: 0 | J118: 0
B119: MÃO DE OBRA (B) - TOTAL | I119: 3.45 | J119: 4
B120: COTAÇÃO | C120: COT 103_SEE | D120: NIPLE DE REDUÇÃO 1/2" X 1/4" BSP | E120: UN | F120: 1 | G120: 6.053333333 | H120: 6.053333333 | I120: 6.05 | J120: 6.05
G121: 0 | H121: 0 | I121: 0 | J121: 0
G122: 0 | H122: 0 | I122: 0 | J122: 0
B123: MATERIAL (C) - TOTAL | I123: 6.05 | J123: 6.05
A125: 213 | B125: FONTE | C125: CÓDIGO | D125: DESCRIÇÃO | E125: UNIDADE | F125: COEFIC. | G125: CUSTO UNITÁRIO | I125: CUSTO TOTAL (A) + (B) + (C) + (D) + (E)
G126: DESONERADO | H126: NÃO DESONER. | I126: DESONERADO | J126: NÃO DESONER.
B127: COMPOSIÇÃO | C127: COMP 213_SEE | D127: NIPLE DE REDUÇÃO 3/4" X 1/2" BSP | E127: UN | I127: 13.16 | J127: 13.71
B128: AGETOP_I | C128: 8 | D128: AJUDANTE | E128: h | F128: 0.16 | G128: 8.2 | H128: 9.51 | I128: 1.31 | J128: 1.52
B129: AGETOP_I | C129: 11 | D129: ENCANADOR | E129: h | F129: 0.16 | G129: 13.4 | H129: 15.53 | I129: 2.14 | J129: 2.48
G130: 0 | H130: 0 | I130: 0 | J130: 0
B131: MÃO DE OBRA (B) - TOTAL | I131: 3.45 | J131: 4
B132: COTAÇÃO | C132: COT 104_SEE | D132: NIPLE DE REDUÇÃO 3/4" X 1/2" BSP | E132: UN | F132: 1 | G132: 9.71 | H132: 9.71 | I132: 9.71 | J132: 9.71
G133: 0 | H133: 0 | I133: 0 | J133: 0
G134: 0 | H134: 0 | I134: 0 | J134: 0
B135: MATERIAL (C) - TOTAL | I135: 9.71 | J135: 9.71
A137: 237 | B137: FONTE | C137: CÓDIGO | D137: DESCRIÇÃO | E137: UNIDADE | F137: COEFIC. | G137: CUSTO UNITÁRIO | I137: CUSTO TOTAL (A) + (B) + (C) + (D) + (E)
G138: DESONERADO | H138: NÃO DESONER. | I138: DESONERADO | J138: NÃO DESONER.
B139: COMPOSIÇÃO | C139: COMP 237_SEE | D139: FITA ANTICORROSIVA | E139: M | I139: 11.14 | J139: 11.83
B140: AGETOP_I | C140: 8 | D140: AJUDANTE | E140: h | F140: 0.2 | G140: 8.2 | H140: 9.51 | I140: 1.64 | J140: 1.9
B141: AGETOP_I | C141: 12 | D141: ELETRICISTA | E141: h | F141: 0.2 | G141: 13.4 | H141: 15.53 | I141: 2.68 | J141: 3.11
G142: 0 | H142: 0 | I142: 0 | J142: 0
B143: MÃO DE OBRA (B) - TOTAL | I143: 4.32 | J143: 5.01
B144: SINAPI_I | C144: 39634 | D144: FITA ADESIVA ANTICORROSIVA DE PVC FLEXIVEL, COR PRETA, PARA PROTECAO TUBULACAO, 50 MM X 30 M (L X C), E= *0,25* MM | E144: M | F144: 1 | G144: 6.82 | H144: 6.82 | I144: 6.82 | J144: 6.82
G145: 0 | H145: 0 | I145: 0 | J145: 0
G146: 0 | H146: 0 | I146: 0 | J146: 0
B147: MATERIAL (C) - TOTAL | I147: 6.82 | J147: 6.82
A149: 542 | B149: FONTE | C149: CÓDIGO | D149: DESCRIÇÃO | E149: UNIDADE | F149: COEFIC. | G149: CUSTO UNITÁRIO | I149: CUSTO TOTAL (A) + (B) + (C) + (D) + (E)
G150: DESONERADO | H150: NÃO DESONER. | I150: DESONERADO | J150: NÃO DESONER.
B151: COMPOSIÇÃO | C151: COMP 542_SEE | D151: VÁLVULA UGV 3/4" (S) LATÃO | E151: UN | I151: 25.17 | J151: 26.66
B152: AGETOP_I | C152: 8 | D152: AJUDANTE | E152: h | F152: 0.432 | G152: 8.2 | H152: 9.51 | I152: 3.54 | J152: 4.11
B153: AGETOP_I | C153: 11 | D153: ENCANADOR | E153: h | F153: 0.432 | G153: 13.4 | H153: 15.53 | I153: 5.79 | J153: 6.71
G154: 0 | H154: 0 | I154: 0 | J154: 0
B155: MÃO DE OBRA (B) - TOTAL | I155: 9.33 | J155: 10.82
B156: COTAÇÃO | C156: COT 281_SEE | D156: VÁLVULA UGV 3/4" (S) LATÃO | E156: UN | F156: 1 | G156: 15.83666667 | H156: 15.83666667 | I156: 15.84 | J156: 15.84
G157: 0 | H157: 0 | I157: 0 | J157: 0
G158: 0 | H158: 0 | I158: 0 | J158: 0
B159: MATERIAL (C) - TOTAL | I159: 15.84 | J159: 15.84
A161: 543 | B161: FONTE | C161: CÓDIGO | D161: DESCRIÇÃO | E161: UNIDADE | F161: COEFIC. | G161: CUSTO UNITÁRIO | I161: CUSTO TOTAL (A) + (B) + (C) + (D) + (E)
G162: DESONERADO | H162: NÃO DESONER. | I162: DESONERADO | J162: NÃO DESONER.
B163: COMPOSIÇÃO | C163: COMP 543_SEE | D163: VÁLVULA UGV 1/2" (S) LATÃO | E163: UN | I163: 24.5 | J163: 25.99
B164: AGETOP_I | C164: 8 | D164: AJUDANTE | E164: h | F164: 0.432 | G164: 8.2 | H164: 9.51 | I164: 3.54 | J164: 4.11
B165: AGETOP_I | C165: 11 | D165: ENCANADOR | E165: h | F165: 0.432 | G165: 13.4 | H165: 15.53 | I165: 5.79 | J165: 6.71
G166: 0 | H166: 0 | I166: 0 | J166: 0
B167: MÃO DE OBRA (B) - TOTAL | I167: 9.33 | J167: 10.82
B168: COTAÇÃO | C168: COT 282_SEE | D168: VÁLVULA UGV 1/2" (S) LATÃO | E168: UN | F168: 1 | G168: 15.16666667 | H168: 15.16666667 | I168: 15.17 | J168: 15.17
G169: 0 | H169: 0 | I169: 0 | J169: 0
G170: 0 | H170: 0 | I170: 0 | J170: 0
B171: MATERIAL (C) - TOTAL | I171: 15.17 | J171: 15.17
A173: 211 | B173: FONTE | C173: CÓDIGO | D173: DESCRIÇÃO | E173: UNIDADE | F173: COEFIC. | G173: CUSTO UNITÁRIO | I173: CUSTO TOTAL (A) + (B) + (C) + (D) + (E)
G174: DESONERADO | H174: NÃO DESONER. | I174: DESONERADO | J174: NÃO DESONER.
B175: COMPOSIÇÃO | C175: COMP 211_SEE | D175: REGULADOR DE 2º ESTÁGIO 5KG/H | E175: UN | I175: 85.46 | J175: 89.42
B176: AGETOP_I | C176: 8 | D176: AJUDANTE | E176: h | F176: 1.15 | G176: 8.2 | H176: 9.51 | I176: 9.43 | J176: 10.94
B177: AGETOP_I | C177: 11 | D177: ENCANADOR | E177: h | F177: 1.15 | G177: 13.4 | H177: 15.53 | I177: 15.41 | J177: 17.86
G178: 0 | H178: 0 | I178: 0 | J178: 0
B179: MÃO DE OBRA (B) - TOTAL | I179: 24.84 | J179: 28.8
B180: COTAÇÃO | C180: COT 102_SEE | D180: REGULADOR DE 2º ESTÁGIO 5KG/H | E180: UN | F180: 1 | G180: 59.83333333 | H180: 59.83333333 | I180: 59.83 | J180: 59.83
B181: AGETOP_I | C181: H689 | D181: FITA VEDAROSCA 12 MM | E181: m | F181: 2.82 | G181: 0.28 | H181: 0.28 | I181: 0.79 | J181: 0.79
G182: 0 | H182: 0 | I182: 0 | J182: 0
B183: MATERIAL (C) - TOTAL | I183: 60.62 | J183: 60.62
A185: 210 | B185: FONTE | C185: CÓDIGO | D185: DESCRIÇÃO | E185: UNIDADE | F185: COEFIC. | G185: CUSTO UNITÁRIO | I185: CUSTO TOTAL (A) + (B) + (C) + (D) + (E)
G186: DESONERADO | H186: NÃO DESONER. | I186: DESONERADO | J186: NÃO DESONER.
B187: COMPOSIÇÃO | C187: COMP 210_SEE | D187: REGULADOR DE 1º ESTÁGIO 60KG/H MODELO AP-40 COM MANÔMETRO | E187: UN | I187: 231.21 | J187: 235.17
B188: AGETOP_I | C188: 8 | D188: AJUDANTE | E188: h | F188: 1.15 | G188: 8.2 | H188: 9.51 | I188: 9.43 | J188: 10.94
B189: AGETOP_I | C189: 11 | D189: ENCANADOR | E189: h | F189: 1.15 | G189: 13.4 | H189: 15.53 | I189: 15.41 | J189: 17.86
G190: 0 | H190: 0 | I190: 0 | J190: 0
B191: MÃO DE OBRA (B) - TOTAL | I191: 24.84 | J191: 28.8
B192: COTAÇÃO | C192: COT 101_SEE | D192: REGULADOR DE 1º ESTÁGIO 60KG/H MODELO AP-40 COM MANÔMETRO | E192: UN | F192: 1 | G192: 205.5766667 | H192: 205.5766667 | I192: 205.58 | J192: 205.58
B193: AGETOP_I | C193: H689 | D193: FITA VEDAROSCA 12 MM | E193: m | F193: 2.82 | G193: 0.28 | H193: 0.28 | I193: 0.79 | J193: 0.79
G194: 0 | H194: 0 | I194: 0 | J194: 0
B195: MATERIAL (C) - TOTAL | I195: 206.37 | J195: 206.37
A197: 235 | B197: FONTE | C197: CÓDIGO | D197: DESCRIÇÃO | E197: UNIDADE | F197: COEFIC. | G197: CUSTO UNITÁRIO | I197: CUSTO TOTAL (A) + (B) + (C) + (D) + (E)
G198: DESONERADO | H198: NÃO DESONER. | I198: DESONERADO | J198: NÃO DESONER.
B199: COMPOSIÇÃO | C199: COMP 235_SEE | D199: PLACA DE SINALIZAÇÃO EM PVC COD 01 - (300X300) PROIBIDO FUMAR | E199: UN | I199: 25.27 | J199: 25.39
B200: AGETOP_I | C200: 5 | D200: SERVENTE | E200: h | F200: 0.09 | G200: 8.2 | H200: 9.51 | I200: 0.74 | J200: 0.86
G201: 0 | H201: 0 | I201: 0 | J201: 0
G202: 0 | H202: 0 | I202: 0 | J202: 0
B203: MÃO DE OBRA (B) - TOTAL | I203: 0.74 | J203: 0.86
B204: AGETOP_I | C204: 3070 | D204: BUCHA DE NYLON S-6 | E204: un | F204: 2 | G204: 0.04 | H204: 0.04 | I204: 0.08 | J204: 0.08
B205: AGETOP_I | C205: 3393 | D205: PARAFUSO P/BUCHA S-6 | E205: un | F205: 2 | G205: 0.08 | H205: 0.08 | I205: 0.16 | J205: 0.16
B206: SINAPI_I | C206: 37556 | D206: PLACA DE SINALIZACAO DE SEGURANCA CONTRA INCENDIO, FOTOLUMINESCENTE, QUADRADA, *20 X 20* CM, EM PVC *2* MM ANTI-CHAMAS (SIMBOLOS, CORES E PICTOGRAMAS CONFORME NBR 13434) | E206: UN | F206: 1 | G206: 24.29 | H206: 24.29 | I206: 24.29 | J206: 24.29
B207: MATERIAL (C) - TOTAL | I207: 24.53 | J207: 24.53
A209: 236 | B209: FONTE | C209: CÓDIGO | D209: DESCRIÇÃO | E209: UNIDADE | F209: COEFIC. | G209: CUSTO UNITÁRIO | I209: CUSTO TOTAL (A) + (B) + (C) + (D) + (E)
G210: DESONERADO | H210: NÃO DESONER. | I210: DESONERADO | J210: NÃO DESONER.
B211: COMPOSIÇÃO | C211: COMP 236_SEE | D211: PLACA DE SINALIZAÇÃO EM PVC COD 06 - (300X300) PERIGO INFLAMÁVEL | E211: UN | I211: 25.27 | J211: 25.39
B212: AGETOP_I | C212: 5 | D212: SERVENTE | E212: h | F212: 0.09 | G212: 8.2 | H212: 9.51 | I212: 0.74 | J212: 0.86
G213: 0 | H213: 0 | I213: 0 | J213: 0
G214: 0 | H214: 0 | I214: 0 | J214: 0
B215: MÃO DE OBRA (B) - TOTAL | I215: 0.74 | J215: 0.86
B216: AGETOP_I | C216: 3070 | D216: BUCHA DE NYLON S-6 | E216: un | F216: 2 | G216: 0.04 | H216: 0.04 | I216: 0.08 | J216: 0.08
B217: AGETOP_I | C217: 3393 | D217: PARAFUSO P/BUCHA S-6 | E217: un | F217: 2 | G217: 0.08 | H217: 0.08 | I217: 0.16 | J217: 0.16
B218: SINAPI_I | C218: 37556 | D218: PLACA DE SINALIZACAO DE SEGURANCA CONTRA INCENDIO, FOTOLUMINESCENTE, QUADRADA, *20 X 20* CM, EM PVC *2* MM ANTI-CHAMAS (SIMBOLOS, CORES E PICTOGRAMAS CONFORME NBR 13434) | E218: UN | F218: 1 | G218: 24.29 | H218: 24.29 | I218: 24.29 | J218: 24.29
B219: MATERIAL (C) - TOTAL | I219: 24.53 | J219: 24.53

Sheet Cotações
A4: UNIDADE ESCOLAR | H4: CÓDIGO INEP
A5: =Orçamento!$O$4 -> COLÉGIO ESTADUAL ELVIRA LEÃO BARRETO | H5: =Orçamento!$V$4 -> 52042910
A7: OBRA | H7: CIDADE
A8: =Orçamento!$O$7 -> REFORMA | H8: =Orçamento!$V$7 -> SIMOLÂNDIA
A10: CRE | D10: ENDEREÇO | H10: REFERÊNCIA AGETOP
A11: =Orçamento!$O$10 -> POSSE | D11: =Orçamento!$R$10 -> R HUMBERTO ALENCAR CASTELO BRANCO S/N, CENTRO, CEP:73930-000 | H11: =Orçamento!$V$10 -> DEZ/18 | I11: =Orçamento!$W$10 -> DESONERADA
A13: DATA | D13: ÁREA TOTAL CONSTRUÍDA (M²) | H13: REFERÊNCIA SINAPI
A14: =Orçamento!$S$7 -> 2020-05-12 | D14: =Orçamento!$S$13 -> 1267.68 | H14: =Orçamento!$V$13 -> MAR/19 | I14: =Orçamento!$W$13 -> DESONERADA
A16: COTAÇÕES DE PREÇOS - SEE-GO
B17: FONTE | C17: CÓDIGO | D17: DESCRIÇÃO | E17: UNIDADE | F17: MÉDIA | H17: ÍNDICE RETROAÇÃO
F18: DESONERADA | G18: ONERADA
A19: 195 | B19: COTAÇÃO | C19: COT 195_SEE | D19: LÂMPADA LED TUBULAR 18W | E19: UN | F19: 21.96 | G19: 21.96
C20: EMPRESA | D20: NOME DA EMPRESA | F20: COTAÇÕES | H20: DATA COTAÇÃO
C21: E030 - AJEL M... | D21: AJEL MATERIAIS ELÉTRICOS | F21: 19.89 | G21: 19.89
C22: E013 - ELETRO... | D22: ELETROTRANSOL | F22: 25.99 | G22: 25.99
C23: E014 - MAKRO ... | D23: MAKRO SERVICE | F23: 20 | G23: 20
C26: OBSERVAÇÕES:
B28: FONTE | C28: CÓDIGO | D28: DESCRIÇÃO | E28: UNIDADE | F28: MÉDIA | H28: ÍNDICE RETROAÇÃO
F29: DESONERADA | G29: ONERADA
A30: 103 | B30: COTAÇÃO | C30: COT 103_SEE | D30: NIPLE DE REDUÇÃO 1/2" X 1/4" BSP | E30: UN | F30: 6.053333333 | G30: 6.053333333
C31: EMPRESA | D31: NOME DA EMPRESA | F31: COTAÇÕES | H31: DATA COTAÇÃO
C32: E070 - FOCO R... | D32: FOCO REPRESENTAÇÃO E CONSULTORIA LTDA-ME | F32: 4.46 | G32: 4.46 | H32: 12/02/2019
C33: E071 - CASA D... | D33: CASA DAS PEÇAS COM E INDUSTRIA DE FOGOES LTDA | F33: 3.9 | G33: 3.9 | H33: 11/02/2019
C34: E072 - AMIG I... | D34: AMIG INSTALAÇÃO DE REDE DE GÁS E INCÊNDIO | F34: 9.8 | G34: 9.8 | H34: 08/02/2019
C37: OBSERVAÇÕES:
B39: FONTE | C39: CÓDIGO | D39: DESCRIÇÃO | E39: UNIDADE | F39: MÉDIA | H39: ÍNDICE RETROAÇÃO
F40: DESONERADA | G40: ONERADA
A41: 104 | B41: COTAÇÃO | C41: COT 104_SEE | D41: NIPLE DE REDUÇÃO 3/4" X 1/2" BSP | E41: UN | F41: 9.71 | G41: 9.71
C42: EMPRESA | D42: NOME DA EMPRESA | F42: COTAÇÕES | H42: DATA COTAÇÃO
C43: E070 - FOCO R... | D43: FOCO REPRESENTAÇÃO E CONSULTORIA LTDA-ME | F43: 10.93 | G43: 10.93 | H43: 12/02/2019
C44: E071 - CASA D... | D44: CASA DAS PEÇAS COM E INDUSTRIA DE FOGOES LTDA | F44: 5.5 | G44: 5.5 | H44: 11/02/2019
C45: E072 - AMIG I... | D45: AMIG INSTALAÇÃO DE REDE DE GÁS E INCÊNDIO | F45: 12.7 | G45: 12.7 | H45: 08/02/2019
C48: OBSERVAÇÕES:
B50: FONTE | C50: CÓDIGO | D50: DESCRIÇÃO | E50: UNIDADE | F50: MÉDIA | H50: ÍNDICE RETROAÇÃO
F51: DESONERADA | G51: ONERADA
A52: 281 | B52: COTAÇÃO | C52: COT 281_SEE | D52: VÁLVULA UGV 3/4" (S) LATÃO | E52: UN | F52: 15.83666667 | G52: 15.83666667
C53: EMPRESA | D53: NOME DA EMPRESA | F53: COTAÇÕES | H53: DATA COTAÇÃO
C54: E070 - FOCO R... | D54: FOCO REPRESENTAÇÃO E CONSULTORIA LTDA-ME | F54: 12.51 | G54: 12.51 | H54: 12/02/2019
C55: E071 - CASA D... | D55: CASA DAS PEÇAS COM E INDUSTRIA DE FOGOES LTDA | F55: 17.5 | G55: 17.5 | H55: 11/02/2019
C56: E072 - AMIG I... | D56: AMIG INSTALAÇÃO DE REDE DE GÁS E INCÊNDIO | F56: 17.5 | G56: 17.5 | H56: 08/02/2019
C59: OBSERVAÇÕES:
B61: FONTE | C61: CÓDIGO | D61: DESCRIÇÃO | E61: UNIDADE | F61: MÉDIA | H61: ÍNDICE RETROAÇÃO
F62: DESONERADA | G62: ONERADA
A63: 282 | B63: COTAÇÃO | C63: COT 282_SEE | D63: VÁLVULA UGV 1/2" (S) LATÃO | E63: UN | F63: 15.16666667 | G63: 15.16666667
C64: EMPRESA | D64: NOME DA EMPRESA | F64: COTAÇÕES | H64: DATA COTAÇÃO
C65: E070 - FOCO R... | D65: FOCO REPRESENTAÇÃO E CONSULTORIA LTDA-ME | F65: 11.2 | G65: 11.2 | H65: 12/02/2019
C66: E071 - CASA D... | D66: CASA DAS PEÇAS COM E INDUSTRIA DE FOGOES LTDA | F66: 17.5 | G66: 17.5 | H66: 11/02/2019
C67: E072 - AMIG I... | D67: AMIG INSTALAÇÃO DE REDE DE GÁS E INCÊNDIO | F67: 16.8 | G67: 16.8 | H67: 08/02/2019
C70: OBSERVAÇÕES:
B72: FONTE | C72: CÓDIGO | D72: DESCRIÇÃO | E72: UNIDADE | F72: MÉDIA | H72: ÍNDICE RETROAÇÃO
F73: DESONERADA | G73: ONERADA
A74: 102 | B74: COTAÇÃO | C74: COT 102_SEE | D74: REGULADOR DE 2º ESTÁGIO 5KG/H | E74: UN | F74: 59.83333333 | G74: 59.83333333
C75: EMPRESA | D75: NOME DA EMPRESA | F75: COTAÇÕES | H75: DATA COTAÇÃO
C76: E070 - FOCO R... | D76: FOCO REPRESENTAÇÃO E CONSULTORIA LTDA-ME | F76: 38.9 | G76: 38.9 | H76: 12/02/2019
C77: E071 - CASA D... | D77: CASA DAS PEÇAS COM E INDUSTRIA DE FOGOES LTDA | F77: 55.6 | G77: 55.6 | H77: 11/02/2019
C78: E072 - AMIG I... | D78: AMIG INSTALAÇÃO DE REDE DE GÁS E INCÊNDIO | F78: 85 | G78: 85 | H78: 08/02/2019
C81: OBSERVAÇÕES: | D81: AMIG enviou cotação de regulador de 2º estágio de 12kg/h.
B83: FONTE | C83: CÓDIGO | D83: DESCRIÇÃO | E83: UNIDADE | F83: MÉDIA | H83: ÍNDICE RETROAÇÃO
F84: DESONERADA | G84: ONERADA
A85: 101 | B85: COTAÇÃO | C85: COT 101_SEE | D85: REGULADOR DE 1º ESTÁGIO 60KG/H MODELO AP-40 COM MANÔMETRO | E85: UN | F85: 205.5766667 | G85: 205.5766667
C86: EMPRESA | D86: NOME DA EMPRESA | F86: COTAÇÕES | H86: DATA COTAÇÃO
C87: E070 - FOCO R... | D87: FOCO REPRESENTAÇÃO E CONSULTORIA LTDA-ME | F87: 148.73 | G87: 148.73 | H87: 12/02/2019
C88: E071 - CASA D... | D88: CASA DAS PEÇAS COM E INDUSTRIA DE FOGOES LTDA | F88: 198 | G88: 198 | H88: 11/02/2019
C89: E072 - AMIG I... | D89: AMIG INSTALAÇÃO DE REDE DE GÁS E INCÊNDIO | F89: 270 | G89: 270 | H89: 08/02/2019
C92: OBSERVAÇÕES:
